Workbook

Sheet Main Menu
A61: Serviceability Calculator For Broker Use Only Welcome to La Trobe Financial's serviceability calculators. The calculators are for broker use only and should not be provided to your client. The calculators may assist with determining how much your client can afford to borrow. If the inputs return a negative net disposal income figure, the application may still be referred to La Trobe Financial for further assessment. Disclaimer This calculator is a model and not a prediction. Amounts and repayments are estimates only. The calculator does not constitute an offer of credit and does not guarantee that your client will be eligible for a loan. Your client’s loan application will be subject to meeting our lending criteria and assessment. This calculator is a model and not a prediction. Amounts and repayments are estimates only. The calculator does not constitute an offer of credit and does not guarantee that your client will be eligible for a loan. Your client’s loan application will be subject to meeting our lending criteria and assessment.

Sheet Serviceability Calculator (hidden)
F4: Date: | H4: =TODAY() -> 2023-04-04
A5: Prospector number:
A6: Applicants Name(s): | K6: Your clients name please
A10: Household Status | C10: Household Number | D10: Status | E10: Dependents (only enter once for each household)
A11: Applicant 1 | K11: Please input household details for all applicants. Input required for all applicants even if no incomer derived from applicant.
A12: Applicant 2
A13: Applicant 3
A14: Applicant 4
A15: Applicant 5
A16: Applicant 6
A17: Applicant 7
A18: Applicant 8
A20: HEM Status | C20: Status | D20: Dependents | F20: Long Description | G20: Income for HEM | I20: Household HEM
A21: Household 1 | C21: =_xlfn.IFNA(VLOOKUP(A21,$C$11:$D$18,2,FALSE),"N/A") -> N/A | D21: =SUMIF($C$11:$C$18,A21,$E$11:$E$18) -> 0 | F21: =C21&" with "&D21&" children" -> N/A with 0 children | G21: =SUMIF($B$32:$B$39,A21,$C$32:$C$39)+SUMIF($B$43:$B$50,A21,$G$43:$G$50)+SUMIF($B$32:$B$39,A21,$D$32:$D$39) -> 0 | H21: =LOOKUP(G21,HEM!$C$9:$K$9,HEM!$C$7:$K$7) -> 2 | I21: =_xlfn.IFNA(VLOOKUP(F21,HEM!$B$12:$P$34,H21,FALSE),0)*52/12 -> 0
A22: Household 2 | C22: =_xlfn.IFNA(VLOOKUP(A22,$C$11:$D$18,2,FALSE),"N/A") -> N/A | D22: =SUMIF($C$11:$C$18,A22,$E$11:$E$18) -> 0 | F22: =C22&" with "&D22&" children" -> N/A with 0 children | G22: =SUMIF($B$32:$B$39,A22,$C$32:$C$39)+SUMIF($B$43:$B$50,A22,$G$43:$G$50)+SUMIF($B$32:$B$39,A22,$D$32:$D$39) -> 0 | H22: =LOOKUP(G22,HEM!$C$9:$K$9,HEM!$C$7:$K$7) -> 2 | I22: =_xlfn.IFNA(VLOOKUP(F22,HEM!$B$12:$P$34,H22,FALSE),0)*52/12 -> 0
A23: Household 3 | C23: N/A | D23: 0 | F23: N/A with 0 children | G23: =SUMIF($B$32:$B$39,A23,$C$32:$C$39)+SUMIF($B$43:$B$50,A23,$G$43:$G$50)+SUMIF($B$32:$B$39,A23,$D$32:$D$39) -> 0 | H23: =LOOKUP(G23,HEM!$C$9:$K$9,HEM!$C$7:$K$7) -> 2 | I23: =_xlfn.IFNA(VLOOKUP(F23,HEM!$B$12:$P$34,H23,FALSE),0)*52/12 -> 0
A24: Household 4 | C24: N/A | D24: 0 | F24: N/A with 0 children | G24: =SUMIF($B$32:$B$39,A24,$C$32:$C$39)+SUMIF($B$43:$B$50,A24,$G$43:$G$50)+SUMIF($B$32:$B$39,A24,$D$32:$D$39) -> 0 | H24: =LOOKUP(G24,HEM!$C$9:$K$9,HEM!$C$7:$K$7) -> 2 | I24: =_xlfn.IFNA(VLOOKUP(F24,HEM!$B$12:$P$34,H24,FALSE),0)*52/12 -> 0
A25: Household 5 | C25: N/A | D25: =SUMIF($C$11:$C$18,A25,$E$11:$E$18) -> 0 | F25: N/A with 0 children | G25: =SUMIF($B$32:$B$39,A25,$C$32:$C$39)+SUMIF($B$43:$B$50,A25,$G$43:$G$50)+SUMIF($B$32:$B$39,A25,$D$32:$D$39) -> 0 | H25: =LOOKUP(G25,HEM!$C$9:$K$9,HEM!$C$7:$K$7) -> 2
A26: Household 6 | C26: =_xlfn.IFNA(VLOOKUP(A26,$C$11:$D$18,2,FALSE),"N/A") -> N/A | D26: =SUMIF($C$11:$C$18,A26,$E$11:$E$18) -> 0 | F26: N/A with 0 children | G26: =SUMIF($B$32:$B$39,A26,$C$32:$C$39)+SUMIF($B$43:$B$50,A26,$G$43:$G$50)+SUMIF($B$32:$B$39,A26,$D$32:$D$39) -> 0 | H26: =LOOKUP(G26,HEM!$C$9:$K$9,HEM!$C$7:$K$7) -> 2
A29: Total | I29: =SUM(I21:I24) -> 0
A31: Income - Personal | C31: Gross Taxable Income | D31: Gross Non-taxable Income | E31: Gross Rental Income | F31: Gross Income - Taxable | G31: Gross Income - Non-taxable | H31: Net Monthly Income
A32: Applicant 1 - Personal Income | B32: =C11 -> 0 | C32: 0 | D32: 0 | E32: 0 | F32: =C32+G43 -> 0 | G32: =(C43*12)+D32 -> 0 | H32: ='Tax Scales'!$J$14+(G32/12) -> 0 | K32: Input applicants income details
A33: Applicant 2 - Personal Income | B33: 0 | C33: 0 | D33: 0 | E33: 0 | F33: 0 | G33: =(C44*12)+D33 -> 0 | H33: ='Tax Scales'!$J$27+(G33/12) -> 0
A34: Applicant 3 - Personal Income | B34: 0 | C34: 0 | D34: 0 | E34: 0 | F34: 0 | G34: 0 | H34: ='Tax Scales'!$J$40+(G34/12) -> 0
A35: Applicant 4 - Personal Income | B35: 0 | C35: 0 | D35: 0 | E35: 0 | F35: 0 | G35: 0 | H35: ='Tax Scales'!$J$53+(G35/12) -> 0
A36: Applicant 5 - Personal Income | B36: 0 | C36: 0 | D36: 0 | E36: 0 | F36: 0 | G36: 0 | H36: ='Tax Scales'!$J$66+(G36/12) -> 0
A37: Applicant 6 - Personal Income | B37: 0 | C37: 0 | D37: 0 | E37: 0 | F37: 0 | G37: 0 | H37: ='Tax Scales'!$J$80+(G37/12) -> 0
A38: Applicant 7 - Personal Income | B38: =C17 -> 0 | C38: 0 | D38: 0 | E38: 0 | F38: 0 | G38: 0 | H38: ='Tax Scales'!$J$94+(G38/12) -> 0
A39: Applicant 8 - Personal Income | B39: 0 | C39: 0 | D39: 0 | E39: 0 | F39: 0 | G39: 0 | H39: ='Tax Scales'!$J$108+(G39/12) -> 0
H40: =SUM(H32:H39) -> 0
A42: Interest on Rental Properties | C42: Monthly Interest Expense (for gearing purposes only) | F42: Gross Annual Income - less haircut | G42: Net Rental Income
A43: Applicant 1 - Interest expense on rental properties | B43: =C11 -> 0 | C43: 0 | F43: =E32*RepayCalculator!$B$44 -> 0 | G43: =F43-(C43*12) -> 0
A44: Applicant 2 - Interest expense on rental properties | B44: 0 | C44: 0 | F44: =E33*RepayCalculator!$B$44 -> 0 | G44: =F44-(C44*12) -> 0
A45: Applicant 3 - Interest expense on rental properties | B45: 0 | C45: 0 | F45: =E34*RepayCalculator!$B$44 -> 0 | G45: 0
A46: Applicant 4 - Interest expense on rental properties | B46: 0 | C46: 0 | F46: =E35*RepayCalculator!$B$44 -> 0 | G46: 0
A47: Applicant 5 - Interest expense on rental properties | B47: 0 | C47: 0 | F47: =E36*RepayCalculator!$B$44 -> 0 | G47: 0
A48: Applicant 6 - Interest expense on rental properties | B48: 0 | C48: 0 | F48: =E37*RepayCalculator!$B$44 -> 0 | G48: 0
A49: Applicant 7 - Interest expense on rental properties | B49: =C17 -> 0 | C49: 0 | F49: =E38*RepayCalculator!$B$44 -> 0 | G49: 0
A50: Applicant 8 - Interest expense on rental properties | B50: =C18 -> 0 | C50: 0 | F50: =E39*RepayCalculator!$B$44 -> 0 | G50: 0
A53: Company Income | C53: Net Profit before tax (NPBT) | D53: Addbacks
A54: Company 1 (Net Profit Before Tax) | C54: 0 | D54: 0 | F54: =C54 -> 0 | G54: =D54 -> 0 | H54: ='Tax Scales'!$J$115+(G54/12) -> 0
A55: Company 2 (Net Profit Before Tax) | C55: 0 | D55: 0 | F55: =C55 -> 0 | G55: =D55 -> 0 | H55: ='Tax Scales'!$J$122+(G55/12) -> 0
A56: Company 3 (Net Profit Before Tax) | C56: 0 | D56: 0 | F56: =C56 -> 0 | G56: =D56 -> 0 | H56: ='Tax Scales'!$J$129+(G56/12) -> 0
A57: Company 4 (Net Profit Before Tax) | C57: 0 | D57: 0 | F57: 0 | G57: =D57 -> 0 | H57: ='Tax Scales'!$J$136+(G57/12) -> 0
H58: =SUM(H54:H57) -> 0
A60: Total Gross Income | H60: =SUM(C32:C39)+SUM(D32:D39)+SUM(C54:C57)+SUM(D54:D57)+SUM(E32:E39) -> 0
A61: Total Income | H61: =+H40+H58 -> 0
A63: Less Living Allowance
C64: Household 1 | D64: Household 2 | E64: Household 3 | H64: Household 4
A65: Groceries | C65: 0 | D65: 0 | E65: 0 | H65: 0 | K65: Input applicants expenses. All items must be completed. Explanation is required for any omitted or unusual items as part of the submission.
A66: Clothing & Personal Care | C66: 0 | D66: 0 | E66: 0 | H66: 0
A67: Medical & Health | C67: 0 | D67: 0 | E67: 0 | H67: 0
A68: Transport | C68: 0 | D68: 0 | E68: 0 | H68: 0
A69: Telephone, internet, pay-TV, streaming etc | C69: 0 | D69: 0 | E69: 0 | H69: 0
A70: Childcare / Public Schooling / Higher education | C70: 0 | D70: 0 | E70: 0 | H70: 0
A71: Insurances | C71: 0 | D71: 0 | E71: 0 | H71: 0 | K71: =IF(C75=0,"",IF(C75>C74,"WARNING - Household 1 declared living expenses are below benchmark. Detailed review required.",IF(C74<C75*1.05,"WARNING - Household 1 declared living expenses are within 5% of benchmark. Detailed review of living expenses required",""))) -> 
A72: Property expenses - Owner occupied | C72: 0 | D72: 0 | E72: 0 | H72: 0
A73: Recreation, entertainment and other expenses | C73: 0 | D73: 0 | E73: 0 | H73: 0 | K73: =IF(D75=0,"",IF(D75>D74,"WARNING - Household 2 declared living expenses are below benchmark. Detailed review required.",IF(D74<D75*1.05,"WARNING - Household 2 declared living expenses are within 5% of benchmark. Detailed review of living expenses required",""))) -> 
A74: Monthly Living Expenses | C74: =SUM(C65:C73) -> 0 | D74: =SUM(D65:D73) -> 0 | E74: =SUM(E65:E73) -> 0 | H74: =SUM(H65:H73) -> 0
A75: Benchmark Living Expenses | C75: =_xlfn.IFNA(VLOOKUP($F$21,HEM!$B$12:$P$34,$H$21,FALSE),0)*52/12 -> 0 | D75: =_xlfn.IFNA(VLOOKUP($F$22,HEM!$B$12:$P$34,$H$22,FALSE),0)*52/12 -> 0 | E75: =_xlfn.IFNA(VLOOKUP($F$23,HEM!$B$12:$P$34,$H$23,FALSE),0)*52/12 -> 0 | H75: =_xlfn.IFNA(VLOOKUP($F$24,HEM!$B$12:$P$34,$H$24,FALSE),0)*52/12 -> 0 | K75: =IF(E75=0,"",IF(E75>E74,"WARNING - Household 3 declared living expenses are below benchmark. Detailed review required.",IF(E74<E75*1.05,"WARNING - Household 3 declared living expenses are within 5% of benchmark. Detailed review of living expenses required",""))) -> 
A76: Living Expense Used (> of HEM or Actual) | C76: =IF(C75>C74,C75,C74) -> 0 | D76: =IF(D75>D74,D75,D74) -> 0 | E76: 0 | H76: 0
A77: Private Schooling | C77: 0 | D77: 0 | E77: 0 | H77: 0 | K77: =IF(H75=0,"",IF(H75>H74,"WARNING - Household 4 declared living expenses are below benchmark. Detailed review required.",IF(H74<H75*1.05,"WARNING - Household 4 declared living expenses are within 5% of benchmark. Detailed review of living expenses required",""))) -> 
A78: Health & Personal Insurances | C78: 0 | D78: 0 | E78: 0 | H78: 0
A79: Child Support / Spousal maintenance | C79: 0 | D79: 0 | E79: 0 | H79: 0
A80: Rent / Board | C80: 0 | D80: 0 | E80: 0 | H80: 0
C82: Household 5 | D82: Household 6
A83: Groceries | C83: 0 | D83: 0
A84: Clothing & Personal Care | C84: 0 | D84: 0
A85: Medical & Health | C85: 0 | D85: 0
A86: Transport | C86: 0 | D86: 0
A87: Telephone, internet, pay-TV, streaming etc | C87: 0 | D87: 0
A88: Childcare / Public Schooling / Higher education | C88: 0 | D88: 0
A89: Insurances | C89: 0 | D89: 0
A90: Property expenses - Owner occupied | C90: 0 | D90: 0 | K90: =IF(C91=0,"",IF(C91>C90,"WARNING - Household 1 declared living expenses are below benchmark. Detailed review required.",IF(C90<C91*1.05,"WARNING - Household 1 declared living expenses are within 5% of benchmark. Detailed review of living expenses required",""))) -> 
A91: Recreation, entertainment and other expenses | C91: 0 | D91: 0
A92: Monthly Living Expenses | C92: =SUM(C83:C91) -> 0 | D92: =SUM(D83:D91) -> 0 | K92: =IF(C93=0,"",IF(C93>C92,"WARNING - Household 5 declared living expenses are below benchmark. Detailed review required.",IF(C92<C93*1.05,"WARNING - Household 5 declared living expenses are within 5% of benchmark. Detailed review of living expenses required",""))) -> 
A93: Benchmark Living Expenses | C93: =_xlfn.IFNA(VLOOKUP($F$25,HEM!$B$12:$P$34,$H$25,FALSE),0)*52/12 -> 0 | D93: =_xlfn.IFNA(VLOOKUP($F$26,HEM!$B$12:$P$34,$H$26,FALSE),0)*52/12 -> 0
A94: Living Expense Used (> of HEM or Actual) | C94: =IF(C93>C92,C93,C92) -> 0 | D94: =IF(D93>D92,D93,D92) -> 0 | K94: =IF(D93=0,"",IF(D93>D92,"WARNING - Household 6 declared living expenses are below benchmark. Detailed review required.",IF(D92<D93*1.05,"WARNING - Household 6 declared living expenses are within 5% of benchmark. Detailed review of living expenses required",""))) -> 
A95: Private Schooling | C95: 0 | D95: 0
A96: Health & Personal Insurances | C96: 0 | D96: 0
A97: Child Support / Spousal maintenance | C97: 0 | D97: 0
A98: Rent / Board | C98: 0 | D98: 0
A99: Total Living Expenses | H99: =SUM(C76:E76,H76,C94:D94) -> 0
A100: Rent, Board and Child Support | H100: =SUM(C77:E80,H77:H80,C95:D98) -> 0
A101: Total Expenses | H101: =H99+H100 -> 0
A103: Total income available for debt & housing servicing | H103: =H61-H101 -> 0
A105: Less Existing Commitments | C105: Debt / Limit | D105: Monthly Pmt
A106: Credit Card (Limit not debt) | C106: 0 | D106: =C106*0.038 -> 0 | K106: Please list all outstanding credit commitments
C107: 0 | D107: 0 | F107: =IFERROR(RATE(360,D107,C107*-1,0,0,0.1)*12,0) -> 0 | G107: =IF(PMT((F107+RepayCalculator!$B$6)/12,360,C107,0,0)<(PMT(RepayCalculator!$B$9/12,360,C107,0,0)),(PMT((F107+RepayCalculator!$B$6)/12,360,C107,0,0)*-1)-D107,(PMT((RepayCalculator!$B$9)/12,360,C107,0,0)*-1)-D107) -> 0 | K107: remaining after this mortgage settles
C108: 0 | D108: 0 | F108: =IFERROR(RATE(360,D108,C108*-1,0,0,0.1)*12,0) -> 0 | G108: =IF(PMT((F108+RepayCalculator!$B$6)/12,360,C108,0,0)<(PMT(RepayCalculator!$B$9/12,360,C108,0,0)),(PMT((F108+RepayCalculator!$B$6)/12,360,C108,0,0)*-1)-D108,(PMT((RepayCalculator!$B$9)/12,360,C108,0,0)*-1)-D108) -> 0
C109: 0 | D109: 0 | F109: 0 | G109: =IF(PMT((F109+RepayCalculator!$B$6)/12,360,C109,0,0)<(PMT(RepayCalculator!$B$9/12,360,C109,0,0)),(PMT((F109+RepayCalculator!$B$6)/12,360,C109,0,0)*-1)-D109,(PMT((RepayCalculator!$B$9)/12,360,C109,0,0)*-1)-D109) -> 0
C110: 0 | D110: 0 | F110: 0 | G110: =IF(PMT((F110+RepayCalculator!$B$6)/12,360,C110,0,0)<(PMT(RepayCalculator!$B$9/12,360,C110,0,0)),(PMT((F110+RepayCalculator!$B$6)/12,360,C110,0,0)*-1)-D110,(PMT((RepayCalculator!$B$9)/12,360,C110,0,0)*-1)-D110) -> 0
C111: 0 | D111: 0 | F111: 0 | G111: =IF(PMT((F111+RepayCalculator!$B$6)/12,360,C111,0,0)<(PMT(RepayCalculator!$B$9/12,360,C111,0,0)),(PMT((F111+RepayCalculator!$B$6)/12,360,C111,0,0)*-1)-D111,(PMT((RepayCalculator!$B$9)/12,360,C111,0,0)*-1)-D111) -> 0
C112: 0 | D112: 0 | F112: =IFERROR(RATE(360,D112,C112*-1,0,0,0.1)*12,0) -> 0 | G112: =IF(PMT((F112+RepayCalculator!$B$6)/12,360,C112,0,0)<(PMT(RepayCalculator!$B$9/12,360,C112,0,0)),(PMT((F112+RepayCalculator!$B$6)/12,360,C112,0,0)*-1)-D112,(PMT((RepayCalculator!$B$9)/12,360,C112,0,0)*-1)-D112) -> 0
C113: 0 | D113: 0 | F113: =IFERROR(RATE(360,D113,C113*-1,0,0,0.1)*12,0) -> 0 | G113: =IF(PMT((F113+RepayCalculator!$B$6)/12,360,C113,0,0)<(PMT(RepayCalculator!$B$9/12,360,C113,0,0)),(PMT((F113+RepayCalculator!$B$6)/12,360,C113,0,0)*-1)-D113,(PMT((RepayCalculator!$B$9)/12,360,C113,0,0)*-1)-D113) -> 0
C114: 0 | D114: 0 | F114: =IFERROR(RATE(360,D114,C114*-1,0,0,0.1)*12,0) -> 0 | G114: =IF(PMT((F114+RepayCalculator!$B$6)/12,360,C114,0,0)<(PMT(RepayCalculator!$B$9/12,360,C114,0,0)),(PMT((F114+RepayCalculator!$B$6)/12,360,C114,0,0)*-1)-D114,(PMT((RepayCalculator!$B$9)/12,360,C114,0,0)*-1)-D114) -> 0
C115: 0 | D115: 0 | F115: 0 | G115: =IF(PMT((F115+RepayCalculator!$B$6)/12,360,C115,0,0)<(PMT(RepayCalculator!$B$9/12,360,C115,0,0)),(PMT((F115+RepayCalculator!$B$6)/12,360,C115,0,0)*-1)-D115,(PMT((RepayCalculator!$B$9)/12,360,C115,0,0)*-1)-D115) -> 0
C116: 0 | D116: 0 | F116: =IFERROR(RATE(360,D116,C116*-1,0,0,0.1)*12,0) -> 0 | G116: =IF(PMT((F116+RepayCalculator!$B$6)/12,360,C116,0,0)<(PMT(RepayCalculator!$B$9/12,360,C116,0,0)),(PMT((F116+RepayCalculator!$B$6)/12,360,C116,0,0)*-1)-D116,(PMT((RepayCalculator!$B$9)/12,360,C116,0,0)*-1)-D116) -> 0
C117: 0 | D117: 0 | F117: =IFERROR(RATE(360,D117,C117*-1,0,0,0.1)*12,0) -> 0 | G117: =IF(PMT((F117+RepayCalculator!$B$6)/12,360,C117,0,0)<(PMT(RepayCalculator!$B$9/12,360,C117,0,0)),(PMT((F117+RepayCalculator!$B$6)/12,360,C117,0,0)*-1)-D117,(PMT((RepayCalculator!$B$9)/12,360,C117,0,0)*-1)-D117) -> 0
C118: 0 | D118: 0 | F118: 0 | G118: =IF(PMT((F118+RepayCalculator!$B$6)/12,360,C118,0,0)<(PMT(RepayCalculator!$B$9/12,360,C118,0,0)),(PMT((F118+RepayCalculator!$B$6)/12,360,C118,0,0)*-1)-D118,(PMT((RepayCalculator!$B$9)/12,360,C118,0,0)*-1)-D118) -> 0
C119: 0 | D119: 0 | F119: 0 | G119: =IF(PMT((F119+RepayCalculator!$B$6)/12,360,C119,0,0)<(PMT(RepayCalculator!$B$9/12,360,C119,0,0)),(PMT((F119+RepayCalculator!$B$6)/12,360,C119,0,0)*-1)-D119,(PMT((RepayCalculator!$B$9)/12,360,C119,0,0)*-1)-D119) -> 0
C120: 0 | D120: 0 | F120: 0 | G120: =IF(PMT((F120+RepayCalculator!$B$6)/12,360,C120,0,0)<(PMT(RepayCalculator!$B$9/12,360,C120,0,0)),(PMT((F120+RepayCalculator!$B$6)/12,360,C120,0,0)*-1)-D120,(PMT((RepayCalculator!$B$9)/12,360,C120,0,0)*-1)-D120) -> 0
C121: 0 | D121: 0 | F121: =IFERROR(RATE(360,D121,C121*-1,0,0,0.1)*12,0) -> 0 | G121: =IF(PMT((F121+RepayCalculator!$B$6)/12,360,C121,0,0)<(PMT(RepayCalculator!$B$9/12,360,C121,0,0)),(PMT((F121+RepayCalculator!$B$6)/12,360,C121,0,0)*-1)-D121,(PMT((RepayCalculator!$B$9)/12,360,C121,0,0)*-1)-D121) -> 0
A122: Total Existing Commitments | C122: =SUM(C106:C121) -> 0 | D122: =SUM(D106:D121) -> 0 | H122: =D122 -> 0
A123: Existing Commitments Sensitivity | D123: =SUM(SUMIF($A$107:$A$121,{"Mortgage Loan - Investment","Mortgage Loan - Owner Occupied","Personal Loan - Variable","Overdraft","Line of Credit",""},$G$107:$G$121)) -> 0 | H123: =D123 -> 0
A124: Total Stressed Existing Commitments | D124: =SUM(D122:D123) -> 0 | H124: =D124 -> 0
A127: New Loan Commitment(s) | C127: Loan 1 | D127: Loan 2 | E127: Loan 3
A128: Appraisal No | C128: =C5 -> 0 | D128: 0 | E128: 0
A129: Repayment Type | C129: =IF(C130=0,"",IF(C130>C131,"Principal & Interest","Interest Only")) ->  | D129: =IF(D130=0,"",IF(D130>D131,"Principal & Interest","Interest Only")) ->  | K129: Enter loan details of new loans.
A130: New Loan Term (Years) | C130: 0 | D130: 0 | E130: 0
A131: Interest Only Term (Years) | C131: 0 | D131: 0 | E131: 0
A132: New Loan Amount | C132: 0 | D132: 0 | E132: 0
A133: Interest Rate of New Loan | C133: 0 | D133: 0 | E133: 0
A134: New Monthly Loan Repayment/s | C134: =IFERROR(IF(C$129="",0,(IF(C$129="Principal & Interest",-PMT(C$133/12,(C$130-C$131)*12,C$132,0,0)+15,((C$132*C$133)/12)+15))),0) -> 0 | D134: =IFERROR(IF(D$129="",0,(IF(D$129="Principal & Interest",-PMT(D$133/12,(D$130-D$131)*12,D$132,0,0)+15,((D$132*D$133)/12)+15))),0) -> 0 | E134: =IFERROR(IF(E$129="",0,(IF(E$129="Principal & Interest",-PMT(E$133/12,(E$130-E$131)*12,E$132,0,0)+15,((E$132*E$133)/12)+15))),0) -> 0 | H134: =SUM(C134:E134) -> 0
A135: Loan Assessment Rate | C135: =IF(C133+RepayCalculator!$B$6>RepayCalculator!$B$9,C133+RepayCalculator!$B$6,RepayCalculator!$B$9) -> 0.053 | D135: =IF(D133+RepayCalculator!$B$6>RepayCalculator!$B$9,D133+RepayCalculator!$B$6,RepayCalculator!$B$9) -> 0.053 | E135: =IF(E133+RepayCalculator!$B$6>RepayCalculator!$B$9,E133+RepayCalculator!$B$6,RepayCalculator!$B$9) -> 0.053 | H135: =H136-H134 -> 0
A136: Stressed Loan Payments | C136: =IFERROR(IF(C$129="",0,(IF(C$129="Principal & Interest",-PMT(C$135/12,(C$130-C$131)*12,C$132,0,0)+15,((C$132*C$135)/12)+15))),0) -> 0 | D136: =IFERROR(IF(D$129="",0,(IF(D$129="Principal & Interest",-PMT(D$135/12,(D$130-D$131)*12,D$132,0,0)+15,((D$132*D$135)/12)+15))),0) -> 0 | E136: 0 | H136: =SUM(C136:E136) -> 0
A140: Summary
A141: Result - Must Be Positive | H141: =H103-H124-H136 -> 0
A142: Debt to Income Ratio | H142: =(SUM(C106:C121)+SUM(C132:E132))/H60 -> 
H143: =IF(H141>0,"PASS","FAIL") -> FAIL
A145: Maximum Loan Available - Principal & Interest loans only | H145: =IF(OR(D132>0,E132>0),"N/A - Multiple loans",IF(C129="Principal & Interest",FLOOR(-PV((C135)/12,(C130-C131)*12,(H103-H124-15),0,0),100),"N/A")) -> N/A | I145: =((H103-H122-H123)/(C133+1.7%)*12) -> 0
A147: I certify that we have made the proper enquiries and to the best of our knowledge the above information is correct.
A150: Signature | D150: Name | H150: Date
A154: ='Living Allow'!E11 -> Version Date: 1 April 2023

Sheet NDI DTI Output (hidden)
A1: Prospector Number | B1: ='Serviceability Calculator'!$C$128 -> 0
A2: Serviceability calculator type | B2: NDI
A3: Applicant 1 Normal Income | B3: ='Serviceability Calculator'!$C32+'Serviceability Calculator'!$D$32 -> 0
A4: Applicant 2 Normal Income | B4: ='Serviceability Calculator'!$C33+'Serviceability Calculator'!$D$33 -> 0
A5: Applicant 3 Normal Income | B5: ='Serviceability Calculator'!$C34+'Serviceability Calculator'!$D$34 -> 0
A6: Applicant 4 Normal Income | B6: =SUM('Serviceability Calculator'!$C35:$C39)+SUM('Serviceability Calculator'!$D$35:$D39) -> 0
A7: Applicant 1 Rental Income | B7: ='Serviceability Calculator'!$E$32 -> 0
A8: Applicant 2 Rental Income | B8: ='Serviceability Calculator'!$E$33 -> 0
A9: Applicant 3 Rental Income | B9: ='Serviceability Calculator'!$E$34 -> 0
A10: Applicant 4 Rental Income | B10: =SUM('Serviceability Calculator'!$E$35:$E$39) -> 0
A11: Applicant 1 Company Income | B11: ='Serviceability Calculator'!$C$54+'Serviceability Calculator'!$D$54 -> 0
A12: Applicant 2 Company Income | B12: =SUM('Serviceability Calculator'!$C$55:$C$57)+SUM('Serviceability Calculator'!$D$55:$D$57) -> 0
A13: Applicant 3 Company Income | B13: N/A
A14: Applicant 4 Company Income | B14: N/A
A15: Total Annual Gross Income | B15: ='Serviceability Calculator'!$H$60 -> 0
A16: Declared monthly living expenses | B16: =SUM('Serviceability Calculator'!$C$74,'Serviceability Calculator'!$D$74,'Serviceability Calculator'!$E$74,'Serviceability Calculator'!$H$74,'Serviceability Calculator'!$C$92,'Serviceability Calculator'!$D$92) -> 0
A17: Benchmark monthly living expenses | B17: =SUM('Serviceability Calculator'!$C$75,'Serviceability Calculator'!$D$75,'Serviceability Calculator'!$E$75,'Serviceability Calculator'!$H$75,'Serviceability Calculator'!$C$93,'Serviceability Calculator'!$D$93) -> 0
A18: Rent / Board | B18: =SUM('Serviceability Calculator'!$C$80,'Serviceability Calculator'!$D$80,'Serviceability Calculator'!$E$80,'Serviceability Calculator'!$H$80,'Serviceability Calculator'!$C$98,'Serviceability Calculator'!$D$98) -> 0
A19: Child Support | B19: =SUM('Serviceability Calculator'!$C$77:$E$79,'Serviceability Calculator'!$H$77:$H$79,'Serviceability Calculator'!$C$95:$D$97) -> 0
A20: Credit Card Debt | B20: ='Serviceability Calculator'!$C$106 -> 0
A21: Personal Loan Debt | B21: =SUM(SUMIF(ndiExisTyp,{"Personal Loan - Variable","Personal Loan - Fixed"},'Serviceability Calculator'!$C$107:$C$121)) -> 0
A22: Overdraft Debt | B22: =SUM(SUMIF(ndiExisTyp,{"Overdraft"},'Serviceability Calculator'!$C$107:$C$121)) -> 0
A23: Housing Loan Debt | B23: =SUM(SUMIF(ndiExisTyp,{"Mortgage Loan - Investment","Mortgage Loan - Owner Occupied","Private Loan",""},'Serviceability Calculator'!$C$107:$C$121)) -> 0
A24: Lease / Other Debt | B24: =SUM(SUMIF(ndiExisTyp,{"Lease / Hire Purchase","Line of Credit"},'Serviceability Calculator'!$C$107:$C$121)) -> 0
A25: Credit Card Payment | B25: ='Serviceability Calculator'!$D$106 -> 0
A26: Personal Loan Payment | B26: =SUM(SUMIF(ndiExisTyp,{"Overdraft"},'Serviceability Calculator'!$D$107:$D$121)) -> 0
A27: Overdraft Payment | B27: =SUM(SUMIF(ndiExisTyp,{"Personal Loan - Variable","Personal Loan - Fixed"},'Serviceability Calculator'!$D$107:$D$121)) -> 0
A28: Housing Loan Payment | B28: =SUM(SUMIF(ndiExisTyp,{"Mortgage Loan - Investment","Mortgage Loan - Owner Occupied","Private Loan",""},'Serviceability Calculator'!$D$107:$D$121)) -> 0
A29: Lease / Other Payment | B29: =SUM(SUMIF(ndiExisTyp,{"Lease / Hire Purchase","Line of Credit"},'Serviceability Calculator'!$D$107:$D$121)) -> 0
A30: Loan Assessment Rate | B30: ='Serviceability Calculator'!$C$135 -> 0.053
A31: Serviceability Result | B31: ='Serviceability Calculator'!$H$141 -> 0
A32: Debt-to-Income Ratio | B32: ='Serviceability Calculator'!$H$142 -> 

Sheet NDI DTI Output 2 (hidden)
A1: Prospector Number | B1: ='Serviceability Calculator'!$D$128 -> 0
A2: Serviceability calculator type | B2: NDI
A3: Applicant 1 Normal Income | B3: ='Serviceability Calculator'!$C32+'Serviceability Calculator'!$D$32 -> 0
A4: Applicant 2 Normal Income | B4: ='Serviceability Calculator'!$C33+'Serviceability Calculator'!$D$33 -> 0
A5: Applicant 3 Normal Income | B5: ='Serviceability Calculator'!$C34+'Serviceability Calculator'!$D$34 -> 0
A6: Applicant 4 Normal Income | B6: =SUM('Serviceability Calculator'!$C35:$C39)+SUM('Serviceability Calculator'!$D$35:$D39) -> 0
A7: Applicant 1 Rental Income | B7: ='Serviceability Calculator'!$E$32 -> 0
A8: Applicant 2 Rental Income | B8: ='Serviceability Calculator'!$E$33 -> 0
A9: Applicant 3 Rental Income | B9: ='Serviceability Calculator'!$E$34 -> 0
A10: Applicant 4 Rental Income | B10: =SUM('Serviceability Calculator'!$E$35:$E$39) -> 0
A11: Applicant 1 Company Income | B11: ='Serviceability Calculator'!$C$54+'Serviceability Calculator'!$D$54 -> 0
A12: Applicant 2 Company Income | B12: =SUM('Serviceability Calculator'!$C$55:$C$57)+SUM('Serviceability Calculator'!$D$55:$D$57) -> 0
A13: Applicant 3 Company Income | B13: N/A
A14: Applicant 4 Company Income | B14: N/A
A15: Total Annual Gross Income | B15: ='Serviceability Calculator'!$H$60 -> 0
A16: Declared monthly living expenses | B16: =SUM('Serviceability Calculator'!$C$74,'Serviceability Calculator'!$D$74,'Serviceability Calculator'!$E$74,'Serviceability Calculator'!$H$74,'Serviceability Calculator'!$C$92,'Serviceability Calculator'!$D$92) -> 0
A17: Benchmark monthly living expenses | B17: =SUM('Serviceability Calculator'!$C$75,'Serviceability Calculator'!$D$75,'Serviceability Calculator'!$E$75,'Serviceability Calculator'!$H$75,'Serviceability Calculator'!$C$93,'Serviceability Calculator'!$D$93) -> 0
A18: Rent / Board | B18: =SUM('Serviceability Calculator'!$C$80,'Serviceability Calculator'!$D$80,'Serviceability Calculator'!$E$80,'Serviceability Calculator'!$H$80,'Serviceability Calculator'!$C$98,'Serviceability Calculator'!$D$98) -> 0
A19: Child Support | B19: =SUM('Serviceability Calculator'!$C$77:$E$79,'Serviceability Calculator'!$H$77:$H$79,'Serviceability Calculator'!$C$95:$D$97) -> 0
A20: Credit Card Debt | B20: ='Serviceability Calculator'!$C$106 -> 0
A21: Personal Loan Debt | B21: =SUM(SUMIF(ndiExisTyp,{"Personal Loan - Variable","Personal Loan - Fixed"},'Serviceability Calculator'!$C$107:$C$121)) -> 0
A22: Overdraft Debt | B22: =SUM(SUMIF(ndiExisTyp,{"Overdraft"},'Serviceability Calculator'!$C$107:$C$121)) -> 0
A23: Housing Loan Debt | B23: =SUM(SUMIF(ndiExisTyp,{"Mortgage Loan - Investment","Mortgage Loan - Owner Occupied","Private Loan",""},'Serviceability Calculator'!$C$107:$C$121)) -> 0
A24: Lease / Other Debt | B24: =SUM(SUMIF(ndiExisTyp,{"Lease / Hire Purchase","Line of Credit"},'Serviceability Calculator'!$C$107:$C$121)) -> 0
A25: Credit Card Payment | B25: ='Serviceability Calculator'!$D$106 -> 0
A26: Personal Loan Payment | B26: =SUM(SUMIF(ndiExisTyp,{"Overdraft"},'Serviceability Calculator'!$D$107:$D$121)) -> 0
A27: Overdraft Payment | B27: =SUM(SUMIF(ndiExisTyp,{"Personal Loan - Variable","Personal Loan - Fixed"},'Serviceability Calculator'!$D$107:$D$121)) -> 0
A28: Housing Loan Payment | B28: =SUM(SUMIF(ndiExisTyp,{"Mortgage Loan - Investment","Mortgage Loan - Owner Occupied","Private Loan",""},'Serviceability Calculator'!$D$107:$D$121)) -> 0
A29: Lease / Other Payment | B29: =SUM(SUMIF(ndiExisTyp,{"Lease / Hire Purchase","Line of Credit"},'Serviceability Calculator'!$D$107:$D$121)) -> 0
A30: Loan Assessment Rate | B30: ='Serviceability Calculator'!$C$135 -> 0.053
A31: Serviceability Result | B31: ='Serviceability Calculator'!$H$141 -> 0
A32: Debt-to-Income Ratio | B32: ='Serviceability Calculator'!$H$142 -> 

Sheet NDI DTI Output 3 (hidden)
A1: Prospector Number | B1: ='Serviceability Calculator'!$E$128 -> 0
A2: Serviceability calculator type | B2: NDI
A3: Applicant 1 Normal Income | B3: ='Serviceability Calculator'!$C32+'Serviceability Calculator'!$D$32 -> 0
A4: Applicant 2 Normal Income | B4: ='Serviceability Calculator'!$C33+'Serviceability Calculator'!$D$33 -> 0
A5: Applicant 3 Normal Income | B5: ='Serviceability Calculator'!$C34+'Serviceability Calculator'!$D$34 -> 0
A6: Applicant 4 Normal Income | B6: =SUM('Serviceability Calculator'!$C35:$C39)+SUM('Serviceability Calculator'!$D$35:$D39) -> 0
A7: Applicant 1 Rental Income | B7: ='Serviceability Calculator'!$E$32 -> 0
A8: Applicant 2 Rental Income | B8: ='Serviceability Calculator'!$E$33 -> 0
A9: Applicant 3 Rental Income | B9: ='Serviceability Calculator'!$E$34 -> 0
A10: Applicant 4 Rental Income | B10: =SUM('Serviceability Calculator'!$E$35:$E$39) -> 0
A11: Applicant 1 Company Income | B11: ='Serviceability Calculator'!$C$54+'Serviceability Calculator'!$D$54 -> 0
A12: Applicant 2 Company Income | B12: =SUM('Serviceability Calculator'!$C$55:$C$57)+SUM('Serviceability Calculator'!$D$55:$D$57) -> 0
A13: Applicant 3 Company Income | B13: N/A
A14: Applicant 4 Company Income | B14: N/A
A15: Total Annual Gross Income | B15: ='Serviceability Calculator'!$H$60 -> 0
A16: Declared monthly living expenses | B16: =SUM('Serviceability Calculator'!$C$74,'Serviceability Calculator'!$D$74,'Serviceability Calculator'!$E$74,'Serviceability Calculator'!$H$74,'Serviceability Calculator'!$C$92,'Serviceability Calculator'!$D$92) -> 0
A17: Benchmark monthly living expenses | B17: =SUM('Serviceability Calculator'!$C$75,'Serviceability Calculator'!$D$75,'Serviceability Calculator'!$E$75,'Serviceability Calculator'!$H$75,'Serviceability Calculator'!$C$93,'Serviceability Calculator'!$D$93) -> 0
A18: Rent / Board | B18: =SUM('Serviceability Calculator'!$C$80,'Serviceability Calculator'!$D$80,'Serviceability Calculator'!$E$80,'Serviceability Calculator'!$H$80,'Serviceability Calculator'!$C$98,'Serviceability Calculator'!$D$98) -> 0
A19: Child Support | B19: =SUM('Serviceability Calculator'!$C$77:$E$79,'Serviceability Calculator'!$H$77:$H$79,'Serviceability Calculator'!$C$95:$D$97) -> 0
A20: Credit Card Debt | B20: ='Serviceability Calculator'!$C$106 -> 0
A21: Personal Loan Debt | B21: =SUM(SUMIF(ndiExisTyp,{"Personal Loan - Variable","Personal Loan - Fixed"},'Serviceability Calculator'!$C$107:$C$121)) -> 0
A22: Overdraft Debt | B22: =SUM(SUMIF(ndiExisTyp,{"Overdraft"},'Serviceability Calculator'!$C$107:$C$121)) -> 0
A23: Housing Loan Debt | B23: =SUM(SUMIF(ndiExisTyp,{"Mortgage Loan - Investment","Mortgage Loan - Owner Occupied","Private Loan",""},'Serviceability Calculator'!$C$107:$C$121)) -> 0
A24: Lease / Other Debt | B24: =SUM(SUMIF(ndiExisTyp,{"Lease / Hire Purchase","Line of Credit"},'Serviceability Calculator'!$C$107:$C$121)) -> 0
A25: Credit Card Payment | B25: ='Serviceability Calculator'!$D$106 -> 0
A26: Personal Loan Payment | B26: =SUM(SUMIF(ndiExisTyp,{"Overdraft"},'Serviceability Calculator'!$D$107:$D$121)) -> 0
A27: Overdraft Payment | B27: =SUM(SUMIF(ndiExisTyp,{"Personal Loan - Variable","Personal Loan - Fixed"},'Serviceability Calculator'!$D$107:$D$121)) -> 0
A28: Housing Loan Payment | B28: =SUM(SUMIF(ndiExisTyp,{"Mortgage Loan - Investment","Mortgage Loan - Owner Occupied","Private Loan",""},'Serviceability Calculator'!$D$107:$D$121)) -> 0
A29: Lease / Other Payment | B29: =SUM(SUMIF(ndiExisTyp,{"Lease / Hire Purchase","Line of Credit"},'Serviceability Calculator'!$D$107:$D$121)) -> 0
A30: Loan Assessment Rate | B30: ='Serviceability Calculator'!$C$135 -> 0.053
A31: Serviceability Result | B31: ='Serviceability Calculator'!$H$141 -> 0
A32: Debt-to-Income Ratio | B32: ='Serviceability Calculator'!$H$142 -> 

Sheet Introduction (hidden)
A3: Introduction
A5: Welcome to La Trobe Financial's serviceability calculator. The Serviceability Calculator incorporates formulas to calculate clients incomes, living expenses, existing and new loan and other commitments and includes built in sensitivity for variance in interest rates. Should your clients return negative Net Disposal Income (NDI) a figure encapsulated in brackets as the result, the proposal may still be referred to La Trobe for separate assessment.
A10: Introduction
A11: There are three tabs within this worksheet:
A13: Introduction (this sheet)
A14: Serviceability Calculator
A15: Definitions
A17: How to use the Calculator
A19: Step 1 | B19: Enter the Borrowers name in the box provided, the date should pre-fill to todays date for you.
A20: Step 2 | B20: Enter each applicants household details. The household number that the applicant is a member of, relationship status and number of dependents is required for all individual applicants
A21: Step 3 | B21: Enter the Applicants Income details. Income must be correctly allocated to each individual applicant. Company income can be combined where the income is sourced from multiple company borrowers. Interest on income earning properties may be added to the calculator.
A22: Step 4 | B22: Enter the living expense details of each household. Living expenses must be separated into each individual household with living expenses broken up into their individual categories.
A23: Step 5 | B23: Enter the applicants Existing Commitments. This section is broken into two parts: Debt/Limit; and Monthly Payment. Please ensure you complete both of these sections. A sensitivity adjustment and floor assessment rate will be factored into the overall calculation of these commitments to ensure the clients can afford the repayments when their existing commitment rates fluctuate.
A24: Step 6 | B24: Enter the proposed loan amount, interest rate and loan term. The calculator will automatically give you the monthly repayment and will factor in a sensitivity and floor assessment rate. The loan term, any interest only period, loan amount and interest rate must be entered for all loans. A maximum of three (3) new loans can be entered into the calculator.

Sheet SMSF Introduction (hidden)
A3: Introduction
A5: Welcome to La Trobe Financial's SMSF serviceability calculator. The Serviceability Calculator assessed the serviceability of an SMSF loan and incorporates formulas to calculate clients SMSF contributions, SMSF income and rental income. The applicants personal income surplus may also be used to assess serviceability using income, ;living expenses, new and existing commitments and includes built in sensitivity for variance in interest rates. Should your clients return negative Net Disposal Income (NDI) a figure encapsulated in brackets as the result, the proposal may still be referred to La Trobe for separate assessment.
A6: Introduction
A7: There are three tabs within this worksheet:
A9: Introduction (this sheet)
A10: Serviceability Calculator
A11: Definitions
A13: How to use the Calculator
A15: This calculator uses a Macro in Microsoft Excel. If you have not set your version of Excel to allow Macro's you will see the yellow section on all calculators and get an error message when you click Verify Data. We recommend you Click OK and change your settings in Options (Usually in a ribbon near the top of the screen) to allow Macro's. If you do not change your settings it does not alter the calculations but this section will remain visible on the calculator whether you are required to complete it or not. If it changes to grey you do not need to complete it; if it remains yellow you will need to complete it.
A17: Step 1 | B17: Enter the Borrowers name in the box provided, the date should pre-fill to todays date for you.
A18: Step 2 | B18: Enter the SMSF Income and other assets details. We have deemed a 3.9% per annum return on other assets in the SMSF and have taken into account; Annual Rental Income and contributions to the SMSF should be entered.
A19: Step 3 | B19: Enter the SMSF Existing Commitments. This will only be if they have other SMSF loans. This section is broken into two parts: Debt/Limit; and Monthly Payment. Please ensure you complete both of these sections. A sensitivity of 2.0% will be factored into the overall calculation of these commitments to ensure the clients can afford the repayments when their existing commitment rates fluctuate.
A20: Step 4 | B20: Enter the proposed loan amount, interest rate and loan term. The calculator will automatically give you the monthly repayment, and again will factor in sensitivity buffer and floor lending rate.
A21: Step 5 | B21: Press the Verify Data button next to the maximum loan amount. If there is not sufficient capacity to service the loan from the SMSF a further section will appear in yellow which should be completed. This will enable us to take into account the income and expenditure of the beneficiaries of the SMSF to support the servicing of the loan application
A22: Step 6 | B22: Enter each applicants household details. The household number that the applicant is a member of, relationship status and number of dependents is required for all individual applicants
A23: Step 7 | B23: Enter the Applicants Income details. Income must be correctly allocated to each individual applicant. Interest on income earning properties may be added to the calculator.
A24: Step 8 | B24: Enter the living expense details of each household.
A25: Step 9 | B25: Enter the applicants Existing Commitments. This section is broken into two parts: Debt/Limit; and Monthly Payment. Please ensure you complete both of these sections. A sensitivity adjustment and floor assessment rate will be factored into the overall calculation of these commitments to ensure the clients can afford the repayments when their existing commitment rates fluctuate.

Sheet Lease Doc Intro (hidden)
A2: Welcome to La Trobe’s Lease Doc Calculator. The Calculator has been developed utilising current guidelines and attempts to provide a balanced assessment of a Lease Doc clients borrowing capacity.
A6: The Lease Doc calculator is available only for Commercial facilities and requires the rental return on an individual Commercial security to return a 120% debt coverage ratio over the particular asset. Should your clients return a result greater than 1.20%, the proposal may proceed.
A11: Introduction
A12: There are three tabs within this worksheet:
A14: Introduction (this sheet)
A15: Serviceability Calculator
A16: Definitions
A18: How to use the Calculator
A20: Step 1 | B20: Enter the Borrowers name in the box provided, the date should pre-fill to todays date for you.
A22: Step 2 | B22: Enter the proposed loan amount, interest rate and loan term. Please note, the Lease Doc product is only available for Interest Only facilities.
A25: Step 3 | B25: Enter the rental income available for the property as evidenced by the Commercial Lease over the security property and any rental statements available.
A28: We trust these hints will allow you to provide a suitable service to your clients. If you require any detailed assistance please call your La Trobe BDM or our Credit team as follows:
A31: Yours faithfully,
A34: Cory Bannister
A35: Chief Lending Officer

Sheet Non Res Introduction (hidden)
A3: Introduction
A4: Welcome to La Trobe’s Non-resident Serviceability Calculator. The Calculator has been developed utilising current guidelines and provides an assessment of non-resident clients borrowing capacity.
A7: The Serviceability Calculator incorporates formulas to calculate clients Net Incomes, mortgage repayments and includes built in sensitivity for variance in interest rates to ensure clients can afford repayments on their loan obligations.
A12: Introduction
A13: There are three tabs within this worksheet:
A15: Introduction (this sheet)
A16: Serviceability Calculator
A17: Definitions
A19: How to use the Calculator
A21: Step 1 | B21: Enter the Borrowers name in the box provided, the date should pre-fill to todays date for you.
A23: Step 2 | B23: Enter the applicants country of residence and the current exchange rate for the local currency.
A25: Step 3 | B25: Enter each applicants household details. The household number that the applicant is a member of, relationship status and number of dependents is required for all individual applicants
A28: Step 4 | B28: Enter each applicants Income details. We have separated foreign income sources from Australian income sources. Please ensure that income is not entered under both Australian and Foreign Income. Gross income and Net income is required to be entered for foreign income sources. Foreign income is to be expressed as its local currency amount. The calculator will automatically convert the amount. Please enter annual rental income separately, please ensure you separate the income correctly and do not include them twice.
A31: Step 5 | B31: Enter the living expense details of each household. Living expenses must be separated into each individual household with living expenses broken up into their individual categories. La Trobe Financial's benchmark living expenses are adjusted based on the relative cost of living of the applicants residence compared to Australia.
A32: Step 6 | B32: Enter the applicants Existing Commitments. Foreign and Australian Commitments have been separated. Please enter foreign debts and commitments expressed in their local currency. The calculator will automatically convey currency amounts. Existing Australian debts and commitments are to be expressed as Australian dollars. This section is broken into two parts: Debt/Limit; and Monthly Payment. Please ensure you complete both of these sections but do not enter the same debts as both foreign currency and AUD.
A36: Step 7 | B36: Enter the proposed loan amount, interest rate and loan term. The calculator will automatically give you the monthly repayment, factor in a floor rate and sensitivity.

Sheet HEM (hidden)
D4: "HEM Table 1" equivalent: by Income Level and Residency
F5: BASED ON PREDICTED VALUES FROM THE QUANTILE REGRESSIONS
H6: Smoothed HEM
B7: Column for lookup | C7: 2 | D7: 3 | E7: 4 | F7: 5 | G7: 6 | H7: 7 | I7: 8 | J7: 9 | K7: 10 | L7: 11 | M7: 12 | N7: 13 | O7: 14 | P7: 15
F8: Total current gross HH income from all sources (measured in current dollars)
C9: -9999999999 | D9: 24000 | E9: 36000 | F9: 48000 | G9: 61000 | H9: 73000 | I9: 97000 | J9: 121000 | K9: 145000 | L9: 170000 | M9: 194000 | N9: 242000 | O9: 303000 | P9: 363000
C10: or less | D10: to | E10: to | F10: to | G10: to | H10: to | I10: to | J10: to | K10: to | L10: to | M10: to | N10: to | O10: to | P10: to
D11: 36000 | E11: 48000 | F11: 61000 | G11: 73000 | H11: 97000 | I11: 121000 | J11: 145000 | K11: 170000 | L11: 194000 | M11: 242000 | N11: 303000 | O11: 363000 | P11: 606000
B12: Australia
B13: Couple with 0 children | C13: =D13 -> 544.1090362 | D13: 544.1090362 | E13: 559.5517471 | F13: 580.1758541 | G13: 615.9932202 | H13: 670.9641432 | I13: 745.9330627 | J13: 815.1592805 | K13: 905.7058413 | L13: 943.4339923 | M13: 991.3344736 | N13: 1112.235962 | O13: 1224.005727 | P13: 1276.443891
B14: Couple with 1 children | C14: =D14 -> 643.6546682 | D14: =E14 -> 643.6546682 | E14: 643.6546682 | F14: 664.2666377 | G14: 700.0629248 | H14: 755.001506 | I14: 829.9262869 | J14: 899.1117642 | K14: 989.6050739 | L14: 1027.31104 | M14: 1075.183221 | N14: 1196.013667 | O14: 1307.717654 | P14: 1360.124885
B15: Couple with 2 children | C15: =D15 -> 713.5206642 | D15: =E15 -> 713.5206642 | E15: 713.5206642 | F15: 734.1025403 | G15: 769.8464649 | H15: 824.7047384 | I15: 899.5200332 | J15: 968.6043772 | K15: 1058.965351 | L15: 1096.616255 | M15: 1144.418495 | N15: 1265.072278 | O15: 1376.612979 | P15: 1428.943602
B16: Couple with 3 children | C16: =D16 -> 792.0299241 | D16: 792.0299241 | E16: =F16 -> 792.0299241 | F16: 792.0299241 | G16: 827.7694623 | H16: 882.6210403 | I16: 957.4270807 | J16: 1026.502947 | K16: 1116.852887 | L16: 1154.499115 | M16: 1202.29547 | N16: 1322.934447 | O16: 1434.46146 | P16: 1486.785661
B17: Couple with 4 children | C17: =D17 -> 849.957308 | D17: 849.957308 | E17: =F17 -> 849.957308 | F17: =F16+(F16-F15) -> 849.957308 | G17: =G16+(G16-G15) -> 885.6924597 | H17: 940.5373422 | I17: 1015.334128 | J17: 1084.401516 | K17: =K16+(K16-K15) -> 1174.740423 | L17: =L16+(L16-L15) -> 1212.381975 | M17: 1260.172446 | N17: 1380.796616 | O17: 1492.309942 | P17: 1544.627721
B18: Couple with 5 children | C18: =C17+(C17-C16) -> 907.8846918 | D18: =D17+(D17-D16) -> 907.8846918 | E18: =E17+(E17-E16) -> 907.8846918 | F18: =F17+(F17-F16) -> 907.8846918 | G18: =G17+(G17-G16) -> 943.6154571 | H18: =H17+(H17-H16) -> 998.4536441 | I18: =I17+(I17-I16) -> 1073.241176 | J18: =J17+(J17-J16) -> 1142.300086 | K18: =K17+(K17-K16) -> 1232.627958 | L18: =L17+(L17-L16) -> 1270.264836 | M18: =M17+(M17-M16) -> 1318.049422 | N18: =N17+(N17-N16) -> 1438.658786 | O18: =O17+(O17-O16) -> 1550.158423 | P18: =P17+(P17-P16) -> 1602.46978
B19: Couple with 6 children | C19: 965.8120756 | D19: 965.8120756 | E19: 965.8120756 | F19: 965.8120756 | G19: 1001.538454 | H19: 1056.369946 | I19: 1131.148223 | J19: 1200.198656 | K19: 1290.515494 | L19: 1328.147696 | M19: 1375.926397 | N19: 1496.520955 | O19: 1608.006904 | P19: 1660.31184
B20: Couple with 7 children | C20: 1023.739459 | D20: 1023.739459 | E20: 1023.739459 | F20: 1023.739459 | G20: 1059.461452 | H20: 1114.286248 | I20: 1189.055271 | J20: 1258.097225 | K20: 1348.403029 | L20: 1386.030556 | M20: 1433.803373 | N20: 1554.383124 | O20: 1665.855385 | P20: 1718.153899
B21: Couple with 8 children | C21: 1081.666843 | D21: 1081.666843 | E21: 1081.666843 | F21: 1081.666843 | G21: 1117.384449 | H21: 1172.20255 | I21: 1246.962318 | J21: 1315.995795 | K21: 1406.290565 | L21: 1443.913416 | M21: 1491.680349 | N21: 1612.245294 | O21: 1723.703867 | P21: 1775.995958
B22: Couple with 9 children | C22: 1139.594227 | D22: 1139.594227 | E22: 1139.594227 | F22: 1139.594227 | G22: 1175.307447 | H22: 1230.118852 | I22: 1304.869366 | J22: 1373.894364 | K22: 1464.178101 | L22: 1501.796276 | M22: 1549.557325 | N22: 1670.107463 | O22: 1781.552348 | P22: 1833.838018
B23: Couple with 10 children | C23: 1197.521611 | D23: 1197.521611 | E23: 1197.521611 | F23: 1197.521611 | G23: 1233.230444 | H23: 1288.035154 | I23: 1362.776413 | J23: 1431.792934 | K23: 1522.065636 | L23: 1559.679137 | M23: 1607.4343 | N23: 1727.969632 | O23: 1839.400829 | P23: 1891.680077
B24: Single with 0 children | C24: 277.2711523 | D24: 291.3604434 | E24: 306.7605773 | F24: 327.3278294 | G24: 363.046401 | H24: 417.8657662 | I24: 492.627958 | J24: 561.6632923 | K24: 651.9601993 | L24: 689.5843557 | M24: 737.3526653 | N24: 857.9208542 | O24: 969.3824081 | P24: 1021.67598
B25: Single with 1 children | C25: =D25 -> 394.3567771 | D25: 394.3567771 | E25: 409.867348 | F25: 430.5821635 | G25: 466.55696 | H25: 521.7695938 | I25: 597.0681061 | J25: 666.5986328 | K25: 757.5433088 | L25: 795.4373645 | M25: 843.5483431 | N25: 964.9814539 | O25: 1077.242603 | P25: 1129.911232
B26: Single with 2 children | C26: =D26 -> 500.1577341 | D26: 500.1577341 | E26: 515.6897863 | F26: 536.4332261 | G26: 572.4577494 | H26: 627.7467111 | I26: 703.149251 | J26: 772.7759429 | K26: 863.846329 | L26: 901.7927645 | M26: 949.9702454 | N26: 1071.571191 | O26: 1183.987552 | P26: 1236.728984
B27: Single with 3 children | C27: =D27 -> 621.5122245 | D27: =E27 -> 621.5122245 | E27: 621.5122245 | F27: 642.2842886 | G27: 678.3585388 | H27: 733.7238285 | I27: 809.2303958 | J27: 878.9532531 | K27: 970.1493492 | L27: 1008.148164 | M27: 1056.392148 | N27: 1178.160928 | O27: 1290.732501 | P27: 1343.546735
B28: Single with 4 children | C28: =D28 -> 727.3346628 | D28: =E28 -> 727.3346628 | E28: =E27+(E27-E26) -> 727.3346628 | F28: 748.1353511 | G28: 784.2593282 | H28: 839.7009458 | I28: 915.3115406 | J28: 985.1305632 | K28: 1076.452369 | L28: 1114.503564 | M28: 1162.81405 | N28: 1284.750665 | O28: 1397.47745 | P28: 1450.364487
B29: Single with 5 children | C29: =D29 -> 833.1571011 | D29: 833.1571011 | E29: =E28+(E28-E27) -> 833.1571011 | F29: =F28+(F28-F27) -> 853.9864136 | G29: =G28+(G28-G27) -> 890.1601176 | H29: =H28+(H28-H27) -> 945.6780632 | I29: =I28+(I28-I27) -> 1021.392685 | J29: =J28+(J28-J27) -> 1091.307873 | K29: =K28+(K28-K27) -> 1182.75539 | L29: 1220.858964 | M29: 1269.235952 | N29: 1391.340403 | O29: 1504.2224 | P29: 1557.182238
B30: Single with 6 children | C30: =D30 -> 938.9795394 | D30: 938.9795394 | E30: 938.9795394 | F30: 959.8374761 | G30: 996.060907 | H30: 1051.655181 | I30: 1127.47383 | J30: 1197.485183 | K30: 1289.05841 | L30: 1327.214364 | M30: 1375.657855 | N30: 1497.93014 | O30: 1610.967349 | P30: 1663.999989
B31: Single with 7 children | C31: =D31 -> 1044.801978 | D31: 1044.801978 | E31: 1044.801978 | F31: 1065.688539 | G31: 1101.961696 | H31: 1157.632298 | I31: 1233.554975 | J31: 1303.662494 | K31: 1395.36143 | L31: 1433.569764 | M31: 1482.079757 | N31: 1604.519877 | O31: 1717.712298 | P31: 1770.817741
B32: Single with 8 children | C32: =D32 -> 1150.624416 | D32: 1150.624416 | E32: 1150.624416 | F32: 1171.539601 | G32: 1207.862486 | H32: 1263.609415 | I32: 1339.63612 | J32: 1409.839804 | K32: 1501.66445 | L32: 1539.925164 | M32: 1588.501659 | N32: 1711.109614 | O32: 1824.457247 | P32: 1877.635492
B33: Single with 9 children | C33: =D33 -> 1256.446854 | D33: 1256.446854 | E33: 1256.446854 | F33: 1277.390664 | G33: 1313.763275 | H33: 1369.586533 | I33: 1445.717265 | J33: 1516.017114 | K33: 1607.96747 | L33: 1646.280564 | M33: 1694.923562 | N33: 1817.699351 | O33: 1931.202196 | P33: 1984.453244
B34: Single with 10 children | C34: =D34 -> 1362.269293 | D34: 1362.269293 | E34: 1362.269293 | F34: 1383.241726 | G34: 1419.664064 | H34: 1475.56365 | I34: 1551.79841 | J34: 1622.194424 | K34: 1714.27049 | L34: 1752.635964 | M34: 1801.345464 | N34: 1924.289088 | O34: 2037.947146 | P34: 2091.270995
B45: "HEM Table 1" equivalent
B46: BASED ON RAW DATA
B47: Smoothed HEM
B48: WORKFORCE STATUS HEAD NOT USED | C48: Including Housing $ per week | D48: Other than Housing S per week
B49: Couple | C49: - | D49: 649.86875
B50: Couple with 1 child | C50: - | D50: 858.9402404
B51: Couple with 2 children | C51: - | D51: 911.1290865 | I51: $ per Week | J51: $ per Month
B52: Couple with 3 children | C52: - | D52: 989.2208333 | H52: Single | I52: 301 | J52: =I52*52/12 -> 1304.333333
H53: Couples | I53: 650 | J53: =I53*52/12 -> 2816.666667
B54: Single person | C54: - | D54: 301.1258173 | H54: Children | I54: 409 | J54: =(I54-I52)*52/12 -> 468
B55: Single parent with 1 child | C55: - | D55: 409.0383173
B56: Single parent with 2 children | C56: - | D56: 493.369375
B57: Single parent with 3 children | C57: - | D57: 577.7004327
B68: Monthly HEM
B71: Column for lookup | C71: 2 | D71: 3 | E71: 4 | F71: 5 | G71: 6 | H71: 7 | I71: 8 | J71: 9 | K71: 10
F72: Total current gross HH income from all sources (measured in current dollars)
C73: 0 | D73: 24000 | E73: 36000 | F73: 48000 | G73: 61000 | H73: 73000 | I73: 97000 | J73: 121000 | K73: 145000
C74: or less | D74: to | E74: to | F74: to | G74: to | H74: to | I74: to | J74: to | K74: to
D75: 36000 | E75: 48000 | F75: 61000 | G75: 73000 | H75: 97000 | I75: 121000 | J75: 145000 | K75: 170000
B76: Australia
B77: Couple with 0 children | C77: =C13*52/12 -> 2357.805824 | D77: =D13*52/12 -> 2357.805824 | E77: 2424.724237 | F77: 2514.095368 | G77: 2669.303954 | H77: 2907.511287 | I77: 3232.376605 | J77: 3532.356882 | K77: 3924.725312
B78: Couple with 1 children | C78: =C14*52/12 -> 2789.170229 | D78: 2789.170229 | E78: 2789.170229 | F78: 2878.488763 | G78: 3033.606007 | H78: 3271.673192 | I78: 3596.347243 | J78: 3896.150978 | K78: 4288.288654
B79: Couple with 2 children | C79: =C15*52/12 -> 3091.922878 | D79: 3091.922878 | E79: 3091.922878 | F79: 3181.111008 | G79: 3336.001348 | H79: 3573.720533 | I79: 3897.920144 | J79: 4197.285634 | K79: 4588.849856
B80: Couple with 3 children | C80: =C16*52/12 -> 3432.129671 | D80: 3432.129671 | E80: 3432.129671 | F80: 3432.129671 | G80: 3587.001003 | H80: 3824.691175 | I80: 4148.850683 | J80: 4448.179436 | K80: 4839.695844
B81: Couple with 4 children | C81: =C17*52/12 -> 3683.148335 | D81: 3683.148335 | E81: 3683.148335 | F81: 3683.148335 | G81: 3838.000659 | H81: 4075.661816 | I81: 4399.781222 | J81: 4699.073238 | K81: 5090.541832
B82: Couple with 5 children | C82: =C18*52/12 -> 3934.166998 | D82: 3934.166998 | E82: 3934.166998 | F82: 3934.166998 | G82: 4089.000314 | H82: 4326.632458 | I82: 4650.711761 | J82: 4949.967039 | K82: 5341.387819
B83: Couple with 6 children | C83: =C19*52/12 -> 4185.185661 | D83: 4185.185661 | E83: 4185.185661 | F83: 4185.185661 | G83: 4339.999969 | H83: 4577.6031 | I83: 4901.6423 | J83: 5200.860841 | K83: 5592.233807
B84: Couple with 7 children | C84: =C20*52/12 -> 4436.204324 | D84: 4436.204324 | E84: 4436.204324 | F84: 4436.204324 | G84: 4590.999625 | H84: 4828.573741 | I84: 5152.57284 | J84: 5451.754643 | K84: 5843.079794
B85: Couple with 8 children | C85: =C21*52/12 -> 4687.222987 | D85: 4687.222987 | E85: 4687.222987 | F85: 4687.222987 | G85: 4841.99928 | H85: 5079.544383 | I85: 5403.503379 | J85: 5702.648444 | K85: 6093.925782
B86: Couple with 9 children | C86: =C22*52/12 -> 4938.241651 | D86: 4938.241651 | E86: 4938.241651 | F86: 4938.241651 | G86: 5092.998935 | H86: 5330.515024 | I86: 5654.433918 | J86: 5953.542246 | K86: 6344.77177
B87: Couple with 10 children | C87: =C23*52/12 -> 5189.260314 | D87: 5189.260314 | E87: 5189.260314 | F87: 5189.260314 | G87: 5343.998591 | H87: 5581.485666 | I87: 5905.364457 | J87: 6204.436047 | K87: 6595.617757
B89: Single with 0 children | C89: =C24*52/12 -> 1201.508327 | D89: 1262.561922 | E89: 1329.295835 | F89: 1418.420594 | G89: 1573.201071 | H89: 1810.751653 | I89: 2134.721151 | J89: 2433.874266 | K89: 2825.160864
B90: Single with 1 children | C90: =C25*52/12 -> 1708.879368 | D90: 1708.879368 | E90: 1776.091841 | F90: 1865.856042 | G90: 2021.746827 | H90: 2261.001573 | I90: 2587.295127 | J90: 2888.594076 | K90: 3282.687672
B91: Single with 2 children | C91: =C26*52/12 -> 2167.350181 | D91: 2167.350181 | E91: 2234.65574 | F91: 2324.54398 | G91: 2480.650247 | H91: 2720.235748 | I91: 3046.980088 | J91: 3348.695753 | K91: 3743.334092
B92: Single with 3 children | C92: =C27*52/12 -> 2693.21964 | D92: 2693.21964 | E92: 2693.21964 | F92: 2783.231917 | G92: 2939.553668 | H92: 3179.469923 | I92: 3506.665048 | J92: 3808.79743 | K92: 4203.980513
B93: Single with 4 children | C93: =C28*52/12 -> 3151.783539 | D93: 3151.783539 | E93: 3151.783539 | F93: 3241.919855 | G93: 3398.457089 | H93: 3638.704099 | I93: 3966.350009 | J93: 4268.899107 | K93: 4664.626934
B94: Single with 5 children | C94: =C29*52/12 -> 3610.347438 | D94: 3610.347438 | E94: 3610.347438 | F94: 3700.607792 | G94: 3857.360509 | H94: 4097.938274 | I94: 4426.03497 | J94: 4729.000784 | K94: 5125.273355
B95: Single with 6 children | C95: =C30*52/12 -> 4068.911337 | D95: 4068.911337 | E95: 4068.911337 | F95: 4159.29573 | G95: 4316.26393 | H95: 4557.172449 | I95: 4885.719931 | J95: 5189.102461 | K95: 5585.919775
B96: Single with 7 children | C96: =C31*52/12 -> 4527.475237 | D96: 4527.475237 | E96: 4527.475237 | F96: 4617.983668 | G96: 4775.167351 | H96: 5016.406624 | I96: 5345.404892 | J96: 5649.204139 | K96: 6046.566196
B97: Single with 8 children | C97: =C32*52/12 -> 4986.039136 | D97: 4986.039136 | E97: 4986.039136 | F97: 5076.671605 | G97: 5234.070771 | H97: 5475.640799 | I97: 5805.089853 | J97: 6109.305816 | K97: 6507.212617
B98: Single with 9 children | C98: =C33*52/12 -> 5444.603035 | D98: 5444.603035 | E98: 5444.603035 | F98: 5535.359543 | G98: 5692.974192 | H98: 5934.874975 | I98: 6264.774814 | J98: 6569.407493 | K98: 6967.859038
B99: Single with 10 children | C99: =C34*52/12 -> 5903.166934 | D99: 5903.166934 | E99: 5903.166934 | F99: 5994.04748 | G99: 6151.877613 | H99: 6394.10915 | I99: 6724.459775 | J99: 7029.50917 | K99: 7428.505458

Sheet Commercial Introduction (hidden)
A3: Introduction
A5: There are three tabs within this worksheet:
A7: Introduction (this sheet)
A8: Serviceability Calculator
A9: Definitions
A11: How to use the Calculator
A13: Step 1 | B13: Enter the Borrowers name in the box provided, the date should pre-fill to todays date for you.
A14: Step 2 | B14: Enter details of each new Commercial loan being applied for.
A15: Step 3 | B15: Enter the companies income postion. Please enter all relevant company income and addbacks required for the assessment.
A16: Step 4 | B16: Enter the companies exisitng debt commitments including interest charged and loan repayments. All existing commitments are required to be entered.
A17: Step 5 | B17: Enter each applicants household details. The household number that the applicant is a member of, relationship status and number of dependents is required for all individual applicants
A18: Step 6 | B18: Enter the Applicants Income details. Income must be correctly allocated to each individual applicant. Company income can be combined where the income is sourced from multiple company borrowers. Interest on income earning properties may be added to the calculator.
A19: Step 7 | B19: Total and enter the living expense details for each household.
A20: Step 8 | B20: Enter the applicants Existing Commitments. This section is broken into two parts: Debt/Limit; and Monthly Payment. Please ensure you complete both of these sections. A sensitivity adjustment and floor assessment rate will be factored into the overall calcuation of these commitments to ensure the clients can afford the repayments when their existing commitment rates fluctuate.
A21: Step 9 | B21: Review the results. The calculator will confirm whether the loan passess the minimim Interest Cover Ratio of 1.50 times coverage and Debt Service Coverage Ratio of 1.00 times coverage.

Sheet Commercial DTI Output (hidden)
A1: Prospector Number | B1: ='Commercial Calculator'!$C$11 -> 0
A2: Serviceability calculator type | B2: ICR
A3: Applicant 1 Normal Income | B3: ='Commercial Calculator'!$C65+'Commercial Calculator'!$D65 -> 0
A4: Applicant 2 Normal Income | B4: ='Commercial Calculator'!$C66+'Commercial Calculator'!$D66 -> 0
A5: Applicant 3 Normal Income | B5: ='Commercial Calculator'!$C67+'Commercial Calculator'!$D67 -> 0
A6: Applicant 4 Normal Income | B6: ='Commercial Calculator'!$C68+'Commercial Calculator'!$D68 -> 0
A7: Applicant 1 Rental Income | B7: ='Commercial Calculator'!$E65 -> 0
A8: Applicant 2 Rental Income | B8: ='Commercial Calculator'!$E66 -> 0
A9: Applicant 3 Rental Income | B9: ='Commercial Calculator'!$E67 -> 0
A10: Applicant 4 Rental Income | B10: ='Commercial Calculator'!$E68 -> 0
A11: Applicant 1 Company Income | B11: ='Commercial Calculator'!$C$34 -> 0
A12: Applicant 2 Company Income | B12: 0
A13: Applicant 3 Company Income | B13: N/A
A14: Applicant 4 Company Income | B14: N/A
A15: Total Annual Gross Income | B15: ='Commercial Calculator'!$C$102 -> 0
A16: Declared monthly living expenses | B16: ='Commercial Calculator'!$C$78 -> 0
A17: Benchmark monthly living expenses | B17: ='Commercial Calculator'!$C$79 -> 0
A18: Rent / Board | B18: ='Commercial Calculator'!$C$80 -> 0
A19: Child Support | B19: ='Commercial Calculator'!$C$81 -> 0
A20: Credit Card Debt | B20: ='Commercial Calculator'!$C$85 -> 0
A21: Personal Loan Debt | B21: =SUM(SUMIF('Commercial Calculator'!$A$86:$A$92,{"Personal Loan - Variable","Personal Loan - Fixed"},'Commercial Calculator'!$C$86:$C$92)) -> 0
A22: Overdraft Debt | B22: =SUM(SUMIF('Commercial Calculator'!$A$86:$A$92,{"Overdraft"},'Commercial Calculator'!$C$86:$C$92)) -> 0
A23: Housing Loan Debt | B23: =SUM(SUMIF('Commercial Calculator'!$A$86:$A$92,{"Mortgage Loan - Investment","Mortgage Loan - Owner Occupied","Private Loan",""},'Commercial Calculator'!$C$86:$C$92)) -> 0
A24: Lease / Other Debt | B24: =SUM(SUMIF('Commercial Calculator'!$A$86:$A$92,{"Lease / Hire Purchase","Line of Credit"},'Commercial Calculator'!$C$86:$C$92)) -> 0
A25: Credit Card Payment | B25: ='Commercial Calculator'!$D$85 -> 0
A26: Personal Loan Payment | B26: =SUM(SUMIF('Commercial Calculator'!$A$86:$A$92,{"Personal Loan - Variable","Personal Loan - Fixed"},'Commercial Calculator'!$D$86:$D$92)) -> 0
A27: Overdraft Payment | B27: =SUM(SUMIF('Commercial Calculator'!$A$86:$A$92,{"Overdraft"},'Commercial Calculator'!$D$86:$D$92)) -> 0
A28: Housing Loan Payment | B28: =SUM(SUMIF('Commercial Calculator'!$A$86:$A$92,{"Mortgage Loan - Investment","Mortgage Loan - Owner Occupied","Private Loan",""},'Commercial Calculator'!$D$86:$D$92)) -> 0
A29: Lease / Other Payment | B29: =SUM(SUMIF('Commercial Calculator'!$A$86:$A$92,{"Lease / Hire Purchase","Line of Credit"},'Commercial Calculator'!$D$86:$D$92)) -> 0
A30: Loan Assessment Rate | B30: ='Commercial Calculator'!$C$23 -> 0.053
A31: Serviceability Result | B31: ='Commercial Calculator'!$G$108 -> 0
A32: Debt-to-Income Ratio | B32: ='Commercial Calculator'!G107 -> 

Sheet Commercial Calculator (hidden)
A11: Prospector number:
A12: Applicant Name:
A14: New Commercial Commitments | C14: Loan 1 | D14: Loan 2 | E14: Loan 3
A15: Loan appraisal number
A16: Repayment Type | C16: =IF(C17=0,"",IF(C17>C18,"Principal & Interest","Interest Only")) ->  | D16: =IF(D17=0,"",IF(D17>D18,"Principal & Interest","Interest Only")) ->  | E16: =IF(E17=0,"",IF(E17>E18,"Principal & Interest","Interest Only")) -> 
A17: New Loan Term (Years) | C17: 0 | D17: 0 | E17: 0
A18: Interest Only Term (Years) | C18: 0 | D18: 0 | E18: 0
A19: New Loan Amount | C19: 0 | D19: 0 | E19: 0
A20: Interest Rate of New Loan | C20: 0 | D20: 0 | E20: 0
A21: New monthly interest amount | C21: =C19*C20/12 -> 0 | D21: =D19*D20/12 -> 0 | E21: 0
A22: New Monthly Loan Repayment/s | C22: =IFERROR(IF(C$16="",0,(IF(C$16="Principal & Interest",-PMT(C$20/12,(C$17-C$18)*12,C$19,0,0)+15,((C$19*C$20)/12)+15))),0) -> 0 | D22: =IFERROR(IF(D$16="",0,(IF(D$16="Principal & Interest",-PMT(D$20/12,(D$17-D$18)*12,D$19,0,0)+15,((D$19*D$20)/12)+15))),0) -> 0 | E22: =IFERROR(IF(E$16="",0,(IF(E$16="Principal & Interest",-PMT(E$20/12,(E$17-E$18)*12,E$19,0,0)+15,((E$19*E$20)/12)+15))),0) -> 0 | G22: =SUM($C$22:$E$22) -> 0
A23: Loan Assessment Rate (minimum 5.5%) | C23: =IF(C20+RepayCalculator!$B$6>RepayCalculator!$B$9,C20+RepayCalculator!$B$6,RepayCalculator!$B$9) -> 0.053 | D23: =IF(D20+RepayCalculator!$B$6>RepayCalculator!$B$9,D20+RepayCalculator!$B$6,RepayCalculator!$B$9) -> 0.053 | E23: =IF(E20+RepayCalculator!$B$6>RepayCalculator!$B$9,E20+RepayCalculator!$B$6,RepayCalculator!$B$9) -> 0.053
A24: Stressed Loan Payments | C24: =IFERROR(IF(C$16="",0,(IF(C$16="Principal & Interest",-PMT(C$23/12,(C$17-C$18)*12,C$19,0,0)+15,((C$19*C$23)/12)+15))),0) -> 0 | D24: =IFERROR(IF(D$16="",0,(IF(D$16="Principal & Interest",-PMT(D$23/12,(D$17-D$18)*12,D$19,0,0)+15,((D$19*D$23)/12)+15))),0) -> 0 | E24: =IFERROR(IF(E$16="",0,(IF(E$16="Principal & Interest",-PMT(E$23/12,(E$17-E$18)*12,E$19,0,0)+15,((E$19*E$23)/12)+15))),0) -> 0 | G24: =SUM($C$24:$E$24) -> 0
A25: Stressed Interest Payments | C25: =C19*C23/12 -> 0 | D25: =D19*D23/12 -> 0 | E25: 0
A28: Business Income & Expenses (Company, Trust, Sole Trader/Partnership)
A29: Business income | C29: Annual Income | D29: Assessment Income
A30: Earnings before interest and tax (EBIT) | C30: 0 | D30: =C30 -> 0
A31: New Rental Income | C31: 0 | D31: =C31*80% -> 0
A32: Addbacks | C32: 0 | D32: =C32 -> 0
A33: Other | C33: 0 | D33: 0
A34: Total Company Income | C34: =SUM($C$30:$C$31,C32:$C$33) -> 0 | D34: =SUM($D$30:$D$31,$D32:D$33) -> 0 | G34: =D34/12 -> 0
A36: Business Commitments | C36: Debt | D36: Interest | E36: Monthly Payment
A37: Credit Cards | C37: 0 | D37: 0.2 | E37: =C37*3.8% -> 0
C38: 0 | D38: 0 | E38: 0 | F38: =IFERROR(RATE(360,E38,C38*-1,0,0,0.1)*12,0) -> 0 | G38: =IF(PMT((F38+RepayCalculator!$B$6)/12,360,C38,0,0)<(PMT(RepayCalculator!$B$9/12,360,C38,0,0)),(PMT((F38+RepayCalculator!$B$6)/12,360,C38,0,0)*-1)-E38,(PMT((RepayCalculator!$B$9)/12,360,C38,0,0)*-1)-E38) -> 0
C39: 0 | D39: 0 | E39: 0 | F39: =IFERROR(RATE(360,D39,C39*-1,0,0,0.1)*12,0) -> 0 | G39: =IF(PMT((F39+RepayCalculator!$B$6)/12,360,C39,0,0)<(PMT(RepayCalculator!$B$9/12,360,C39,0,0)),(PMT((F39+RepayCalculator!$B$6)/12,360,C39,0,0)*-1)-D39,(PMT((RepayCalculator!$B$9)/12,360,C39,0,0)*-1)-D39) -> 0
C40: 0 | D40: 0 | E40: 0 | F40: 0 | G40: =IF(PMT((F40+RepayCalculator!$B$6)/12,360,C40,0,0)<(PMT(RepayCalculator!$B$9/12,360,C40,0,0)),(PMT((F40+RepayCalculator!$B$6)/12,360,C40,0,0)*-1)-D40,(PMT((RepayCalculator!$B$9)/12,360,C40,0,0)*-1)-D40) -> 0
C41: 0 | D41: 0 | E41: 0 | F41: 0 | G41: =IF(PMT((F41+RepayCalculator!$B$6)/12,360,C41,0,0)<(PMT(RepayCalculator!$B$9/12,360,C41,0,0)),(PMT((F41+RepayCalculator!$B$6)/12,360,C41,0,0)*-1)-D41,(PMT((RepayCalculator!$B$9)/12,360,C41,0,0)*-1)-D41) -> 0
C42: 0 | D42: 0 | E42: 0 | F42: 0 | G42: =IF(PMT((F42+RepayCalculator!$B$6)/12,360,C42,0,0)<(PMT(RepayCalculator!$B$9/12,360,C42,0,0)),(PMT((F42+RepayCalculator!$B$6)/12,360,C42,0,0)*-1)-D42,(PMT((RepayCalculator!$B$9)/12,360,C42,0,0)*-1)-D42) -> 0
C43: 0 | D43: 0 | E43: 0 | F43: 0 | G43: =IF(PMT((F43+RepayCalculator!$B$6)/12,360,C43,0,0)<(PMT(RepayCalculator!$B$9/12,360,C43,0,0)),(PMT((F43+RepayCalculator!$B$6)/12,360,C43,0,0)*-1)-D43,(PMT((RepayCalculator!$B$9)/12,360,C43,0,0)*-1)-D43) -> 0
A44: Total exiting commitments | C44: =SUM(C37:C43) -> 0 | D44: =SUMPRODUCT($C$37:$C$43,$D$37:$D$43)/12 -> 0 | E44: =SUM(E37:E43) -> 0
A45: add existing commitment stress | D45: =SUM(SUMIF($A$38:$A$43,{"Mortgage Loan - Investment","Mortgage Loan - Owner Occupied","Personal Loan - Variable","Overdraft","Line of Credit",""},$C$38:$C$43))*RepayCalculator!$B$48/12 -> 0 | E45: =SUM(SUMIF($A$38:$A$43,{"Mortgage Loan - Investment","Mortgage Loan - Owner Occupied","Personal Loan - Variable","Overdraft","Line of Credit",""},$G$38:$G$43)) -> 0
A46: Stressed existing commitments | D46: =SUM(D44:D45) -> 0 | E46: =SUM(E44:E45) -> 0
A49: Personal Income & Expenses (only required if business unable to support own debt position)
A50: Personal Details
A51: Household Status | C51: Household | D51: Status | E51: Dependents (only enter once for each household)
A52: Applicant 1
A53: Applicant 2
A54: Applicant 3
A55: Applicant 4
A57: HEM Status | C57: Status | D57: Dependents | E57: Long Description | F57: Income for HEM | H57: Household HEM
A58: Household 1 | C58: =_xlfn.IFNA(VLOOKUP(A58,$C$52:$D$55,2,FALSE),"N/A") -> N/A | D58: =SUMIF($C$52:$C$55,A58,$E$52:$E$55) -> 0 | E58: =C58&" with "&D58&" children" -> N/A with 0 children | F58: =SUMIF($B$65:$B$68,A58,$C$65:$C$68)+SUMIF($B$72:$B$75,A58,$G$72:$G$75)+SUMIF($B$65:$B$68,A58,$D$65:$D$68) -> 0 | G58: =LOOKUP(F58,HEM!$C$9:$K$9,HEM!$C$7:$K$7) -> 2 | H58: =_xlfn.IFNA(VLOOKUP(E58,HEM!$B$12:$P$34,G58,FALSE),0)*52/12 -> 0
A59: Household 2 | C59: =_xlfn.IFNA(VLOOKUP(A59,$C$52:$D$55,2,FALSE),"N/A") -> N/A | D59: =SUMIF($C$52:$C$55,A59,$E$52:$E$55) -> 0 | E59: =C59&" with "&D59&" children" -> N/A with 0 children | F59: =SUMIF($B$65:$B$68,A59,$C$65:$C$68)+SUMIF($B$72:$B$75,A59,$G$72:$G$75)+SUMIF($B$65:$B$68,A59,$D$65:$D$68) -> 0 | G59: =LOOKUP(F59,HEM!$C$9:$K$9,HEM!$C$7:$K$7) -> 2 | H59: =_xlfn.IFNA(VLOOKUP(E59,HEM!$B$12:$P$34,G59,FALSE),0)*52/12 -> 0
A60: Household 3 | C60: N/A | D60: 0 | E60: =C60&" with "&D60&" children" -> N/A with 0 children | F60: 0 | G60: =LOOKUP(F60,HEM!$C$9:$K$9,HEM!$C$7:$K$7) -> 2 | H60: =_xlfn.IFNA(VLOOKUP(E60,HEM!$B$12:$P$34,G60,FALSE),0)*52/12 -> 0
A61: Household 4 | C61: N/A | D61: 0 | E61: =C61&" with "&D61&" children" -> N/A with 0 children | F61: 0 | G61: =LOOKUP(F61,HEM!$C$9:$K$9,HEM!$C$7:$K$7) -> 2 | H61: =_xlfn.IFNA(VLOOKUP(E61,HEM!$B$12:$P$34,G61,FALSE),0)*52/12 -> 0
A62: Total | H62: =SUM(H58:H61) -> 0
A64: Income - Personal | C64: Gross Taxable Income | D64: Gross Non-taxable Income | E64: Gross Rental Income | F64: Gross Income - Taxable | G64: Gross Income - Non-taxable | H64: Net Monthly Income
A65: Applicant 1 - Personal Income | B65: =C52 -> 0 | C65: 0 | D65: 0 | E65: 0 | F65: =C65+G72 -> 0 | G65: =(C72*12)+D65 -> 0 | H65: ='Tax Scales'!$BC$14+(G65/12) -> 0
A66: Applicant 2 - Personal Income | B66: =C53 -> 0 | C66: 0 | D66: 0 | E66: 0 | F66: =C66+G73 -> 0 | G66: =(C73*12)+D66 -> 0 | H66: ='Tax Scales'!$BC$27+(G66/12) -> 0
A67: Applicant 3 - Personal Income | B67: 0 | C67: 0 | D67: 0 | E67: 0 | F67: 0 | G67: 0 | H67: ='Tax Scales'!$BC$40+(G67/12) -> 0
A68: Applicant 4 - Personal Income | B68: 0 | C68: 0 | D68: 0 | E68: 0 | F68: 0 | G68: 0 | H68: ='Tax Scales'!$BC$53+(G68/12) -> 0
H69: =SUM(H65:H68) -> 0
A71: Interest on Rental Properties | C71: Monthly Interest Expense (for gearing purposes only) | F71: Gross Annual Income - less haircut | G71: Net Rental Income
A72: Applicant 1 - Interest expense on rental properties | B72: =C52 -> 0 | C72: 0 | F72: =E65*RepayCalculator!$B$44 -> 0 | G72: =F72-(C72*12) -> 0
A73: Applicant 2 - Interest expense on rental properties | B73: =C53 -> 0 | C73: 0 | F73: =E66*RepayCalculator!$B$44 -> 0 | G73: =F73-(C73*12) -> 0
A74: Applicant 3 - Interest expense on rental properties | B74: =C54 -> 0 | C74: 0 | F74: =E67*RepayCalculator!$B$44 -> 0 | G74: =F74-(C74*12) -> 0
A75: Applicant 4 - Interest expense on rental properties | B75: =C55 -> 0 | C75: 0 | F75: =E68*RepayCalculator!$B$44 -> 0 | G75: =F75-(C75*12) -> 0
A77: Living Expenses
A78: Declared Living Expenses | C78: 0
A79: Benchmark Living Expenses | C79: =H62 -> 0
A80: Rent/Board | C80: 0
A81: Child Support / Maintenance | C81: 0
A82: Living Expenses for Servicing | H82: =IF(C78>C79,C78,C79)+SUM($C$80:$C$81) -> 0
A84: Existing Commitments - Personal | C84: Debt | D84: Monthly Payment
A85: Credit Cards | C85: 0 | D85: =C85*3.8% -> 0
C86: 0 | D86: 0 | F86: =IFERROR(RATE(360,D86,C86*-1,0,0,0.1)*12,0) -> 0 | G86: =IF(PMT((F86+RepayCalculator!$B$6)/12,360,C86,0,0)<(PMT(RepayCalculator!$B$9/12,360,C86,0,0)),(PMT((F86+RepayCalculator!$B$6)/12,360,C86,0,0)*-1)-D86,(PMT((RepayCalculator!$B$9)/12,360,C86,0,0)*-1)-D86) -> 0
C87: 0 | D87: 0 | F87: =IFERROR(RATE(360,D87,C87*-1,0,0,0.1)*12,0) -> 0 | G87: =IF(PMT((F87+RepayCalculator!$B$6)/12,360,C87,0,0)<(PMT(RepayCalculator!$B$9/12,360,C87,0,0)),(PMT((F87+RepayCalculator!$B$6)/12,360,C87,0,0)*-1)-D87,(PMT((RepayCalculator!$B$9)/12,360,C87,0,0)*-1)-D87) -> 0
C88: 0 | D88: 0 | F88: 0 | G88: =IF(PMT((F88+RepayCalculator!$B$6)/12,360,C88,0,0)<(PMT(RepayCalculator!$B$9/12,360,C88,0,0)),(PMT((F88+RepayCalculator!$B$6)/12,360,C88,0,0)*-1)-D88,(PMT((RepayCalculator!$B$9)/12,360,C88,0,0)*-1)-D88) -> 0
C89: 0 | D89: 0 | F89: 0 | G89: =IF(PMT((F89+RepayCalculator!$B$6)/12,360,C89,0,0)<(PMT(RepayCalculator!$B$9/12,360,C89,0,0)),(PMT((F89+RepayCalculator!$B$6)/12,360,C89,0,0)*-1)-D89,(PMT((RepayCalculator!$B$9)/12,360,C89,0,0)*-1)-D89) -> 0
C90: 0 | D90: 0 | F90: 0 | G90: =IF(PMT((F90+RepayCalculator!$B$6)/12,360,C90,0,0)<(PMT(RepayCalculator!$B$9/12,360,C90,0,0)),(PMT((F90+RepayCalculator!$B$6)/12,360,C90,0,0)*-1)-D90,(PMT((RepayCalculator!$B$9)/12,360,C90,0,0)*-1)-D90) -> 0
C91: 0 | D91: 0 | F91: 0 | G91: =IF(PMT((F91+RepayCalculator!$B$6)/12,360,C91,0,0)<(PMT(RepayCalculator!$B$9/12,360,C91,0,0)),(PMT((F91+RepayCalculator!$B$6)/12,360,C91,0,0)*-1)-D91,(PMT((RepayCalculator!$B$9)/12,360,C91,0,0)*-1)-D91) -> 0
C92: 0 | D92: 0 | F92: =IFERROR(RATE(360,D92,C92*-1,0,0,0.1)*12,0) -> 0 | G92: =IF(PMT((F92+RepayCalculator!$B$6)/12,360,C92,0,0)<(PMT(RepayCalculator!$B$9/12,360,C92,0,0)),(PMT((F92+RepayCalculator!$B$6)/12,360,C92,0,0)*-1)-D92,(PMT((RepayCalculator!$B$9)/12,360,C92,0,0)*-1)-D92) -> 0
A93: Total exiting commitments | C93: =SUM(C85:C92) -> 0 | D93: =SUM(D85:D92) -> 0
A94: add existing commitment stress | D94: =SUM(SUMIF($A$86:$A$92,{"Mortgage Loan - Investment","Mortgage Loan - Owner Occupied","Personal Loan - Variable","Overdraft","Line of Credit",""},$G$86:$G$92)) -> 0
A95: Stressed existing commitments | D95: =SUM(D93:D94) -> 0 | H95: =D95 -> 0
A97: Net Personal Income Position - Monthly | H97: =H69-H82-H95 -> 0
A98: Net Personal Income Position - Annual | H98: =H97*12 -> 0
A101: Summary
A102: Net Business Income | C102: =+D34+H98 -> 0
A103: Annual Interest Expense (unstressed) | C103: =(D44+SUM($C$21:$E$21))*12 -> 0
A104: Annual Debt Repayment (stressed) | C104: =(E46+SUM($C$24:$E$24))*12 -> 0
A107: Interest Cover Ratio (unstressed) - minimum 1.50 required NOTE - Minimum ICR does not apply where personal income only. | C107: =IF(D34=0,"N/A",$C$102/C103) -> N/A | D107: =IF(C107="N/A","N/A",IF(C107>=1.5,"PASS","FAIL")) -> N/A | F107: DSR | G107: =(SUM($C$19:$E$19)+$C$44)/C102 -> 
A108: Debt Service Cover Ratio (stressed) - minimum 1.00 required | C108: =$C$102/C104 ->  | D108: =IF(C108>=1,"PASS","FAIL") ->  | F108: Net Cash Surplus (monthly) | G108: =(C102-C104)/12 -> 0

Sheet Test Serviceability Calculator (hidden)
C3: INSERT BANNER
A9: Prospector number
A10: Applicant Name
A14: Household Status | B14: Applicant 1 | C14: Applicant 2 | D14: Applicant 3 | E14: Applicant 4 | F14: Applicant 5 | G14: Applicant 6
A15: Household Number
A16: Status
A17: Dependents (only enter once for each family group) | B17: 0 | C17: 0 | D17: 0 | E17: 0 | F17: 0 | G17: 0
A19: Personal Income
A20: Gross taxable annual income | B20: 0 | C20: 0 | D20: 0 | E20: 0 | F20: 0 | G20: 0
A21: Non-taxable annual personal income | B21: 0 | C21: 0 | D21: 0 | E21: 0 | F21: 0 | G21: 0
A22: Gross rental income | B22: 0 | C22: 0 | D22: 0 | E22: 0 | F22: 0 | G22: 0
A24: Investment property expenses
A25: Investment Property Interest Expense (Monthly) | B25: 0 | C25: 0 | D25: 0 | E25: 0 | F25: 0 | G25: 0
A27: Company income
A28: Net profit before tax | B28: 0 | C28: 0 | D28: 0 | E28: 0 | F28: 0 | G28: 0
A29: Company interest (loan must be included in servicing) | B29: 0 | C29: 0 | D29: 0 | E29: 0 | F29: 0 | G29: 0
A30: Company addbacks (depreciation and others) | B30: 0 | C30: 0 | D30: 0 | E30: 0 | F30: 0 | G30: 0
A32: Total Income | B32: =SUM(B39:B43) -> 0 | C32: 0 | D32: 0 | E32: 0 | F32: 0 | G32: 0
A33: Net Income | B33: =B62+B74 -> 0 | C33: 0 | D33: 0 | E33: 0 | F33: 0 | G33: 0
A34: Monthly net income | B34: =B64+B76 -> 0 | C34: 0 | D34: 0 | E34: 0 | F34: 0 | G34: 0
A36: Rental Income (less haircut) | B36: =B22*RepayCalculator!$B$44 -> 0 | C36: =C22*RepayCalculator!$B$44 -> 0 | D36: =D22*RepayCalculator!$B$44 -> 0 | E36: =E22*RepayCalculator!$B$44 -> 0 | F36: =F22*RepayCalculator!$B$44 -> 0 | G36: =G22*RepayCalculator!$B$44 -> 0
A37: Rental - interest expense | B37: =B25*12 -> 0 | C37: 0 | D37: 0 | E37: 0 | F37: 0 | G37: 0
A39: Personal taxable income | B39: =B20+B36-B37 -> 0 | C39: 0 | D39: 0 | E39: 0 | F39: 0 | G39: 0
A40: Non-taxable income | B40: =B21+B37 -> 0 | C40: 0 | D40: 0 | E40: 0 | F40: 0 | G40: 0
A42: Company income | B42: =B28 -> 0 | C42: 0 | D42: 0 | E42: 0 | F42: 0 | G42: 0
A43: addbacks | B43: =SUM(B29:B30) -> 0 | C43: 0 | D43: 0 | E43: 0 | F43: 0 | G43: 0 | K43: 1 | N43: Low to middle Inome Tax Offset | S43: Low income tax ofset
K44: 18200 | L44: 0 | N44: Low Band | O44: High Band | P44: % Cacl | Q44: $ Calc | S44: Low Band | T44: High Band | U44: % Calc | V44: $ Calc
A45: Net Income | K45: 37000 | L45: 0.19 | N45: 0 | O45: 19543 | Q45: 0 | S45: 0 | T45: 20593 | V45: 0
K46: 90000 | L46: 0.325 | N46: 19543 | O46: 37000 | Q46: -255 | S46: 20596 | T46: 37000 | V46: -445
A47: Individuals | K47: 180000 | L47: 0.37 | N47: 37001 | O47: 48000 | P47: -0.075 | Q47: -255 | S47: 37001 | T47: 66666 | U47: 0.015 | V47: -445
A48: Marginal Income Tax Rate Bands | K48: 999999999 | L48: 0.45 | N48: 48001 | O48: 90000 | Q48: -1080 | S48: 66667 | T48: 10000000 | V48: 0
B49: =IF(B$39<$K$43,0,IF(B$39>$K$44,$K$44,B$39)) -> 0 | C49: 0 | D49: 0 | E49: 0 | F49: 0 | G49: 0 | N49: 90001 | O49: 126000 | P49: 0.03 | Q49: -1080
B50: =IF(B$39<$K$44,0,(IF(B$39>$K$45,($K$45-$K$44)*(1-$L$45),(B$39-$K$44)*(1-$L$45)))) -> 0 | C50: 0 | D50: 0 | E50: 0 | F50: 0 | G50: 0 | N50: 126001 | O50: 10000000 | Q50: 0
B51: =IF(B$39<$K$45,0,(IF(B$39>$K$46,($K$46-$K$45)*(1-$L$46),(B$39-$K$45)*(1-$L$46)))) -> 0 | C51: 0 | D51: 0 | E51: 0 | F51: 0 | G51: 0
B52: =IF(B$39<$K$46,0,(IF(B$39>$K$47,($K$47-$K$46)*(1-$L$47),(B$39-$K$46)*(1-$L$47)))) -> 0 | C52: 0 | D52: 0 | E52: 0 | F52: 0 | G52: 0
B53: =IF(B$39<$K$47,0,(IF(B$39>$K$48,($K$48-$K$47)*(1-$L$48),(B$39-$K$47)*(1-$L$48)))) -> 0 | C53: 0 | D53: 0 | E53: 0 | F53: 0 | G53: 0
A54: Net income before offsets & levys | B54: =SUM(B$49:B$53) -> 0 | C54: 0 | D54: 0 | E54: 0 | F54: 0 | G54: 0
A56: Low to middle income tax offset | B56: =IF(B$39<=$O$45,$Q$45,(IF(B$39<=$O$46,$Q$46,IF(B$39<=$O$47,((B$39-$O$46)*$P$47)+$Q$47,IF(B$39<=$O$48,$Q$48,IF(B$39<=$O$49,((B$39-$O$48)*$P$49)+$Q$49,IF(B$39<=$O$50,$Q$50,0)))))))*-1 -> 0 | C56: 0 | D56: 0 | E56: 0 | F56: 0 | G56: 0
A57: Low income tax offset | B57: =IF(B$39<=$T$45,$V$45,IF(B$39<=$T$46,$V$46,IF(B$39<=$T$47,((B$39-$T$46)*$U$47)+$V$47,IF(B$39<=$T$48,$V$48,0))))*-1 -> 0 | C57: 0 | D57: 0 | E57: 0 | F57: 0 | G57: 0
A58: Medicare Levy | B58: =IF(B$39>0,B$39*2%*-1,0) -> 0 | C58: 0 | D58: 0 | E58: 0 | F58: 0 | G58: 0
A59: Net income after offsets & levys | B59: =SUM(B54:B58) -> 0 | C59: 0 | D59: 0 | E59: 0 | F59: 0 | G59: 0
A61: add non-taxable income | B61: =IF(B$39>0,B40,SUM(B39:B40)) -> 0 | C61: 0 | D61: 0 | E61: 0 | F61: 0 | G61: 0
A62: Total Net income | B62: =SUM(B59:B61) -> 0 | C62: 0 | D62: 0 | E62: 0 | F62: 0 | G62: 0
A64: Monthly Disposable Income | B64: =B62/12 -> 0 | C64: 0 | D64: 0 | E64: 0 | F64: 0 | G64: 0
K65: Company Tax Rate
A66: Companies | L66: 0.275
A67: Marginal Income Tax Bands
A69: Taxable Income | B69: =B$42 -> 0 | C69: 0 | D69: 0 | E69: 0 | F69: 0 | G69: 0
A70: less Income Tax | B70: =B$69*$L$66 -> 0 | C70: 0 | D70: 0 | E70: 0 | F70: 0 | G70: 0
A71: Net Income | B71: =B69-B70 -> 0 | C71: 0 | D71: 0 | E71: 0 | F71: 0 | G71: 0
A73: add Non-taxable income | B73: =SUM(B29:B30) -> 0 | C73: 0 | D73: 0 | E73: 0 | F73: 0 | G73: 0
A74: Total annual income | B74: =SUM(B71:B73) -> 0 | C74: 0 | D74: 0 | E74: 0 | F74: 0 | G74: 0
A76: Monthly Company Income | B76: =B$74/12 -> 0 | C76: 0 | D76: 0 | E76: 0 | F76: 0 | G76: 0
A79: Monthly Disposible Income | B79: =B$64+B$76 -> 0 | C79: 0 | D79: 0 | E79: 0 | F79: 0 | G79: 0
A81: less Living Expenses
B82: Household 1 | C82: Household 2 | D82: Household 3 | E82: Household 4 | F82: Household 5 | G82: Household 6
A83: Status | B83: =_xlfn.IFNA(HLOOKUP(B82,$15:$16,2,FALSE),"N/A") -> N/A | C83: N/A | D83: N/A | E83: N/A | F83: N/A | G83: N/A
A84: Dependents | B84: =SUMIF($15:$15,B$82,$17:$17) -> 0 | C84: 0 | D84: 0 | E84: 0 | F84: 0 | G84: 0
A85: Long description | B85: =B$83&" with "&B$84&" children" -> N/A with 0 children | C85: N/A with 0 children | D85: N/A with 0 children | E85: N/A with 0 children | F85: N/A with 0 children | G85: N/A with 0 children
A86: Income lookup array - $150k | B86: =LOOKUP(B$94,HEM!$C$9:$K$9,HEM!$C$7:$K$7) -> 4 | C86: =LOOKUP(C$94,HEM!$C$9:$P$9,HEM!$C$7:$P$7) -> 4 | D86: =LOOKUP(D$94,HEM!$C$9:$P$9,HEM!$C$7:$P$7) -> 4 | E86: =LOOKUP(E$94,HEM!$C$9:$P$9,HEM!$C$7:$P$7) -> 4 | F86: =LOOKUP(F$94,HEM!$C$9:$P$9,HEM!$C$7:$P$7) -> 4 | G86: =LOOKUP(G$94,HEM!$C$9:$P$9,HEM!$C$7:$P$7) -> 4
A87: Income lookup array - Full HEM | B87: =LOOKUP(B$94,HEM!$C$9:$P$9,HEM!$C$7:$P$7) -> 4 | C87: =LOOKUP(C$94,HEM!$C$9:$P$9,HEM!$C$7:$P$7) -> 4 | D87: =LOOKUP(D$94,HEM!$C$9:$P$9,HEM!$C$7:$P$7) -> 4 | E87: =LOOKUP(E$94,HEM!$C$9:$P$9,HEM!$C$7:$P$7) -> 4 | F87: =LOOKUP(F$94,HEM!$C$9:$P$9,HEM!$C$7:$P$7) -> 4 | G87: =LOOKUP(G$94,HEM!$C$9:$P$9,HEM!$C$7:$P$7) -> 4
A89: Income Summary
A90: Annual income | B90: =SUMIF($15:$15,B$82,$20:$20) -> 0 | C90: =SUMIF($15:$15,C$82,$20:$20) -> 0 | D90: 0 | E90: 0 | F90: 0 | G90: 0
A91: plus Non-taxable income | B91: =SUMIF($15:$15,B$82,$21:$21) -> 0 | C91: =SUMIF($15:$15,C$82,$21:$21) -> 0 | D91: 0 | E91: 0 | F91: 0 | G91: 0
A92: plus Gross Rental Income | B92: =SUMIF($15:$15,B$82,$22:$22) -> 0 | C92: =SUMIF($15:$15,C$82,$22:$22) -> 0 | D92: 0 | E92: 0 | F92: 0 | G92: 0
A93: less Investment Property Interest Expense | B93: =SUMIF($15:$15,B$82,$25:$25)*12 -> 0 | C93: =SUMIF($15:$15,C$82,$25:$25)*12 -> 0 | D93: 0 | E93: 0 | F93: 0 | G93: 0
A94: Income for HEM ($150k) | B94: =IF((B90+B91+B92-B93)>43000,B90+B91+B92-B93,43000) -> 43000 | C94: =IF((C90+C91+C92-C93)>43000,C90+C91+C92-C93,43000) -> 43000 | D94: =IF((D90+D91+D92-D93)>43000,D90+D91+D92-D93,43000) -> 43000 | E94: 43000 | F94: 43000 | G94: 43000
A95: HEM Benchmark Expenses ($150k) (weekly) | B95: =_xlfn.IFNA(VLOOKUP(B$85,HEM!$B$12:$P$34,'Test Serviceability Calculator'!B$86,FALSE),0) -> 0 | C95: =_xlfn.IFNA(VLOOKUP(C$85,HEM!$B$12:$P$34,'Test Serviceability Calculator'!C$86,FALSE),0) -> 0 | D95: =_xlfn.IFNA(VLOOKUP(D$85,HEM!$B$12:$P$34,'Test Serviceability Calculator'!D$86,FALSE),0) -> 0 | E95: =_xlfn.IFNA(VLOOKUP(E$85,HEM!$B$12:$P$34,'Test Serviceability Calculator'!E$86,FALSE),0) -> 0 | F95: =_xlfn.IFNA(VLOOKUP(F$85,HEM!$B$12:$P$34,'Test Serviceability Calculator'!F$86,FALSE),0) -> 0 | G95: =_xlfn.IFNA(VLOOKUP(G$85,HEM!$B$12:$P$34,'Test Serviceability Calculator'!G$86,FALSE),0) -> 0
A96: HEM Benchmark Expenses ($150k) (monthly) | B96: =B95*52/12 -> 0 | C96: 0 | D96: 0 | E96: 0 | F96: 0 | G96: 0
A99: Living Expenses | B99: Household 1 | C99: Household 2 | D99: Household 3 | E99: Household 4 | F99: Household 5 | G99: Household 6
A100: Basic living expenses | B100: 0 | C100: 0 | D100: 0 | E100: 0 | F100: 0 | G100: 0
A101: Communications expenses | B101: 0 | C101: 0 | D101: 0 | E101: 0 | F101: 0 | G101: 0
A102: Education expenses | B102: 0 | C102: 0 | D102: 0 | E102: 0 | F102: 0 | G102: 0
A103: Insurance expenses | B103: 0 | C103: 0 | D103: 0 | E103: 0 | F103: 0 | G103: 0
A104: Utilities / Rates / Body Corporate | B104: 0 | C104: 0 | D104: 0 | E104: 0 | F104: 0 | G104: 0
A105: Other Expenses | B105: 0 | C105: 0 | D105: 0 | E105: 0 | F105: 0 | G105: 0
A106: Total Basic Living Expenses | B106: =SUM(B100:B105) -> 0 | C106: 0 | D106: 0 | E106: 0 | F106: 0 | G106: 0
A107: HEM Benchmark Expenses (monthly) | B107: =B96 -> 0 | C107: 0 | D107: 0 | E107: 0 | F107: 0 | G107: 0
A108: Expenses for servicing | B108: =IF(B106>B107,B106,B107) -> 0 | C108: 0 | D108: 0 | E108: 0 | F108: 0 | G108: 0
A109: Rent / board | B109: 0 | C109: 0 | D109: 0 | E109: 0 | F109: 0 | G109: 0
A110: Child support / spousal maintenance | B110: 0 | C110: 0 | D110: 0 | E110: 0 | F110: 0 | G110: 0
A111: Total Non-basic / Excluded Living Expenses | B111: =SUM(B$109:B$110) -> 0 | C111: =SUM(C$109:C$110) -> 0 | D111: 0 | E111: 0 | F111: 0 | G111: 0
A112: Total Living Expenses | B112: =B108+B111 -> 0 | C112: 0 | D112: 0 | E112: 0 | F112: 0 | G112: 0
A115: Existing Commitments | B115: Debt | C115: Monthly Payment
A116: Credit Cards | B116: 0 | C116: =B116*3.8% -> 0
B117: 0 | C117: 0
B118: 0 | C118: 0
B119: 0 | C119: 0
B120: 0 | C120: 0
B121: 0 | C121: 0
B122: 0 | C122: 0
B123: 0 | C123: 0
B124: 0 | C124: 0
B125: 0 | C125: 0
B126: 0 | C126: 0
B127: 0 | C127: 0
B128: 0 | C128: 0
B129: 0 | C129: 0
A130: Total exiting commitments | B130: =SUM(B116:B129) -> 0 | C130: =SUM(C116:C129) -> 0
A131: add existing commitment stress | C131: =SUM(SUMIF($A$117:$A$129,{"Mortgage Loan - Investment","Mortgage Loan - Owner Occupied","Personal Loan - Variable","Overdraft","Line of Credit",""},$B$117:$B$129))*2%/12 -> 0
A132: Stressed existing commitments | C132: =SUM(C130:C131) -> 0
A134: New loan Commitments
B135: Loan 1 | C135: Loan 2 | D135: Loan 3 | E135: Loan 4 | F135: Loan 5 | G135: Loan 6
A136: Loan appraisal number
A137: Repayment Type
A138: New Loan Term (Years) | B138: 0 | C138: 0 | D138: 0 | E138: 0 | F138: 0 | G138: 0
A139: Interest Only Term (Years) | B139: 0 | C139: 0 | D139: 0 | E139: 0 | F139: 0 | G139: 0
A140: New Loan Amount | B140: 0 | C140: 0 | D140: 0 | E140: 0 | F140: 0 | G140: 0
A141: Interest Rate of New Loan | B141: 0 | C141: 0 | D141: 0 | E141: 0 | F141: 0 | G141: 0
A142: New Monthly Loan Repayment/s | B142: =IFERROR(IF(B$137="",0,(IF(B$137="Principal & Interest",-PMT(B$141/12,(B$138-B$139)*12,B$140,0,0)+15,((B$140*B$141)/12)+15))),0) -> 0 | C142: =IFERROR(IF(C$137="",0,(IF(C$137="Principal & Interest",-PMT(C$141/12,(C$138-C$139)*12,C$140,0,0)+15,((C$140*C$141)/12)+15))),0) -> 0 | D142: 0 | E142: 0 | F142: 0 | G142: 0
A143: Loan Assessment Rate (minimum 5.5%) | B143: =IF(B141+RepayCalculator!$B$6>RepayCalculator!$B$9,B141+RepayCalculator!$B$6,RepayCalculator!$B$9) -> 0.053 | C143: =IF(C141+RepayCalculator!$B$6>RepayCalculator!$B$9,C141+RepayCalculator!$B$6,RepayCalculator!$B$9) -> 0.053 | D143: =IF(D141+RepayCalculator!$B$6>RepayCalculator!$B$9,D141+RepayCalculator!$B$6,RepayCalculator!$B$9) -> 0.053 | E143: =IF(E141+RepayCalculator!$B$6>RepayCalculator!$B$9,E141+RepayCalculator!$B$6,RepayCalculator!$B$9) -> 0.053 | F143: =IF(F141+RepayCalculator!$B$6>RepayCalculator!$B$9,F141+RepayCalculator!$B$6,RepayCalculator!$B$9) -> 0.053 | G143: =IF(G141+RepayCalculator!$B$6>RepayCalculator!$B$9,G141+RepayCalculator!$B$6,RepayCalculator!$B$9) -> 0.053
A144: Stressed Loan Payments | B144: =IFERROR(IF(B$137="",0,(IF(B$137="Principal & Interest",-PMT(B$143/12,(B$138-B$139)*12,B$140,0,0)+15,((B$140*B$143)/12)+15))),0) -> 0 | C144: 0 | D144: 0 | E144: 0 | F144: 0 | G144: 0
A146: Serviceability Summary | B146: Annual | C146: Monthly
A147: Total income | B147: =SUM(B32:G32) -> 0 | C147: =B147/12 -> 0
A148: Net income | B148: =C148*12 -> 0 | C148: =SUM(B79:G79) -> 0
A149: Living Expenses | B149: =C149*12 -> 0 | C149: =SUM(B112:G112) -> 0
A150: Available income | B150: =B148-B149 -> 0 | C150: =C148-C149 -> 0
A151: Existing commitments | B151: =C151*12 -> 0 | C151: =C132 -> 0
A152: New commitments | B152: =C152*12 -> 0 | C152: =SUM(B144:G144) -> 0
A153: Excess serviceability | B153: =B150-B151-B152 -> 0 | C153: =C150-C151-C152 -> 0

Sheet SMSF Serviceability Calculator (hidden)
E3: Date: | G3: =TODAY() -> 2023-04-04
A4: Prospector number:
A5: Applicants Name(s): | J5: Your clients name please
D7: Number
A8: SMSF income and contributions
A9: SMSF (Other Assets) | D9: 0
A10: Income From Other Assets | D10: =D9*3.9% -> 0 | E10: =D10/12 -> 0 | G10: ='Tax Scales'!$Y$98 -> 0
A12: Superannuation Contributions - Applicant 1 | D12: 0 | E12: =D12/12 -> 0 | G12: ='Tax Scales'!Y106 -> 0
A13: Superannuation Contributions - Applicant 2 | D13: 0 | G13: ='Tax Scales'!Y114 -> 0
A14: Superannuation Contributions - Applicant 3 | D14: 0 | G14: ='Tax Scales'!Y122 -> 0
A15: Superannuation Contributions - Applicant 4 | D15: 0 | G15: ='Tax Scales'!Y130 -> 0
G16: =SUM($G$12:$G$15) -> 0
A18: Annual Rental Income(s) | D18: 0 | E18: =D18/12 -> 0 | G18: =E18*RepayCalculator!B45 -> 0
A19: Total Income | D19: =SUM(D10:D15)+D18 -> 0 | E19: =SUM(E10:E18) -> 0 | G19: =G10+G16+G18 -> 0
A21: Less Existing SMSF Commitments | D21: Debt / Limit | G21: Monthly Pmt
A22: Other loans | D22: 0 | E22: =RATE(360,G22*-1,D22,0,0,0.1)*12 ->  | F22: =IFERROR(IF(PMT((E22+RepayCalculator!$B$7)/12,360,D22,0,0)<(PMT(RepayCalculator!$B$9/12,360,D22,0,0)),(PMT((E22+RepayCalculator!$B$7)/12,360,D22,0,0)*-1)-G22,(PMT((RepayCalculator!$B$9)/12,360,D22,0,0)*-1)-G22),0) -> 0 | G22: 0
A23: Other Loans Stress | G23: =$F$22 -> 0
A24: Annual management fee (min. $1,500 automatically assumed) | D24: 0 | E24: =D24/12 -> 0 | F24: =1500/12 -> 125 | G24: =IF(E24>F24,E24,F24) -> 125
A25: Total Existing Commitments | E25: =SUM(D22:D22) -> 0 | G25: =SUM(G22:G24) -> 125
A27: New SMSF Loan Commitment
A28: Repayment Type | D28: =IF(D29=0,"",IF(D29>D30,"Principal & Interest","Interest Only")) ->  | J28: Select repayment type and enter loan amount
A29: New Loan Term (Years) | D29: 0 | J29: interest rate and loan term (in years)
A30: Interest Only Term (Years) | D30: 0
A31: New SMSF Loan Amount | D31: 0
A32: Interest Rate of New Loan | D32: 0
A33: New Monthly SMSF Loan Repayment/s | D33: =IFERROR(IF(D$28="",0,(IF(D$28="Principal & Interest",-PMT(D$32/12,(D$29-D$30)*12,D$31,0,0)+15,((D$31*D$32)/12)+15))),0) -> 0
D34: =IF(D32+RepayCalculator!$B$7>RepayCalculator!$B$9,D32+RepayCalculator!$B$7,RepayCalculator!$B$9) -> 0.053
D35: =IFERROR(IF(D$28="",0,(IF(D$28="Principal & Interest",-PMT(D$34/12,(D$29-D$30)*12,D$31,0,0)+15,((D$31*D$34)/12)+15))),0) -> 0 | G35: =D35 -> 0
A37: Net Disposable Income | G37: =G19-G25-G35 -> -125
A39: Maximum Loan Available - Principal & Interest loans only | G39: =IF(D28="Principal & Interest",FLOOR(-PV((D34)/12,(D29-D30)*12,(G19-G25-15),0,0),100),"N/A") -> N/A
A42: Personal Income Details
A43: Household Status | C43: Household | D43: Status | G43: Dependents (only enter once for each household)
A44: Applicant 1 | E44: 0 | J44: Input household status details
A45: Applicant 2
A46: Applicant 3
A47: Applicant 4
A49: HEM Status | B49: Status | C49: Dependents | D49: Long Description | E49: Income for HEM | G49: Household HEM
A50: Household 1 | B50: =_xlfn.IFNA(VLOOKUP(A50,$C$44:$D$47,2,FALSE),"N/A") -> N/A | C50: =SUMIF($C$44:$C$47,A50,$G$44:$G$47) -> 0 | D50: =B50&" with "&C50&" children" -> N/A with 0 children | E50: =SUMIF($B$58:$B$61,A50,$C$58:$C$61)+SUMIF($B$58:$B$61,A50,$D$58:$D$61)+SUMIF($B$65:$B$68,A50,$F$65:$F$68) -> 0 | F50: =LOOKUP(E50,HEM!$C$9:$K$9,HEM!$C$7:$K$7) -> 2 | G50: =_xlfn.IFNA(VLOOKUP(D50,HEM!$B$12:$P$34,F50,FALSE),0)*52/12 -> 0
A51: Household 2 | B51: =_xlfn.IFNA(VLOOKUP(A51,$C$44:$D$47,2,FALSE),"N/A") -> N/A | C51: =SUMIF($C$44:$C$47,A51,$G$44:$G$47) -> 0 | D51: =B51&" with "&C51&" children" -> N/A with 0 children | E51: =SUMIF($B$58:$B$61,A51,$C$58:$C$61)+SUMIF($B$58:$B$61,A51,$D$58:$D$61)+SUMIF($B$65:$B$68,A51,$F$65:$F$68) -> 0 | F51: =LOOKUP(E51,HEM!$C$9:$K$9,HEM!$C$7:$K$7) -> 2 | G51: =_xlfn.IFNA(VLOOKUP(D51,HEM!$B$12:$P$34,F51,FALSE),0)*52/12 -> 0
A52: Household 3 | B52: =_xlfn.IFNA(VLOOKUP(A52,$C$44:$D$47,2,FALSE),"N/A") -> N/A | C52: =SUMIF($C$44:$C$47,A52,$G$44:$G$47) -> 0 | D52: N/A with 0 children | E52: =SUMIF($B$58:$B$61,A52,$C$58:$C$61)+SUMIF($B$58:$B$61,A52,$D$58:$D$61)+SUMIF($B$65:$B$68,A52,$F$65:$F$68) -> 0 | F52: =LOOKUP(E52,HEM!$C$9:$K$9,HEM!$C$7:$K$7) -> 2 | G52: =_xlfn.IFNA(VLOOKUP(D52,HEM!$B$12:$P$34,F52,FALSE),0)*52/12 -> 0
A53: Household 4 | B53: =_xlfn.IFNA(VLOOKUP(A53,$C$44:$D$47,2,FALSE),"N/A") -> N/A | C53: =SUMIF($C$44:$C$47,A53,$G$44:$G$47) -> 0 | D53: N/A with 0 children | E53: =SUMIF($B$58:$B$61,A53,$C$58:$C$61)+SUMIF($B$58:$B$61,A53,$D$58:$D$61)+SUMIF($B$65:$B$68,A53,$F$65:$F$68) -> 0 | F53: =LOOKUP(E53,HEM!$C$9:$K$9,HEM!$C$7:$K$7) -> 2 | G53: =_xlfn.IFNA(VLOOKUP(D53,HEM!$B$12:$P$34,F53,FALSE),0)*52/12 -> 0
A54: Total | G54: =SUM(G50:G53) -> 0
A57: Income | C57: Gross Taxable Income | D57: Gross Non-Taxable Income | E57: Gross Income - Taxable | F57: Gross Income - Non-taxable | G57: Net Monthly Income
A58: Applicant 1 - (Taxable) Income | B58: =C44 -> 0 | C58: 0 | D58: 0 | E58: =C58+F65 -> 0 | F58: =(D65*12)+D58 -> 0 | G58: ='Tax Scales'!Y14+(F58/12) -> 0 | J58: Input applicants income
A59: Applicant 2 - (Taxable) Income | B59: =C45 -> 0 | C59: 0 | D59: 0 | E59: =C59+F66 -> 0 | F59: =(D66*12)+D59 -> 0 | G59: ='Tax Scales'!Y27+(F59/12) -> 0
A60: Applicant 3 - (Taxable) Income | B60: 0 | C60: 0 | D60: 0 | E60: =C60+F67 -> 0 | F60: =(D67*12)+D60 -> 0 | G60: ='Tax Scales'!Y40+(F60/12) -> 0
A61: Applicant 4 - (Taxable) Income | B61: 0 | C61: 0 | D61: 0 | E61: =C61+F68 -> 0 | F61: =(D68*12)+D61 -> 0 | G61: ='Tax Scales'!Y53+(F61/12) -> 0
G62: =SUM(G58:G61) -> 0
A64: Rental Property Income | C64: Gross Annual Income | D64: Monthly Interest Expense (for gearing purposes only) | E64: Gross Annual Income - less haircut | F64: Net Rental Income
A65: Applicant 1 - Annual Rental Income(s) | B65: =C44 -> 0 | C65: 0 | D65: 0 | E65: =C65*RepayCalculator!$B$45 -> 0 | F65: =E65-(D65*12) -> 0
A66: Applicant 2 - Annual Rental Income(s) | B66: =C45 -> 0 | C66: 0 | D66: 0 | E66: =C66*RepayCalculator!$B$45 -> 0 | F66: =E66-(D66*12) -> 0
A67: Applicant 3 - Annual Rental Income(s) | B67: =C46 -> 0 | C67: 0 | D67: 0 | E67: =C67*RepayCalculator!$B$45 -> 0 | F67: =E67-(D67*12) -> 0
A68: Applicant 4 - Annual Rental Income(s) | B68: =C47 -> 0 | C68: 0 | D68: 0 | E68: =C68*RepayCalculator!$B$45 -> 0 | F68: =E68-(D68*12) -> 0
A70: Company Income | C70: Net Profit before tax (NPBT) | D70: Addbacks
A71: Company 1 (Net Profit Before Tax) | C71: 0 | D71: 0 | E71: =C71/12 -> 0 | G71: ='Tax Scales'!Y83+(D71/12) -> 0
A72: Company 2 (Net Profit Before Tax) | C72: 0 | D72: 0 | E72: =C72/12 -> 0 | G72: ='Tax Scales'!Y90+(D72/12) -> 0
G73: =SUM(G71:G72) -> 0
A75: Total Income | D75: =SUM(C58:C61)+SUM(D58:D59)+SUM(C71:C72)+SUM(C65:C68) -> 0 | E75: =SUM(E58:E65) -> 0 | G75: =+G62+G73 -> 0
A77: Less Living Allowance
A78: Monthly Living Expenses | D78: 0
A79: Living Expense Used (> of HEM or Actual) | D79: =IF(G54>D78,G54,D78) -> 0
A80: Private Schooling | D80: 0
A81: Health & Personal Insurances | D81: 0
A82: Rent / Board | D82: 0
A83: Child Support / Maintenance | D83: 0
A84: Total Living Expenses | G84: =SUM($D$79:$D$83) -> 0
A86: Total income available for debt & housing servicing | G86: =G75-G84 -> 0
A88: Less Existing Commitments | D88: Debt / Limit | G88: Monthly Pmt
A89: Credit Card (Limit not debt) | D89: 0 | G89: =D89*3.8% -> 0 | J89: Please list all outstanding credit commitments
D90: 0 | E90: =IFERROR(RATE(360,G90,D90*-1,0,0,0.1)*12,0) -> 0 | F90: =IF(PMT((E90+RepayCalculator!$B$7)/12,360,D90,0,0)<(PMT(RepayCalculator!$B$9/12,360,D90,0,0)),(PMT((E90+RepayCalculator!$B$7)/12,360,D90,0,0)*-1)-G90,(PMT((RepayCalculator!$B$9)/12,360,D90,0,0)*-1)-G90) -> 0 | G90: 0 | J90: remaining after this mortgage settles
D91: 0 | E91: =IFERROR(RATE(360,G91,D91*-1,0,0,0.1)*12,0) -> 0 | F91: =IF(PMT((E91+RepayCalculator!$B$7)/12,360,D91,0,0)<(PMT(RepayCalculator!$B$9/12,360,D91,0,0)),(PMT((E91+RepayCalculator!$B$7)/12,360,D91,0,0)*-1)-G91,(PMT((RepayCalculator!$B$9)/12,360,D91,0,0)*-1)-G91) -> 0 | G91: 0
D92: 0 | E92: 0 | F92: =IF(PMT((E92+RepayCalculator!$B$7)/12,360,D92,0,0)<(PMT(RepayCalculator!$B$9/12,360,D92,0,0)),(PMT((E92+RepayCalculator!$B$7)/12,360,D92,0,0)*-1)-G92,(PMT((RepayCalculator!$B$9)/12,360,D92,0,0)*-1)-G92) -> 0 | G92: 0
D93: 0 | E93: 0 | F93: =IF(PMT((E93+RepayCalculator!$B$7)/12,360,D93,0,0)<(PMT(RepayCalculator!$B$9/12,360,D93,0,0)),(PMT((E93+RepayCalculator!$B$7)/12,360,D93,0,0)*-1)-G93,(PMT((RepayCalculator!$B$9)/12,360,D93,0,0)*-1)-G93) -> 0 | G93: 0
D94: 0 | E94: 0 | F94: =IF(PMT((E94+RepayCalculator!$B$7)/12,360,D94,0,0)<(PMT(RepayCalculator!$B$9/12,360,D94,0,0)),(PMT((E94+RepayCalculator!$B$7)/12,360,D94,0,0)*-1)-G94,(PMT((RepayCalculator!$B$9)/12,360,D94,0,0)*-1)-G94) -> 0 | G94: 0
D95: 0 | E95: 0 | F95: =IF(PMT((E95+RepayCalculator!$B$7)/12,360,D95,0,0)<(PMT(RepayCalculator!$B$9/12,360,D95,0,0)),(PMT((E95+RepayCalculator!$B$7)/12,360,D95,0,0)*-1)-G95,(PMT((RepayCalculator!$B$9)/12,360,D95,0,0)*-1)-G95) -> 0 | G95: 0
D96: 0 | E96: 0 | F96: =IF(PMT((E96+RepayCalculator!$B$7)/12,360,D96,0,0)<(PMT(RepayCalculator!$B$9/12,360,D96,0,0)),(PMT((E96+RepayCalculator!$B$7)/12,360,D96,0,0)*-1)-G96,(PMT((RepayCalculator!$B$9)/12,360,D96,0,0)*-1)-G96) -> 0 | G96: 0
D97: 0 | E97: 0 | F97: =IF(PMT((E97+RepayCalculator!$B$7)/12,360,D97,0,0)<(PMT(RepayCalculator!$B$9/12,360,D97,0,0)),(PMT((E97+RepayCalculator!$B$7)/12,360,D97,0,0)*-1)-G97,(PMT((RepayCalculator!$B$9)/12,360,D97,0,0)*-1)-G97) -> 0 | G97: 0
D98: 0 | E98: 0 | F98: =IF(PMT((E98+RepayCalculator!$B$7)/12,360,D98,0,0)<(PMT(RepayCalculator!$B$9/12,360,D98,0,0)),(PMT((E98+RepayCalculator!$B$7)/12,360,D98,0,0)*-1)-G98,(PMT((RepayCalculator!$B$9)/12,360,D98,0,0)*-1)-G98) -> 0 | G98: 0
D99: 0 | E99: 0 | F99: =IF(PMT((E99+RepayCalculator!$B$7)/12,360,D99,0,0)<(PMT(RepayCalculator!$B$9/12,360,D99,0,0)),(PMT((E99+RepayCalculator!$B$7)/12,360,D99,0,0)*-1)-G99,(PMT((RepayCalculator!$B$9)/12,360,D99,0,0)*-1)-G99) -> 0 | G99: 0
D100: 0 | E100: 0 | F100: =IF(PMT((E100+RepayCalculator!$B$7)/12,360,D100,0,0)<(PMT(RepayCalculator!$B$9/12,360,D100,0,0)),(PMT((E100+RepayCalculator!$B$7)/12,360,D100,0,0)*-1)-G100,(PMT((RepayCalculator!$B$9)/12,360,D100,0,0)*-1)-G100) -> 0 | G100: 0
D101: =SUM(D89:D100) -> 0 | G101: =SUM(G89:G100) -> 0
G102: =SUM(SUMIF($A$90:$A$100,{"Mortgage Loan - Investment","Mortgage Loan - Owner Occupied","Personal Loan - Variable","Overdraft","Line of Credit",""},$F$90:$F$100)) -> 0
G103: =SUM(G101:G102) -> 0
A105: Net Personal Servicing Position | G105: =G86-G103 -> 0
A109: Result - Must Be Positive | G109: =G37+G86-G103 -> -125
A110: Result - Debt to Income Ratio (DTI) | G110: =(D22+D31+SUM(D89:D100))/(D19+D75) -> 
A112: I certify that we have made the proper enquires and to the best of our knowledge the above information is correct.
A115: Signature | D115: Name | G115: Date
A119: ='Living Allow'!E11 -> Version Date: 1 April 2023
G93008: 0

Sheet SMSF DTI Output (hidden)
A1: Prospector Number | B1: ='SMSF Serviceability Calculator'!D4 -> 0
A2: Serviceability calculator type | B2: SMSF
A3: Applicant 1 Normal Income | B3: ='SMSF Serviceability Calculator'!C58+'SMSF Serviceability Calculator'!D58 -> 0
A4: Applicant 2 Normal Income | B4: ='SMSF Serviceability Calculator'!C59+'SMSF Serviceability Calculator'!D59 -> 0
A5: Applicant 3 Normal Income | B5: ='SMSF Serviceability Calculator'!C60 -> 0
A6: Applicant 4 Normal Income | B6: ='SMSF Serviceability Calculator'!C61 -> 0
A7: Applicant 1 Rental Income | B7: ='SMSF Serviceability Calculator'!C65 -> 0
A8: Applicant 2 Rental Income | B8: ='SMSF Serviceability Calculator'!C66 -> 0
A9: Applicant 3 Rental Income | B9: ='SMSF Serviceability Calculator'!C67 -> 0
A10: Applicant 4 Rental Income | B10: ='SMSF Serviceability Calculator'!C68 -> 0
A11: Applicant 1 Company Income | B11: ='SMSF Serviceability Calculator'!C71 -> 0
A12: Applicant 2 Company Income | B12: ='SMSF Serviceability Calculator'!C72 -> 0
A13: Applicant 3 Company Income | B13: N/A
A14: Applicant 4 Company Income | B14: N/A
A15: Total Annual Gross Income | B15: ='SMSF Serviceability Calculator'!D75 -> 0
A16: Declared monthly living expenses | B16: ='SMSF Serviceability Calculator'!D78 -> 0
A17: Benchmark monthly living expenses | B17: ='SMSF Serviceability Calculator'!G54 -> 0
A18: Rent / Board | B18: ='SMSF Serviceability Calculator'!D82 -> 0
A19: Child Support | B19: =SUM('SMSF Serviceability Calculator'!$D$80:$D$81,'SMSF Serviceability Calculator'!$D$83) -> 0
A20: Credit Card Debt | B20: ='SMSF Serviceability Calculator'!D89 -> 0
A21: Personal Loan Debt | B21: =SUM(SUMIF(smsfExiCommTyp,{"Personal Loan - Variable","Personal Loan - Fixed"},'SMSF Serviceability Calculator'!$D$90:$D$100)) -> 0
A22: Overdraft Debt | B22: =SUM(SUMIF(smsfExiCommTyp,{"Overdraft"},'SMSF Serviceability Calculator'!$D$90:$D$100)) -> 0
A23: Housing Loan Debt | B23: =SUM(SUMIF(smsfExiCommTyp,{"Mortgage Loan - Investment","Mortgage Loan - Owner Occupied","Private Loan",""},'SMSF Serviceability Calculator'!$D$90:$D$100)) -> 0
A24: Lease / Other Debt | B24: =SUM(SUMIF(smsfExiCommTyp,{"Lease / Hire Purchase","Line of Credit"},'SMSF Serviceability Calculator'!$D$90:$D$100)) -> 0
A25: Credit Card Payment | B25: ='SMSF Serviceability Calculator'!G89 -> 0
A26: Personal Loan Payment | B26: =SUM(SUMIF(smsfExiCommTyp,{"Personal Loan - Variable","Personal Loan - Fixed"},'SMSF Serviceability Calculator'!$G$90:$G$100)) -> 0
A27: Overdraft Payment | B27: =SUM(SUMIF(smsfExiCommTyp,{"Overdraft"},'SMSF Serviceability Calculator'!$G$90:$G$100)) -> 0
A28: Housing Loan Payment | B28: =SUM(SUMIF(smsfExiCommTyp,{"Mortgage Loan - Investment","Mortgage Loan - Owner Occupied","Private Loan",""},'SMSF Serviceability Calculator'!$G$90:$G$100)) -> 0
A29: Lease / Other Payment | B29: =SUM(SUMIF(smsfExiCommTyp,{"Lease / Hire Purchase","Line of Credit"},'SMSF Serviceability Calculator'!$G$90:$G$100)) -> 0
A30: Loan Assessment Rate | B30: ='SMSF Serviceability Calculator'!$D$34 -> 0.053
A31: Serviceability Result | B31: ='SMSF Serviceability Calculator'!$G$109 -> -125
A32: Debt-to-Income Ratio | B32: ='SMSF Serviceability Calculator'!G110 -> 
A33: SMSF Contributions | B33: ='SMSF Serviceability Calculator'!D12+'SMSF Serviceability Calculator'!D13+'SMSF Serviceability Calculator'!D14+'SMSF Serviceability Calculator'!D15 -> 0
A34: SMSF Rental | B34: ='SMSF Serviceability Calculator'!D18 -> 0
A35: SMSF Investment Income | B35: ='SMSF Serviceability Calculator'!D10 -> 0

Sheet Non-Res Serviceability (hidden)
I3: Date: | K3: =TODAY() -> 2023-04-04
A4: Prospector number:
A5: Applicants Name(s): | N5: Your clients name please
A7: Country of Residence | C7: Singapore | N7: Your clients country of residence
A8: Foreign Currency | C8: =VLOOKUP(C7,'Living Allow'!$E$20:$G$96,3,FALSE) -> SGD
A9: Foreign Currency Exchange Rate - www.xe.com | C9: 0
A11: Household Status | C11: Household | F11: Status | H11: Dependents (only enter once for each household) | I11: DSR Status
A12: Applicant 1 | I12: =IF(F12="Single",0.4,0.35) -> 0.35 | N12: Input number of adults and children
A13: Applicant 2 | I13: =IF(F13="Single",0.4,0.35) -> 0.35
A14: Applicant 3 | I14: 0.35
A15: Applicant 4 | I15: 0.35
A17: HEM Status | C17: Status | D17: Dependents | F17: Long Description
A18: Household 1 | C18: =_xlfn.IFNA(VLOOKUP(A18,$C$12:$F$15,4,FALSE),"N/A") -> N/A | D18: =SUMIF($C$12:$C$15,A18,$H$12:$H$15) -> 0 | F18: =C18&" with "&D18&" children" -> N/A with 0 children
A19: Household 2 | C19: =_xlfn.IFNA(VLOOKUP(A19,$C$12:$F$15,4,FALSE),"N/A") -> N/A | D19: =SUMIF($C$12:$C$15,A19,$H$12:$H$15) -> 0 | F19: =C19&" with "&D19&" children" -> N/A with 0 children
A20: Household 3 | C20: =_xlfn.IFNA(VLOOKUP(A20,$C$12:$F$15,4,FALSE),"N/A") -> N/A | D20: 0 | F20: =C20&" with "&D20&" children" -> N/A with 0 children
A21: Household 4 | C21: =_xlfn.IFNA(VLOOKUP(A21,$C$12:$F$15,4,FALSE),"N/A") -> N/A | D21: 0 | F21: N/A with 0 children
A22: Total
A24: HEM Status | C24: Income for HEM | F24: Household HEM | H24: Household HEM Numbeo Converted
A25: Household 1 | C25: =SUMIF($B$32:$B$35,A25,$H$32:$H$35)+SUMIF($B$32:$B$35,A25,$H$47:$H$50)-(SUMIF($B$47:$B$50,A25,$K$47:$K$50)*12)+(SUMIF($B$32:$B$35,A25,$C$32:$C$35)*0.9*$C$9)+(SUMIF($B$47:$B$50,A25,$C$47:$C$50)*0.9*$C$9) -> 0 | D25: =LOOKUP(C25,HEM!$C$9:$K$9,HEM!$C$7:$K$7) -> 2 | F25: =_xlfn.IFNA(VLOOKUP(F18,HEM!$B$12:$P$34,D25,FALSE),0)*52/12 -> 0 | H25: =F25/'Living Allow'!$F$17*'Non-Res Serviceability'!$I$58*1.1 -> 0
A26: Household 2 | C26: =SUMIF($B$32:$B$35,A26,$H$32:$H$35)+SUMIF($B$32:$B$35,A26,$H$47:$H$50)-(SUMIF($B$47:$B$50,A26,$K$47:$K$50)*12)+(SUMIF($B$32:$B$35,A26,$F$32:$F$35)*0.9*$C$9)+(SUMIF($B$47:$B$50,A26,$C$47:$C$50)*0.9*$C$9) -> 0 | D26: =LOOKUP(C26,HEM!$C$9:$K$9,HEM!$C$7:$K$7) -> 2 | F26: =_xlfn.IFNA(VLOOKUP(F19,HEM!$B$12:$P$34,D26,FALSE),0)*52/12 -> 0 | H26: =F26/'Living Allow'!$F$17*'Non-Res Serviceability'!$I$58*1.1 -> 0
A27: Household 3 | C27: 0 | D27: =LOOKUP(C27,HEM!$C$9:$K$9,HEM!$C$7:$K$7) -> 2 | F27: =_xlfn.IFNA(VLOOKUP(F20,HEM!$B$12:$P$34,D27,FALSE),0)*52/12 -> 0 | H27: =F27/'Living Allow'!$F$17*'Non-Res Serviceability'!$I$58*1.1 -> 0
A28: Household 4 | C28: 0 | D28: =LOOKUP(C28,HEM!$C$9:$K$9,HEM!$C$7:$K$7) -> 2 | F28: =_xlfn.IFNA(VLOOKUP(F21,HEM!$B$12:$P$34,D28,FALSE),0)*52/12 -> 0 | H28: =F28/'Living Allow'!$F$17*'Non-Res Serviceability'!$I$58*1.1 -> 0
A29: Total | F29: =SUM(F25:F28) -> 0 | H29: =SUM(H25:H28) -> 0
A31: Income | B31: Household | C31: Gross Annual Foreign Income | F31: Net Annual Foreign Income | H31: Australian Gross Annual Income | I31: Australian Gross Income - Taxable | J31: Australian Gross Income - Non Taxable | K31: Total Net Monthly Income
A32: Applicant 1 - Income | B32: =C12 -> 0 | C32: 0 | F32: 0 | H32: 0 | I32: =H32+I47-J32 -> 0 | J32: =K47*12 -> 0 | K32: ='Tax Scales'!$AN$14+(J32/12)+(($F32/12)*$C$9*0.9)+((F47/12)*$C$9*0.9) -> 0 | N32: Input applicants income
A33: Applicant 2 - Income | B33: =C13 -> 0 | C33: 0 | F33: 0 | H33: 0 | I33: =H33+I48-J33 -> 0 | J33: =K48*12 -> 0 | K33: ='Tax Scales'!$AN$27+(J33/12)+(($F33/12)*$C$9*0.9)+((F48/12)*$C$9*0.9) -> 0 | N33: NOTES:- 1. Foreign currency is automatically converted to AUD once an exchange rate is entered - no need to manually convert any income to AUD. 2. "Australian Gross Income" is to be used for income derived in Australia only. Not to be used for conversion of Foreign Income. 3. For Foreign Income, both Gross and Net Income figures are required to be entered manually.
A34: Applicant 3 - Income | B34: 0 | C34: 0 | F34: 0 | H34: 0 | I34: 0 | J34: 0 | K34: ='Tax Scales'!$AN$40+(J34/12)+(($F34/12)*$C$9*0.9)+((F49/12)*$C$9*0.9) -> 0
A35: Applicant 4 - Income | B35: 0 | C35: 0 | F35: 0 | H35: 0 | I35: 0 | J35: 0 | K35: ='Tax Scales'!$AN$53+(J35/12)+(($F35/12)*$C$9*0.9)+((F50/12)*$C$9*0.9) -> 0
J36: 0 | K36: =SUM(K32:K35) -> 0
J37: 0
A38: Applicant 1 Income | C38: 0 | F38: 0 | H38: 0 | I38: =H38/12 -> 0 | J38: 0 | K38: =I38+(($F38/12)*$C$9*0.9) -> 0
A39: Applicant 2 Income | C39: 0 | F39: 0 | H39: 0 | I39: 0 | J39: 0 | K39: =I39+(($F39/12)*$C$9*0.9) -> 0
J40: 0 | K40: =SUM(K38:K39) -> 0
A42: Company 1 Profit | C42: 0 | F42: 0 | H42: 0 | I42: =H42/12 -> 0 | K42: ='Tax Scales'!$AN$83+(($F42/12)*$C$9*0.9) -> 0
A43: Company 2 Profit | C43: 0 | F43: 0 | H43: 0 | I43: =H43/12 -> 0 | K43: ='Tax Scales'!$AN$90+(($F43/12)*$C$9*0.9) -> 0
K44: =SUM(K42:K43) -> 0
C46: Gross Annual Income - Foreign Rentals | F46: Net Annual Income - Foreign Rentals | H46: Gross Annual Income - Australian Rentals | I46: Gross Annual Income - Australian Rentals (less haircut) | K46: Monthly Interest Expense - Australian Rentals (for gearing purposes only)
A47: Applicant 1 - Annual Rental Income(s) | B47: =C12 -> 0 | C47: 0 | F47: =C47*RepayCalculator!$B$44 -> 0 | H47: 0 | I47: =H47*RepayCalculator!$B$44 -> 0 | K47: 0
A48: Applicant 2 - Annual Rental Income(s) | B48: =C13 -> 0 | C48: 0 | F48: =C48*RepayCalculator!$B$44 -> 0 | H48: 0 | I48: =H48*RepayCalculator!$B$44 -> 0 | K48: 0
A49: Applicant 3 - Annual Rental Income(s) | B49: 0 | C49: 0 | F49: =C49*RepayCalculator!$B$44 -> 0 | H49: 0 | I49: =H49*RepayCalculator!$B$44 -> 0 | K49: 0
A50: Applicant 4 - Annual Rental Income(s) | B50: 0 | C50: 0 | F50: =C50*RepayCalculator!$B$44 -> 0 | H50: 0 | I50: =H50*RepayCalculator!$B$44 -> 0 | K50: 0
A52: Total | C52: =SUM(C32:C35,C42:C43)+(SUM(C47:C50)*RepayCalculator!$B$44) -> 0 | F52: =SUM(F32:F35,F42:F43,F47:F50) -> 0 | H52: =SUM(H32:H35,H42:H43,I47:I50) -> 0 | I52: =SUM(I32:I47) -> 0
A53: Total Gross Income | K53: =((C52/12)*C9*0.9)+(SUM(H32:H35,H42:H43,I47:I50)/12) -> 0
A54: Total Net Income | K54: =+K36+K44 -> 0
A56: Less Living Allowance | F56: Monthly Living Expenses (Foreign Currency) | G56: OR | H56: Monthly Living Expenses (AUD)
A57: Monthly Living Expenses (complete in AUD or O/S Currency) | F57: 0 | H57: 0 | I57: =(F57*$C$9*1.1)+(H57*1.1) -> 0 | N57: Input applicants declared living expenses
I58: =VLOOKUP($C$7,'Living Allow'!$E$19:$F$96,2,FALSE) -> 85.9 | N58: NOTE: For foreign Living Expenses, please enter the foreign currency amount. Conversion to AUD will take place automatically.
A59: Living Expense Used (> of HEM or Actual) | K59: =IF(H29>I57,H29,I57) -> 0
A61: Total income available for debt & housing servicing | K61: =K54-K59 -> 0
A63: Less Existing Commitments | C63: Foreign Currency Debt / Limit | F63: Foreign Currency Monthly Pmt | H63: Australian Debt / Limit | K63: Australian Monthly Pmt
A64: Credit Card (Limit not debt) | C64: 0 | F64: =C64*3.8% -> 0 | H64: 0 | K64: =(H64*3.8%) -> 0 | N64: Please list all outstanding credit commitments
A65: Personal Loan (variable) | C65: 0 | D65: =IFERROR(RATE(360,F65,C65*-1,0,0,0.1)*12,0) -> 0 | E65: =IF(PMT((D65+RepayCalculator!$B$6)/12,360,C65,0,0)<PMT(RepayCalculator!$B$9/12,360,'Non-Res Serviceability'!C65,0,0),PMT((D65+RepayCalculator!$B$6)/12,360,C65,0,0)*-1,PMT(RepayCalculator!$B$9/12,360,'Non-Res Serviceability'!C65,0,0)*-1)-F65 -> 0 | F65: 0 | H65: 0 | I65: =IFERROR(RATE(360,K65,H65*-1,0,0,0.1)*12,0) -> 0 | J65: =IF(PMT((I65+RepayCalculator!$B$6)/12,360,H65,0,0)<PMT(RepayCalculator!$B$9/12,360,'Non-Res Serviceability'!H65,0,0),PMT((I65+RepayCalculator!$B$6)/12,360,H65,0,0)*-1,PMT(RepayCalculator!$B$9/12,360,'Non-Res Serviceability'!H65,0,0)*-1)-K65 -> 0 | K65: 0 | N65: remaining after this mortgage settles
A66: Personal Loan (fixed) | C66: 0 | F66: 0 | H66: 0 | K66: 0 | N66: NOTES:- 1. Foreign debts and repayment amounts are to be entered in the applicable foreign currency. Conversion to AUD will take place automatically. Australian debts are to be entered in AUD.
A67: Overdraft | C67: 0 | D67: =IFERROR(RATE(360,F67,C67*-1,0,0,0.1)*12,0) -> 0 | E67: =IF(PMT((D67+RepayCalculator!$B$6)/12,360,C67,0,0)<PMT(RepayCalculator!$B$9/12,360,'Non-Res Serviceability'!C67,0,0),PMT((D67+RepayCalculator!$B$6)/12,360,C67,0,0)*-1,PMT(RepayCalculator!$B$9/12,360,'Non-Res Serviceability'!C67,0,0)*-1)-F67 -> 0 | F67: 0 | H67: 0 | I67: =IFERROR(RATE(360,K67,H67*-1,0,0,0.1)*12,0) -> 0 | J67: =IF(PMT((I67+RepayCalculator!$B$6)/12,360,H67,0,0)<PMT(RepayCalculator!$B$9/12,360,'Non-Res Serviceability'!H67,0,0),PMT((I67+RepayCalculator!$B$6)/12,360,H67,0,0)*-1,PMT(RepayCalculator!$B$9/12,360,'Non-Res Serviceability'!H67,0,0)*-1)-K67 -> 0 | K67: 0
A68: Housing Loan Variable - Owner Occupied | C68: 0 | D68: =IFERROR(RATE(360,F68,C68*-1,0,0,0.1)*12,0) -> 0 | E68: =IF(PMT((D68+RepayCalculator!$B$6)/12,360,C68,0,0)<PMT(RepayCalculator!$B$9/12,360,'Non-Res Serviceability'!C68,0,0),PMT((D68+RepayCalculator!$B$6)/12,360,C68,0,0)*-1,PMT(RepayCalculator!$B$9/12,360,'Non-Res Serviceability'!C68,0,0)*-1)-F68 -> 0 | F68: 0 | H68: 0 | I68: =IFERROR(RATE(360,K68,H68*-1,0,0,0.1)*12,0) -> 0 | J68: =IF(PMT((I68+RepayCalculator!$B$6)/12,360,H68,0,0)<PMT(RepayCalculator!$B$9/12,360,'Non-Res Serviceability'!H68,0,0),PMT((I68+RepayCalculator!$B$6)/12,360,H68,0,0)*-1,PMT(RepayCalculator!$B$9/12,360,'Non-Res Serviceability'!H68,0,0)*-1)-K68 -> 0 | K68: 0
A69: Housing Loan Variable - Investment | C69: 0 | D69: =IFERROR(RATE(360,F69,C69*-1,0,0,0.1)*12,0) -> 0 | E69: =IF(PMT((D69+RepayCalculator!$B$6)/12,360,C69,0,0)<PMT(RepayCalculator!$B$9/12,360,'Non-Res Serviceability'!C69,0,0),PMT((D69+RepayCalculator!$B$6)/12,360,C69,0,0)*-1,PMT(RepayCalculator!$B$9/12,360,'Non-Res Serviceability'!C69,0,0)*-1)-F69 -> 0 | F69: 0 | H69: 0 | I69: =IFERROR(RATE(360,K69,H69*-1,0,0,0.1)*12,0) -> 0 | J69: =IF(PMT((I69+RepayCalculator!$B$6)/12,360,H69,0,0)<PMT(RepayCalculator!$B$9/12,360,'Non-Res Serviceability'!H69,0,0),PMT((I69+RepayCalculator!$B$6)/12,360,H69,0,0)*-1,PMT(RepayCalculator!$B$9/12,360,'Non-Res Serviceability'!H69,0,0)*-1)-K69 -> 0 | K69: 0
A70: Lease / HP | C70: 0 | F70: 0 | H70: 0 | K70: 0
A71: Other | C71: 0 | F71: 0 | H71: 0 | K71: 0
A72: Child Support | F72: 0 | K72: 0
A73: Rent / Board | F73: 0 | K73: 0
A75: Total | D75: =SUM(C67:C69)+C65 -> 0 | F75: =SUM(F64:F73) -> 0 | I75: =SUM(H67:H69)+H65 -> 0 | K75: =SUM(K64:K73) -> 0
A77: Total Commitments - AUD | I77: =I75 -> 0 | J77: =SUM($J$65:$J$71) -> 0 | K77: =K75 -> 0
A78: Total Commitments - Foreign Currency | I78: =$D$75*C9 -> 0 | J78: =SUM($E$64:$E$71)*nrExRate -> 0 | K78: =$F$75*$C$9 -> 0
A79: Total Net Commitments | I79: =SUM(I77:I78) -> 0 | J79: =SUM(J77:J78) -> 0 | K79: =SUM(K77:K78) -> 0
A81: New Loan Commitment
A82: Repayment Type | H82: =IF(H83=0,"",IF(H83>H84,"Principal & Interest","Interest Only")) ->  | N82: Select repayment type and enter loan amount
A83: New Loan Term (Years) | H83: 0 | N83: interest rate and loan term (in years)
A84: Interest Only Term (Years) | H84: 0
A85: New Loan Amount | H85: 0
A86: Interest Rate of New Loan | H86: 0
A87: New Monthly Loan Repayment/s | K87: =IF(H82="Principal & Interest",-PMT(H86/12,(H83-H84)*12,H85,0,0),H85*H86/12) -> 0
A89: Net Disposable Income | K89: =K61-K79-K87 -> 0
A91: Loan Assessment Rate | H91: =IF(H86+RepayCalculator!$B$6>RepayCalculator!B9,H86+RepayCalculator!$B$6,RepayCalculator!B9) -> 0.053
A93: Serviceability Stress Test
A94: minus Existing Commitment Sensitivity | K94: =J79 -> 0
A95: ="minus New Loan Commitment Sensitivity" -> minus New Loan Commitment Sensitivity | K95: =IF(H82=RepayCalculator!A2,(-PMT((H91)/12,(H83-H84)*12,H85,0,0)-K87),(H91*H85/12)-K87) -> 0
A97: Total Liabilities | K97: =K95+K94+K87+K79 -> 0
A99: NDI Test - Must Be Positive | H99: =IF(K99>0,"PASS","FAIL") -> FAIL | K99: =K89-K94-K95 -> 0
A100: Debt to income Ratio | K100: =((SUM(C64:C71)*C9)+SUM(H64:H71)+H85)/((SUM(C32:C35,C42,C42:C43,C47:C50)*C9)+SUM(H32:H35,H42:H43,H47:H50)) -> 
A101: Maximum Loan Available - Principal & Interest loans only | K101: =IF(H82="Principal & Interest",FLOOR(-PV((H91)/12,(H83-H84)*12,(K61-K75-K94),0,0),100),"N/A") -> N/A | L101: =((K61-K75-K94)/(H86+1.7%)*12) -> 0
A103: I certify that we have made the proper enquiries and to the best of our knowledge the above information is correct.
A106: Signature | H106: Name | K106: Date
A110: ='Living Allow'!E11 -> Version Date: 1 April 2023

Sheet Non-res DTI Output (hidden)
A1: Prospector Number | B1: ='Non-Res Serviceability'!C4 -> 0
A2: Serviceability calculator type | B2: NRL
A3: Applicant 1 Normal Income | B3: =('Non-Res Serviceability'!C32*'Non-Res Serviceability'!$C$9)+'Non-Res Serviceability'!H32 -> 0
A4: Applicant 2 Normal Income | B4: =('Non-Res Serviceability'!C33*'Non-Res Serviceability'!$C$9)+'Non-Res Serviceability'!H33 -> 0
A5: Applicant 3 Normal Income | B5: =('Non-Res Serviceability'!C34*'Non-Res Serviceability'!$C$9)+'Non-Res Serviceability'!H34 -> 0
A6: Applicant 4 Normal Income | B6: =('Non-Res Serviceability'!C35*'Non-Res Serviceability'!$C$9)+'Non-Res Serviceability'!H35 -> 0
A7: Applicant 1 Rental Income | B7: =('Non-Res Serviceability'!C47*'Non-Res Serviceability'!$C$9)+'Non-Res Serviceability'!H47 -> 0
A8: Applicant 2 Rental Income | B8: =('Non-Res Serviceability'!C48*'Non-Res Serviceability'!$C$9)+'Non-Res Serviceability'!H48 -> 0
A9: Applicant 3 Rental Income | B9: =('Non-Res Serviceability'!C49*'Non-Res Serviceability'!$C$9)+'Non-Res Serviceability'!H49 -> 0
A10: Applicant 4 Rental Income | B10: =('Non-Res Serviceability'!C50*'Non-Res Serviceability'!$C$9)+'Non-Res Serviceability'!H50 -> 0
A11: Applicant 1 Company Income | B11: =('Non-Res Serviceability'!C42*'Non-Res Serviceability'!$C$9)+'Non-Res Serviceability'!H42 -> 0
A12: Applicant 2 Company Income | B12: =('Non-Res Serviceability'!C43*'Non-Res Serviceability'!$C$9)+'Non-Res Serviceability'!H43 -> 0
A13: Applicant 3 Company Income | B13: N/A
A14: Applicant 4 Company Income | B14: N/A
A15: Total Annual Gross Income | B15: =SUM(B3:B12) -> 0
A16: Declared monthly living expenses | B16: ='Non-Res Serviceability'!I57 -> 0
A17: Benchmark monthly living expenses | B17: ='Non-Res Serviceability'!D16 -> 0
A18: Rent / Board | B18: =('Non-Res Serviceability'!F73*'Non-Res Serviceability'!$C$9)+'Non-Res Serviceability'!K73 -> 0
A19: Child Support | B19: =('Non-Res Serviceability'!F72*'Non-Res Serviceability'!$C$9)+'Non-Res Serviceability'!K72 -> 0
A20: Credit Card Debt | B20: =('Non-Res Serviceability'!C64*'Non-Res Serviceability'!$C$9)+'Non-Res Serviceability'!H64 -> 0
A21: Personal Loan Debt | B21: =(SUM('Non-Res Serviceability'!C65:C66)*'Non-Res Serviceability'!$C$9)+SUM('Non-Res Serviceability'!H65:H66) -> 0
A22: Overdraft Debt | B22: =('Non-Res Serviceability'!C67*'Non-Res Serviceability'!$C$9)+'Non-Res Serviceability'!H67 -> 0
A23: Housing Loan Debt | B23: =(SUM('Non-Res Serviceability'!C68:C69)*'Non-Res Serviceability'!$C$9)+SUM('Non-Res Serviceability'!H68:H69) -> 0
A24: Lease / Other Debt | B24: =(SUM('Non-Res Serviceability'!C70:C71)*'Non-Res Serviceability'!C9)+SUM('Non-Res Serviceability'!H70:H71) -> 0
A25: Credit Card Payment | B25: =('Non-Res Serviceability'!F64*'Non-Res Serviceability'!$C$9)+'Non-Res Serviceability'!K64 -> 0
A26: Personal Loan Payment | B26: =(SUM('Non-Res Serviceability'!F65:F66)*'Non-Res Serviceability'!$C$9)+SUM('Non-Res Serviceability'!K65:K66) -> 0
A27: Overdraft Payment | B27: =('Non-Res Serviceability'!F67*'Non-Res Serviceability'!$C$9)+'Non-Res Serviceability'!K67 -> 0
A28: Housing Loan Payment | B28: =(SUM('Non-Res Serviceability'!F68:F69)*'Non-Res Serviceability'!$C$9)+SUM('Non-Res Serviceability'!K68:K69) -> 0
A29: Lease / Other Payment | B29: =(SUM('Non-Res Serviceability'!F70:F71)*'Non-Res Serviceability'!$C$9)+SUM('Non-Res Serviceability'!K70:K71) -> 0
A30: Loan Assessment Rate | B30: ='Non-Res Serviceability'!H91 -> 0.053
A31: Serviceability Result | B31: ='Non-Res Serviceability'!K99 -> 0
A32: Debt-to-Income Ratio | B32: ='Non-Res Serviceability'!K100 -> 

Sheet Lease Doc Serviceability Calc (hidden)
C3: Date: | D3: =TODAY() -> 2023-04-04
A4: Prospector number:
A5: Applicants Name(s): | G5: Your clients name please
A7: New Loan Commitment
A8: Repayment Type | B8: =IF(B9=0,"",IF(B9>B10,"Principal & Interest","Interest Only")) -> 
A9: Loan Term | B9: 0
A10: Interest Only Term | B10: 0
A11: New Loan Amount | B11: 0 | G11: Enter loan amount and interest rate
A12: Interest Rate of New Loan | B12: 0
A13: New Monthly Loan Repayment/s | B13: =IF(B8="Principal & Interest",-PMT(B12/12,(B9-B10)*12,B11,0,0)+15,IF(B8="Interest Only",(B11*B12)/12+15,0)) -> 0
A14: New Annual Loan Repayment/s | D14: =B13*12 -> 0
A16: Monthly Net Rental Income | B16: 0 | G16: Enter Monthly Rental Income
A17: Annual Rental Income | D17: =B16*12 -> 0
A19: Result - Must Exceed 1.2 | B19: 1.2 | D19: =ROUND(D17/D14,2) -> 
A21: Maximum Loan Available | D21: =ROUND((((D17-180)/B19)/B12),-2) -> 
A24: I certify that we have made the proper enquires and to the best of our knowledge the above information is correct.
A27: Signature | B27: Name | D27: Date
A31: ='Living Allow'!E11 -> Version Date: 1 April 2023

Sheet Lease Doc DTI Output (hidden)
A1: Prospector Number | B1: ='Lease Doc Serviceability Calc'!B4 -> 0
A2: Serviceability calculator type | B2: Lease Doc
A3: Applicant 1 Normal Income | B3: 0
A4: Applicant 2 Normal Income | B4: 0
A5: Applicant 3 Normal Income | B5: 0
A6: Applicant 4 Normal Income | B6: 0
A7: Applicant 1 Rental Income | B7: ='Lease Doc Serviceability Calc'!D17 -> 0
A8: Applicant 2 Rental Income | B8: 0
A9: Applicant 3 Rental Income | B9: 0
A10: Applicant 4 Rental Income | B10: 0
A11: Applicant 1 Company Income | B11: 0
A12: Applicant 2 Company Income | B12: 0
A13: Applicant 3 Company Income | B13: 0
A14: Applicant 4 Company Income | B14: 0
A15: Total Annual Gross Income | B15: =B7 -> 0
A16: Declared monthly living expenses | B16: 0
A17: Benchmark monthly living expenses | B17: 0
A18: Rent / Board | B18: 0
A19: Child Support | B19: 0
A20: Credit Card Debt | B20: 0
A21: Personal Loan Debt | B21: 0
A22: Overdraft Debt | B22: 0
A23: Housing Loan Debt | B23: 0
A24: Lease / Other Debt | B24: 0
A25: Credit Card Payment | B25: 0
A26: Personal Loan Payment | B26: 0
A27: Overdraft Payment | B27: 0
A28: Housing Loan Payment | B28: 0
A29: Lease / Other Payment | B29: 0
A30: Loan Assessment Rate | B30: ='Lease Doc Serviceability Calc'!$B$12 -> 0
A31: Serviceability Result | B31: ='Lease Doc Serviceability Calc'!$D$19 -> 
A32: Debt-to-Income Ratio | B32: ='Lease Doc Serviceability Calc'!B11/B7 -> 

Sheet Living Allow (hidden)
N2: Calculator Update Steps
C3: Single | D3: Joint | E3: Living Allowance Calculation | M3: 1 | N3: Copy and paste HEM data into HEM Tab
M4: 2 | N4: Adjust the formulas to that the VLOOKUP captures the band which includes $150,000
B5: 0 | C5: =#REF! ->  | D5: =#REF! ->  | F5: $ per Week | G5: $ per Month | M5: 3 | N5: Copy data from Numbeo for Contry and Cost of Living index
B6: 999 | C6: =#REF! ->  | D6: =#REF! ->  | E6: Single | F6: 356.39 | G6: =F6*52/12 -> 1544.356667 | M6: 4 | N6: Remove any countries with no Numbeo Cost of Living index value
B7: 1499 | C7: =#REF! ->  | D7: =#REF! ->  | E7: Couples | F7: 518.13 | G7: =F7*52/12 -> 2245.23 | M7: 5 | N7: Copy Australia Cost of Living Index value into F17
B8: 1999 | C8: =#REF! ->  | D8: =#REF! ->  | E8: Children | F8: 489.48 | G8: =(F8-F6)*52/12 -> 576.7233333 | M8: 6 | N8: Update the Calculator Version date
B9: 2499 | C9: =#REF! ->  | D9: =#REF! ->  | M9: 7 | N9: Update the HEM Data date
B10: 2999 | C10: =#REF! ->  | D10: =#REF! ->  | M10: 8 | N10: Update the Cost of Living Data date
B11: 3499 | C11: =#REF! ->  | D11: =#REF! ->  | E11: Version Date: 1 April 2023
B12: 3999 | C12: =#REF! ->  | D12: =#REF! -> 
B13: 4499 | C13: =#REF! ->  | D13: =#REF! -> 
B14: 4999 | C14: =#REF! ->  | D14: =#REF! ->  | E14: HEM Data Date - December 2022
B15: 5499 | C15: =#REF! ->  | D15: =#REF! ->  | E15: Cost of Living Data Date - December 2022
B16: 5999 | C16: =#REF! ->  | D16: =#REF! -> 
B17: 6499 | C17: =#REF! ->  | D17: =#REF! ->  | E17: Australia | F17: 75.3
B18: 6999 | C18: =#REF! ->  | D18: =#REF! -> 
B19: 7499 | C19: =#REF! ->  | D19: =#REF! ->  | E19: Country | F19: Cost of Living Index | G19: Currency Code
B20: 8999 | C20: =#REF! ->  | D20: =#REF! ->  | E20: Argentina | F20: 31.2 | G20: ARS
B21: 9999 | C21: =#REF! ->  | D21: =#REF! ->  | E21: Australia | F21: 75.3 | G21: AUD
B22: 10499 | C22: =#REF! ->  | D22: =#REF! ->  | E22: Austria | F22: 66 | G22: EUR
B23: 11499 | C23: =#REF! ->  | D23: =#REF! ->  | E23: Bahamas | F23: 90.9 | G23: BSD
B24: 11999 | C24: =#REF! ->  | D24: =#REF! ->  | E24: Bahrain | F24: 52.7 | G24: BHD
B25: 13499 | C25: =#REF! ->  | D25: =#REF! ->  | E25: Belgium | F25: 65.6 | G25: EUR
B26: 14999 | C26: =#REF! ->  | D26: =#REF! ->  | E26: Bosnia And Herzegovina | F26: 35.1 | G26: BAM
B27: 15499 | C27: =#REF! ->  | D27: =#REF! ->  | E27: Brazil | F27: 34.7 | G27: BRL
B28: 16499 | C28: =#REF! ->  | D28: =#REF! ->  | E28: Cambodia | F28: 44.5 | G28: KHR
B29: 16999 | C29: =#REF! ->  | D29: =#REF! ->  | E29: Canada | F29: 66.1 | G29: CAD
B30: 17499 | C30: =#REF! ->  | D30: =#REF! ->  | E30: Chile | F30: 44.1 | G30: CLP
B31: 17999 | C31: =#REF! ->  | D31: =#REF! ->  | E31: China | F31: 39.2 | G31: CNY
B32: 18999 | C32: =#REF! ->  | D32: =#REF! ->  | E32: Costa Rica | F32: 48.8 | G32: CRC
B33: 19499 | C33: =#REF! ->  | D33: =#REF! ->  | E33: Croatia | F33: 46.7 | G33: HRK
E34: Cyprus | F34: 55.9 | G34: EUR
E35: Czech Republic | F35: 48.9 | G35: CZK
E36: Denmark | F36: 78.6 | G36: DKK
E37: Dominican Republic | F37: 41.8 | G37: DOP
E38: Ecuador | F38: 35.1 | G38: USD
E39: Egypt | F39: 21.6 | G39: EGP
E40: Estonia | F40: 54.8 | G40: EUR
E41: Finland | F41: 67.5 | G41: EUR
E42: France | F42: 68.7 | G42: EUR
E43: Germany | F43: 62.9 | G43: EUR
E44: Greece | F44: 54.6 | G44: EUR
E45: Hong Kong | F45: 75.7 | G45: HKD
E46: Hungary | F46: 39.2 | G46: HUF
E47: Iceland | F47: 83.3 | G47: ISK
E48: India | F48: 22.4 | G48: INR
E49: Indonesia | F49: 31.2 | G49: IDR
E50: Ireland | F50: 70.5 | G50: EUR
E51: Israel | F51: 76.4 | G51: ILS
E52: Italy | F52: 61.3 | G52: EUR
E53: Japan | F53: 64.6 | G53: JPY
E54: Latvia | F54: 50.9 | G54: EUR
E55: Lithuania | F55: 48.8 | G55: EUR
E56: Luxembourg | F56: 73.2 | G56: EUR
E57: Malaysia | F57: 35 | G57: MYR
E58: Malta | F58: 61.4 | G58: EUR
E59: Mauritius | F59: 42.2 | G59: MUR
E60: Mexico | F60: 37.3 | G60: MXN
E61: Moldova | F61: 32.3 | G61: MDL
E62: Montenegro | F62: 38.9 | G62: EUR
E63: Morocco | F63: 29.3 | G63: MAD
E64: Nepal | F64: 24.8 | G64: NPR
E65: Netherlands | F65: 68.6 | G65: EUR
E66: New Zealand | F66: 72.9 | G66: NZD
E67: Norway | F67: 88.6 | G67: NOK
E68: Oman | F68: 47.8 | G68: OMR
E69: Pakistan | F69: 18 | G69: PKR
E70: Panama | F70: 48.2 | G70: PAB
E71: Peru | F71: 32.4 | G71: PEN
E72: Philippines | F72: 34 | G72: PHP
E73: Poland | F73: 38.6 | G73: PLN
E74: Portugal | F74: 45.3 | G74: EUR
E75: Puerto Rico | F75: 67 | G75: USD
E76: Qatar | F76: 59.5 | G76: QAR
E77: Romania | F77: 37.4 | G77: RON
E78: Saudi Arabia | F78: 50.6 | G78: SAR
E79: Serbia | F79: 37.2 | G79: RSD
E80: Singapore | F80: 85.9 | G80: SGD
E81: Slovakia | F81: 44.2 | G81: EUR
E82: Slovenia | F82: 50.8 | G82: EUR
E83: South Africa | F83: 37.8 | G83: ZAR
E84: South Korea | F84: 70.4 | G84: KRW
E85: Spain | F85: 50.6 | G85: EUR
E86: Sweden | F86: 62.9 | G86: SEK
E87: Switzerland | F87: 114.2 | G87: CHF
E88: Taiwan | F88: 54.2 | G88: TWD
E89: Thailand | F89: 40.7 | G89: THB
E90: Tunisia | F90: 26.5 | G90: TND
E91: Turkey | F91: 28.1 | G91: TRY
E92: United Arab Emirates | F92: 60.3 | G92: AED
E93: United Kingdom | F93: 61.5 | G93: GBP
E94: United States | F94: 72.4 | G94: USD
E95: Uruguay | F95: 59.9 | G95: UYU
E96: Vietnam | F96: 35.7 | G96: VND

Sheet Tax Scales (hidden)
A1: Annual Salary Guide - Standard | P1: Annual Salary Guide - SMSF | AE1: Annual Salary Guide - Non Resident | AT1: Annual Salary Guide - ICR
A2: Tax Scales | P2: Tax Scales | AE2: Tax Scales | AT2: Tax Scales
A3: Applicant 1 | P3: Applicant 1 | AE3: Applicant 1 | AT3: Applicant 1
A4: Gross Taxable Income | D4: Tax Rate | F4: Gross | H4: Tax | J4: Net | P4: Gross Taxable Income | S4: Tax Rate | U4: Gross | W4: Tax | Y4: Net | AA4: Flood Levy Calculations | AE4: Gross Taxable Income | AH4: Tax Rate | AJ4: Gross | AL4: Tax | AN4: Net | AP4: Flood Levy Calculations | AT4: Gross Taxable Income | AW4: Tax Rate | AY4: Gross | BA4: Tax | BC4: Net
A5: 1 | B5: 18200 | C5: =B5-A5+1 -> 18200 | D5: 0 | F5: =IF('Serviceability Calculator'!F32<B5,'Serviceability Calculator'!F32,C5) -> 0 | G5: =F5 -> 0 | H5: =F5*D5 -> 0 | J5: =F5-H5 -> 0 | P5: =A5 -> 1 | Q5: 18200 | R5: =C5 -> 18200 | S5: =D5 -> 0 | U5: =IF('SMSF Serviceability Calculator'!E58<Q5,'SMSF Serviceability Calculator'!E58,R5) -> 0 | V5: =U5 -> 0 | W5: =U5*S5 -> 0 | Y5: =U5-W5 -> 0 | AE5: -1000000 | AF5: 0 | AG5: 0 | AH5: 0 | AJ5: =IF('Non-Res Serviceability'!I32<AF5,'Non-Res Serviceability'!I32,AG5) -> 0 | AK5: =AJ5 -> 0 | AL5: =AJ5*AH5 -> 0 | AN5: =AJ5-AL5 -> 0 | AT5: =A5 -> 1 | AU5: =B5 -> 18200 | AV5: 18200 | AW5: 0 | AY5: =IF('Commercial Calculator'!$F$65<AU5,'Commercial Calculator'!$F$65,AV5) -> 0 | AZ5: =AY5 -> 0 | BA5: =AY5*AW5 -> 0 | BC5: =AY5-BA5 -> 0
A6: 18201 | B6: 45000 | C6: =B6-A6+1 -> 26800 | D6: 0.19 | F6: =IF(G5='Serviceability Calculator'!F32,0,IF(('Serviceability Calculator'!F32-G5)>C6,C6,('Serviceability Calculator'!F32-G5))) -> 0 | G6: =G5+F6 -> 0 | H6: =F6*D6 -> 0 | J6: =F6-H6 -> 0 | P6: 18201 | Q6: 45000 | R6: =C6 -> 26800 | S6: 0.19 | U6: =IF(V5='SMSF Serviceability Calculator'!$E$58,0,IF(('SMSF Serviceability Calculator'!$E$58-V5)>R6,R6,('SMSF Serviceability Calculator'!$E$58-V5))) -> 0 | V6: =V5+U6 -> 0 | W6: =U6*S6 -> 0 | Y6: =U6-W6 -> 0 | AE6: 1 | AF6: 120000 | AG6: =AF6-AE6+1 -> 120000 | AH6: 0.325 | AJ6: =IF(AK5='Non-Res Serviceability'!I32,0,IF(('Non-Res Serviceability'!I32-0)>AG6,AG6,('Non-Res Serviceability'!I32-0))) -> 0 | AK6: =AK5+AJ6 -> 0 | AL6: =AJ6*AH6 -> 0 | AN6: =AJ6-AL6 -> 0 | AT6: =A6 -> 18201 | AU6: =B6 -> 45000 | AV6: =C6 -> 26800 | AW6: =D6 -> 0.19 | AY6: =IF(AZ5='Commercial Calculator'!$F$65,0,IF(('Commercial Calculator'!$F$65-AZ5)>AV6,AV6,('Commercial Calculator'!$F$65-AZ5))) -> 0 | AZ6: =AZ5+AY6 -> 0 | BA6: =AY6*AW6 -> 0 | BC6: =AY6-BA6 -> 0
A7: 45001 | B7: 120000 | C7: =B7-A7+1 -> 75000 | D7: 0.325 | F7: =IF(G6='Serviceability Calculator'!F32,0,IF(('Serviceability Calculator'!F32-G6)>C7,C7,('Serviceability Calculator'!F32-G6))) -> 0 | G7: =G6+F7 -> 0 | H7: =F7*D7 -> 0 | J7: =F7-H7 -> 0 | P7: 45001 | Q7: 120000 | R7: 75000 | S7: 0.325 | U7: =IF(V6='SMSF Serviceability Calculator'!$E$58,0,IF(('SMSF Serviceability Calculator'!$E$58-V6)>R7,R7,('SMSF Serviceability Calculator'!$E$58-V6))) -> 0 | V7: =V6+U7 -> 0 | W7: =U7*S7 -> 0 | Y7: =U7-W7 -> 0 | AA7: =IF(U7>13000,(U7-13000)*0.5%,0) -> 0 | AE7: 120001 | AF7: 180000 | AG7: =AF7-AE7+1 -> 60000 | AH7: 0.37 | AJ7: =IF(AK6='Non-Res Serviceability'!I32,0,IF(('Non-Res Serviceability'!I32-AK6)>AG7,AG7,('Non-Res Serviceability'!I32-AK6))) -> 0 | AK7: =AK6+AJ7 -> 0 | AL7: =AJ7*AH7 -> 0 | AN7: =AJ7-AL7 -> 0 | AP7: =IF(AJ7>13000,(AJ7-13000)*0.5%,0) -> 0 | AT7: 45001 | AU7: 120000 | AV7: 75000 | AW7: 0.325 | AY7: =IF(AZ6='Commercial Calculator'!$F$65,0,IF(('Commercial Calculator'!$F$65-AZ6)>AV7,AV7,('Commercial Calculator'!$F$65-AZ6))) -> 0 | AZ7: =AZ6+AY7 -> 0 | BA7: =AY7*AW7 -> 0 | BC7: =AY7-BA7 -> 0
A8: 120001 | B8: 180000 | C8: =B8-A8+1 -> 60000 | D8: 0.37 | F8: =IF(G7='Serviceability Calculator'!F32,0,IF(('Serviceability Calculator'!F32-G7)>C8,C8,('Serviceability Calculator'!F32-G7))) -> 0 | G8: =G7+F8 -> 0 | H8: =F8*D8 -> 0 | J8: =F8-H8 -> 0 | P8: 120001 | Q8: 180000 | R8: 60000 | S8: 0.37 | U8: =IF(V7='SMSF Serviceability Calculator'!$E$58,0,IF(('SMSF Serviceability Calculator'!$E$58-V7)>R8,R8,('SMSF Serviceability Calculator'!$E$58-V7))) -> 0 | V8: =V7+U8 -> 0 | W8: =U8*S8 -> 0 | Y8: =U8-W8 -> 0 | AA8: =SUM(AB8:AC8) -> 0 | AB8: =IF(U8<=20000,U8*0.5%,0) -> 0 | AC8: =IF(U8>20000,((U8-20000)*1%)+100,0) -> 0 | AE8: 180001 | AF8: 10000000 | AG8: =AF8-AE8+1 -> 9820000 | AH8: 0.45 | AJ8: =IF(AK7='Non-Res Serviceability'!I32,0,IF(('Non-Res Serviceability'!I32-AK7)>AG8,AG8,('Non-Res Serviceability'!I32-AK7))) -> 0 | AK8: =AK7+AJ8 -> 0 | AL8: =AJ8*AH8 -> 0 | AN8: =AJ8-AL8 -> 0 | AP8: =SUM(AQ8:AR8) -> 0 | AQ8: =IF(AJ8<=20000,AJ8*0.5%,0) -> 0 | AR8: =IF(AJ8>20000,((AJ8-20000)*1%)+100,0) -> 0 | AT8: 120001 | AU8: 180000 | AV8: 60000 | AW8: 0.37 | AY8: =IF(AZ7='Commercial Calculator'!$F$65,0,IF(('Commercial Calculator'!$F$65-AZ7)>AV8,AV8,('Commercial Calculator'!$F$65-AZ7))) -> 0 | AZ8: =AZ7+AY8 -> 0 | BA8: =AY8*AW8 -> 0 | BC8: =AY8-BA8 -> 0
A9: 180001 | B9: 100000000 | C9: =B9-A9+1 -> 99820000 | D9: 0.45 | F9: =IF('Serviceability Calculator'!F32-G8<=0,0,('Serviceability Calculator'!F32-G8)) -> 0 | G9: =G8+F9 -> 0 | H9: =F9*D9 -> 0 | J9: =F9-H9 -> 0 | P9: 180001 | Q9: 100000000 | R9: 99820000 | S9: 0.45 | U9: =IF(V8='SMSF Serviceability Calculator'!$E$58,0,IF(('SMSF Serviceability Calculator'!$E$58-V8)>R9,R9,('SMSF Serviceability Calculator'!$E$58-V8))) -> 0 | V9: =V8+U9 -> 0 | W9: =U9*S9 -> 0 | Y9: =U9-W9 -> 0 | AA9: =U9*1% -> 0 | AE9: 10000001 | AF9: 20000000 | AG9: =AF9-AE9+1 -> 10000000 | AH9: 0.45 | AJ9: =IF('Non-Res Serviceability'!I32-AK8<=0,0,('Non-Res Serviceability'!I32-AK8)) -> 0 | AK9: =AK8+AJ9 -> 0 | AL9: =AJ9*AH9 -> 0 | AN9: =AJ9-AL9 -> 0 | AP9: =AJ9*1% -> 0 | AT9: 180001 | AU9: 100000000 | AV9: 99820000 | AW9: 0.45 | AY9: =IF(AZ8='Commercial Calculator'!$F$65,0,IF(('Commercial Calculator'!$F$65-AZ8)>AV9,AV9,('Commercial Calculator'!$F$65-AZ8))) -> 0 | AZ9: =AZ8+AY9 -> 0 | BA9: =AY9*AW9 -> 0 | BC9: =AY9-BA9 -> 0
D10: Totals: | F10: =SUM(F5:F9) -> 0 | H10: =SUM(H5:H9) -> 0 | J10: =SUM(J5:J9) -> 0 | S10: Totals: | U10: =SUM(U5:U9) -> 0 | W10: =SUM(W5:W9) -> 0 | Y10: =SUM(Y5:Y9) -> 0 | AA10: =SUM(AA7:AA9) -> 0 | AH10: Totals: | AJ10: =IF('Non-Res Serviceability'!$I$32<0,SUM(AJ5:AJ9),SUM(AJ6:AJ9)) -> 0 | AL10: =SUM(AL5:AL9) -> 0 | AN10: =SUM(AN5:AN9) -> 0 | AP10: =SUM(AP7:AP9) -> 0 | AW10: Totals: | AY10: =SUM(AY5:AY9) -> 0 | BA10: =SUM(BA5:BA9) -> 0 | BC10: =SUM(BC5:BC9) -> 0
A11: Low & middle income tax offset (monthly) | C11: 0 | D11: Refer table | P11: Low & middle income tax offset (monthly) | R11: 0 | S11: Refer table | AE11: Budget Repair Levy (monthly) | AG11: 0 | AH11: N/A | AT11: Low & middle income tax offset (monthly) | AV11: 0 | AW11: Refer table
A12: Low income tax offset (monthly) | C12: =IF(F10<=$B$168,$D$168,IF(F10<=$B$169,$D$169,IF(F10<=$B$170,((F10-$B$169)*$C$170)+$D$170,IF(F10<=$B$171,((F10-$B$170)*$C$171)+$D$171,IF(F10<=$B$172,$D$172,0)))))/12 -> 0 | D12: Refer table | F12: =C12*12 -> 0 | P12: Low income tax offset (monthly) | R12: =IF(U10<=$B$168,$D$168,IF(U10<=$B$169,$D$169,IF(U10<=$B$170,((U10-$B$169)*$C$170)+$D$170,IF(U10<=$B$171,((U10-$B$170)*$C$171)+$D$171,IF(U10<=$B$172,$D$172,0)))))/12 -> 0 | S12: Refer table | U12: =R12*12 -> 0 | AT12: Low income tax offset (monthly) | AV12: =IF(AY10<=$B$168,$D$168,IF(AY10<=$B$169,$D$169,IF(AY10<=$B$170,((AY10-$B$169)*$C$170)+$D$170,IF(AY10<=$B$171,((AY10-$B$170)*$C$171)+$D$171,IF(AY10<=$B$172,$D$172,0)))))/12 -> 0 | AW12: Refer table | AY12: =AV12*12 -> 0
A13: Medicare Levy (monthly) | C13: =F10*(2/100)/12 -> 0 | D13: 0.02 | P13: Medicare Levy (monthly) | R13: =U10*(2/100)/12 -> 0 | S13: 0.02 | AE13: Medicare Levy (monthly) | AG13: 0 | AH13: N/A | AT13: Medicare Levy (monthly) | AV13: =AY10*(2/100)/12 -> 0 | AW13: 0.02
C14: =SUM(C11:C13) -> 0 | H14: Monthly | J14: =(J10/12)-C14 -> 0 | R14: =SUM(R11:R13) -> 0 | W14: Monthly | Y14: =(Y10/12)-R14 -> 0 | AG14: =SUM(AG11:AG13) -> 0 | AL14: Monthly | AN14: =(AN10/12)-AG14 -> 0 | AV14: =SUM(AV11:AV13) -> 0 | BA14: Monthly | BC14: =(BC10/12)-AV14 -> 0
A16: Applicant 2 | P16: Applicant 2 | AE16: Applicant 2 | AT16: Applicant 2
A17: Gross Taxable Income | D17: Tax Rate | F17: Gross | H17: Tax | J17: Net | P17: Gross Taxable Income | S17: Tax Rate | U17: Gross | W17: Tax | Y17: Net | AE17: Gross Taxable Income | AH17: Tax Rate | AJ17: Gross | AL17: Tax | AN17: Net | AT17: Gross Taxable Income | AW17: Tax Rate | AY17: Gross | BA17: Tax | BC17: Net
A18: =$A$5 -> 1 | B18: =$B$5 -> 18200 | C18: =$C$5 -> 18200 | D18: =$D$5 -> 0 | F18: =IF('Serviceability Calculator'!F33<B18,'Serviceability Calculator'!F33,C18) -> 0 | G18: =F18 -> 0 | H18: =F18*D18 -> 0 | J18: =F18-H18 -> 0 | P18: =A18 -> 1 | Q18: 18200 | R18: =C18 -> 18200 | S18: =D18 -> 0 | U18: =IF('SMSF Serviceability Calculator'!E59<Q18,'SMSF Serviceability Calculator'!E59,R18) -> 0 | V18: =U18 -> 0 | W18: =U18*S18 -> 0 | Y18: =U18-W18 -> 0 | AE18: =AE5 -> -1000000 | AF18: =AF5 -> 0 | AG18: =AG5 -> 0 | AH18: =AH5 -> 0 | AJ18: =IF('Non-Res Serviceability'!I33<AF18,'Non-Res Serviceability'!I33,AG18) -> 0 | AK18: =AJ18 -> 0 | AL18: =AJ18*AH18 -> 0 | AN18: =AJ18-AL18 -> 0 | AT18: =AT5 -> 1 | AU18: =AU5 -> 18200 | AV18: 18200 | AW18: 0 | AY18: =IF('Commercial Calculator'!$F$66<AU18,'Commercial Calculator'!$F$66,AV18) -> 0 | AZ18: =AY18 -> 0 | BA18: =AY18*AW18 -> 0 | BC18: =AY18-BA18 -> 0
A19: =$A$6 -> 18201 | B19: =$B$6 -> 45000 | C19: =$C$6 -> 26800 | D19: =$D$6 -> 0.19 | F19: =IF(G18='Serviceability Calculator'!F33,0,IF(('Serviceability Calculator'!F33-G18)>C19,C19,('Serviceability Calculator'!F33-G18))) -> 0 | G19: =G18+F19 -> 0 | H19: =F19*D19 -> 0 | J19: =F19-H19 -> 0 | P19: 18201 | Q19: 45000 | R19: 26800 | S19: 0.19 | U19: =IF(V18='SMSF Serviceability Calculator'!$E$59,0,IF(('SMSF Serviceability Calculator'!$E$59-V18)>R19,R19,('SMSF Serviceability Calculator'!$E$59-V18))) -> 0 | V19: =V18+U19 -> 0 | W19: =U19*S19 -> 0 | Y19: =U19-W19 -> 0 | AE19: =AE6 -> 1 | AF19: 120000 | AG19: 120000 | AH19: 0.325 | AJ19: =IF(AK18='Non-Res Serviceability'!I33,0,IF(('Non-Res Serviceability'!I33-AK18)>AG19,AG19,('Non-Res Serviceability'!I33-AK18))) -> 0 | AK19: =AK18+AJ19 -> 0 | AL19: =AJ19*AH19 -> 0 | AN19: =AJ19-AL19 -> 0 | AT19: =AT6 -> 18201 | AU19: 45000 | AV19: 26800 | AW19: 0.19 | AY19: =IF(AZ18='Commercial Calculator'!$F$66,0,IF(('Commercial Calculator'!$F$66-AZ18)>AV19,AV19,('Commercial Calculator'!$F$66-AZ18))) -> 0 | AZ19: =AZ18+AY19 -> 0 | BA19: =AY19*AW19 -> 0 | BC19: =AY19-BA19 -> 0
A20: =$A$7 -> 45001 | B20: =$B$7 -> 120000 | C20: =$C$7 -> 75000 | D20: =$D$7 -> 0.325 | F20: =IF(G19='Serviceability Calculator'!F33,0,IF(('Serviceability Calculator'!F33-G19)>C20,C20,('Serviceability Calculator'!F33-G19))) -> 0 | G20: =G19+F20 -> 0 | H20: =F20*D20 -> 0 | J20: =F20-H20 -> 0 | P20: 45001 | Q20: 120000 | R20: 75000 | S20: 0.325 | U20: =IF(V19='SMSF Serviceability Calculator'!$E$59,0,IF(('SMSF Serviceability Calculator'!$E$59-V19)>R20,R20,('SMSF Serviceability Calculator'!$E$59-V19))) -> 0 | V20: =V19+U20 -> 0 | W20: =U20*S20 -> 0 | Y20: =U20-W20 -> 0 | AA20: =IF(U20>13000,(U20-13000)*0.5%,0) -> 0 | AE20: =AE7 -> 120001 | AF20: 180000 | AG20: 60000 | AH20: 0.37 | AJ20: =IF(AK19='Non-Res Serviceability'!I33,0,IF(('Non-Res Serviceability'!I33-AK19)>AG20,AG20,('Non-Res Serviceability'!I33-AK19))) -> 0 | AK20: =AK19+AJ20 -> 0 | AL20: =AJ20*AH20 -> 0 | AN20: =AJ20-AL20 -> 0 | AP20: =IF(AJ20>13000,(AJ20-13000)*0.5%,0) -> 0 | AT20: =AT7 -> 45001 | AU20: 120000 | AV20: 75000 | AW20: 0.325 | AY20: =IF(AZ19='Commercial Calculator'!$F$66,0,IF(('Commercial Calculator'!$F$66-AZ19)>AV20,AV20,('Commercial Calculator'!$F$66-AZ19))) -> 0 | AZ20: =AZ19+AY20 -> 0 | BA20: =AY20*AW20 -> 0 | BC20: =AY20-BA20 -> 0
A21: =$A$8 -> 120001 | B21: =$B$8 -> 180000 | C21: =$C$8 -> 60000 | D21: =$D$8 -> 0.37 | F21: =IF(G20='Serviceability Calculator'!F33,0,IF(('Serviceability Calculator'!F33-G20)>C21,C21,('Serviceability Calculator'!F33-G20))) -> 0 | G21: =G20+F21 -> 0 | H21: =F21*D21 -> 0 | J21: =F21-H21 -> 0 | P21: 120001 | Q21: 180000 | R21: 60000 | S21: 0.37 | U21: =IF(V20='SMSF Serviceability Calculator'!$E$59,0,IF(('SMSF Serviceability Calculator'!$E$59-V20)>R21,R21,('SMSF Serviceability Calculator'!$E$59-V20))) -> 0 | V21: =V20+U21 -> 0 | W21: =U21*S21 -> 0 | Y21: =U21-W21 -> 0 | AA21: =SUM(AB21:AC21) -> 0 | AB21: =IF(U21<=20000,U21*0.5%,0) -> 0 | AC21: =IF(U21>20000,((U21-20000)*1%)+100,0) -> 0 | AE21: =AE8 -> 180001 | AF21: 10000000 | AG21: 9820000 | AH21: 0.45 | AJ21: =IF(AK20='Non-Res Serviceability'!I33,0,IF(('Non-Res Serviceability'!I33-AK20)>AG21,AG21,('Non-Res Serviceability'!I33-AK20))) -> 0 | AK21: =AK20+AJ21 -> 0 | AL21: =AJ21*AH21 -> 0 | AN21: =AJ21-AL21 -> 0 | AP21: =SUM(AQ21:AR21) -> 0 | AQ21: =IF(AJ21<=20000,AJ21*0.5%,0) -> 0 | AR21: =IF(AJ21>20000,((AJ21-20000)*1%)+100,0) -> 0 | AT21: =AT8 -> 120001 | AU21: 180000 | AV21: 60000 | AW21: 0.37 | AY21: =IF(AZ20='Commercial Calculator'!$F$66,0,IF(('Commercial Calculator'!$F$66-AZ20)>AV21,AV21,('Commercial Calculator'!$F$66-AZ20))) -> 0 | AZ21: =AZ20+AY21 -> 0 | BA21: =AY21*AW21 -> 0 | BC21: =AY21-BA21 -> 0
A22: =$A$9 -> 180001 | B22: =$B$9 -> 100000000 | C22: =$C$9 -> 99820000 | D22: =$D$9 -> 0.45 | F22: =IF('Serviceability Calculator'!F33-G21<=0,0,('Serviceability Calculator'!F33-G21)) -> 0 | G22: =G21+F22 -> 0 | H22: =F22*D22 -> 0 | J22: =F22-H22 -> 0 | P22: 180001 | Q22: 100000000 | R22: 99820000 | S22: 0.45 | U22: =IF(V21='SMSF Serviceability Calculator'!$E$59,0,IF(('SMSF Serviceability Calculator'!$E$59-V21)>R22,R22,('SMSF Serviceability Calculator'!$E$59-V21))) -> 0 | V22: =V21+U22 -> 0 | W22: =U22*S22 -> 0 | Y22: =U22-W22 -> 0 | AA22: =U22*1% -> 0 | AE22: =AE9 -> 10000001 | AF22: 20000000 | AG22: 10000000 | AH22: 0.45 | AJ22: =IF('Non-Res Serviceability'!I33-AK21<=0,0,('Non-Res Serviceability'!I33-AK21)) -> 0 | AK22: =AK21+AJ22 -> 0 | AL22: =AJ22*AH22 -> 0 | AN22: =AJ22-AL22 -> 0 | AP22: =AJ22*1% -> 0 | AT22: =AT9 -> 180001 | AU22: 100000000 | AV22: 99820000 | AW22: 0.45 | AY22: =IF(AZ21='Commercial Calculator'!$F$66,0,IF(('Commercial Calculator'!$F$66-AZ21)>AV22,AV22,('Commercial Calculator'!$F$66-AZ21))) -> 0 | AZ22: =AZ21+AY22 -> 0 | BA22: =AY22*AW22 -> 0 | BC22: =AY22-BA22 -> 0
D23: Totals: | F23: =SUM(F18:F22) -> 0 | H23: =SUM(H18:H22) -> 0 | J23: =SUM(J18:J22) -> 0 | S23: Totals: | U23: =SUM(U18:U22) -> 0 | W23: =SUM(W18:W22) -> 0 | Y23: =SUM(Y18:Y22) -> 0 | AA23: =SUM(AA20:AA22) -> 0 | AH23: Totals: | AJ23: =SUM(AJ18:AJ22) -> 0 | AL23: =SUM(AL18:AL22) -> 0 | AN23: =SUM(AN18:AN22) -> 0 | AP23: =SUM(AP20:AP22) -> 0 | AW23: Totals: | AY23: =SUM(AY18:AY22) -> 0 | BA23: =SUM(BA18:BA22) -> 0 | BC23: =SUM(BC18:BC22) -> 0
A24: Low & middle income tax offset (monthly) | C24: 0 | D24: Refer table | P24: Low & middle income tax offset (monthly) | R24: 0 | S24: Refer table | AE24: Budget Repair Levy (monthly) | AG24: 0 | AH24: N/A | AT24: Low & middle income tax offset (monthly) | AV24: 0 | AW24: Refer table
A25: Low income tax offset (monthly) | C25: =IF(F23<=$B$168,$D$168,IF(F23<=$B$169,$D$169,IF(F23<=$B$170,((F23-$B$169)*$C$170)+$D$170,IF(F23<=$B$171,((F23-$B$170)*$C$171)+$D$171,IF(F23<=$B$172,$D$172,0)))))/12 -> 0 | D25: Refer table | F25: =C25*12 -> 0 | P25: Low income tax offset (monthly) | R25: =IF(U23<=$B$168,$D$168,IF(U23<=$B$169,$D$169,IF(U23<=$B$170,((U23-$B$169)*$C$170)+$D$170,IF(U23<=$B$171,((U23-$B$170)*$C$171)+$D$171,IF(U23<=$B$172,$D$172,0)))))/12 -> 0 | S25: Refer table | U25: =R25*12 -> 0 | AT25: Low income tax offset (monthly) | AV25: =IF(AY23<=$B$168,$D$168,IF(AY23<=$B$169,$D$169,IF(AY23<=$B$170,((AY23-$B$169)*$C$170)+$D$170,IF(AY23<=$B$171,((AY23-$B$170)*$C$171)+$D$171,IF(AY23<=$B$172,$D$172,0)))))/12 -> 0 | AW25: Refer table | AY25: =AV25*12 -> 0
A26: Medicare Levy (monthly) | C26: =F23*(2/100)/12 -> 0 | D26: 0.02 | P26: Medicare Levy (monthly) | R26: =U23*(2/100)/12 -> 0 | S26: 0.02 | AE26: Medicare Levy (monthly) | AG26: 0 | AH26: N/A | AT26: Medicare Levy (monthly) | AV26: =AY23*(2/100)/12 -> 0 | AW26: 0.02
C27: =SUM(C24:C26) -> 0 | H27: Monthly | J27: =(J23/12)-C27 -> 0 | R27: =SUM(R24:R26) -> 0 | W27: Monthly | Y27: =(Y23/12)-R27 -> 0 | AG27: =SUM(AG24:AG26) -> 0 | AL27: Monthly | AN27: =(AN23/12)-AG27 -> 0 | AV27: =SUM(AV24:AV26) -> 0 | BA27: Monthly | BC27: =(BC23/12)-AV27 -> 0
A29: Applicant 3 | P29: Applicant 3 | AE29: Applicant 3 | AT29: Applicant 3
A30: Gross Taxable Income | D30: Tax Rate | F30: Gross | H30: Tax | J30: Net | P30: Gross Taxable Income | S30: Tax Rate | U30: Gross | W30: Tax | Y30: Net | AE30: Gross Taxable Income | AH30: Tax Rate | AJ30: Gross | AL30: Tax | AN30: Net | AT30: Gross Taxable Income | AW30: Tax Rate | AY30: Gross | BA30: Tax | BC30: Net
A31: =$A$5 -> 1 | B31: =$B$5 -> 18200 | C31: =$C$5 -> 18200 | D31: =$D$5 -> 0 | F31: =IF('Serviceability Calculator'!F34<B31,'Serviceability Calculator'!F34,C31) -> 0 | G31: =F31 -> 0 | H31: =F31*D31 -> 0 | J31: =F31-H31 -> 0 | P31: =A31 -> 1 | Q31: 18200 | R31: =C31 -> 18200 | S31: =D31 -> 0 | U31: =IF('SMSF Serviceability Calculator'!E60<Q31,'SMSF Serviceability Calculator'!E60,R31) -> 0 | V31: =U31 -> 0 | W31: =U31*S31 -> 0 | Y31: =U31-W31 -> 0 | AE31: =AE18 -> -1000000 | AF31: =AF18 -> 0 | AG31: =AG18 -> 0 | AH31: =AH18 -> 0 | AJ31: =IF('Non-Res Serviceability'!I34<AF31,'Non-Res Serviceability'!I34,AG31) -> 0 | AK31: =AJ31 -> 0 | AL31: =AJ31*AH31 -> 0 | AN31: =AJ31-AL31 -> 0 | AT31: =AT5 -> 1 | AU31: =AU5 -> 18200 | AV31: 18200 | AW31: 0 | AY31: =IF('Commercial Calculator'!$F$67<AU31,'Commercial Calculator'!$F$67,AV31) -> 0 | AZ31: =AY31 -> 0 | BA31: =AY31*AW31 -> 0 | BC31: =AY31-BA31 -> 0
A32: =$A$6 -> 18201 | B32: =$B$6 -> 45000 | C32: =$C$6 -> 26800 | D32: =$D$6 -> 0.19 | F32: =IF(G31='Serviceability Calculator'!F34,0,IF(('Serviceability Calculator'!F34-G31)>C32,C32,('Serviceability Calculator'!F34-G31))) -> 0 | G32: =G31+F32 -> 0 | H32: =F32*D32 -> 0 | J32: =F32-H32 -> 0 | P32: 18201 | Q32: 45000 | R32: 26800 | S32: 0.19 | U32: =IF(V31='SMSF Serviceability Calculator'!$E$60,0,IF(('SMSF Serviceability Calculator'!$E$60-V31)>R32,R32,('SMSF Serviceability Calculator'!$E$60-V31))) -> 0 | V32: =V31+U32 -> 0 | W32: =U32*S32 -> 0 | Y32: =U32-W32 -> 0 | AE32: =AE19 -> 1 | AF32: 120000 | AG32: 120000 | AH32: 0.325 | AJ32: =IF(AK31='Non-Res Serviceability'!I34,0,IF(('Non-Res Serviceability'!I34-AK31)>AG32,AG32,('Non-Res Serviceability'!I34-AK31))) -> 0 | AK32: =AK31+AJ32 -> 0 | AL32: =AJ32*AH32 -> 0 | AN32: =AJ32-AL32 -> 0 | AT32: =AT6 -> 18201 | AU32: 45000 | AV32: 26800 | AW32: 0.19 | AY32: =IF(AZ31='Commercial Calculator'!$F$67,0,IF(('Commercial Calculator'!$F$67-AZ31)>AV32,AV32,('Commercial Calculator'!$F$67-AZ31))) -> 0 | AZ32: =AZ31+AY32 -> 0 | BA32: =AY32*AW32 -> 0 | BC32: =AY32-BA32 -> 0
A33: =$A$7 -> 45001 | B33: =$B$7 -> 120000 | C33: =$C$7 -> 75000 | D33: =$D$7 -> 0.325 | F33: =IF(G32='Serviceability Calculator'!F34,0,IF(('Serviceability Calculator'!F34-G32)>C33,C33,('Serviceability Calculator'!F34-G32))) -> 0 | G33: =G32+F33 -> 0 | H33: =F33*D33 -> 0 | J33: =F33-H33 -> 0 | P33: 45001 | Q33: 120000 | R33: 75000 | S33: 0.325 | U33: =IF(V32='SMSF Serviceability Calculator'!$E$60,0,IF(('SMSF Serviceability Calculator'!$E$60-V32)>R33,R33,('SMSF Serviceability Calculator'!$E$60-V32))) -> 0 | V33: =V32+U33 -> 0 | W33: =U33*S33 -> 0 | Y33: =U33-W33 -> 0 | AA33: =IF(U33>13000,(U33-13000)*0.5%,0) -> 0 | AE33: =AE20 -> 120001 | AF33: 180000 | AG33: 60000 | AH33: 0.37 | AJ33: =IF(AK32='Non-Res Serviceability'!I34,0,IF(('Non-Res Serviceability'!I34-AK32)>AG33,AG33,('Non-Res Serviceability'!I34-AK32))) -> 0 | AK33: =AK32+AJ33 -> 0 | AL33: =AJ33*AH33 -> 0 | AN33: =AJ33-AL33 -> 0 | AP33: =IF(AJ33>13000,(AJ33-13000)*0.5%,0) -> 0 | AT33: =AT7 -> 45001 | AU33: 120000 | AV33: 75000 | AW33: 0.325 | AY33: =IF(AZ32='Commercial Calculator'!$F$67,0,IF(('Commercial Calculator'!$F$67-AZ32)>AV33,AV33,('Commercial Calculator'!$F$67-AZ32))) -> 0 | AZ33: =AZ32+AY33 -> 0 | BA33: =AY33*AW33 -> 0 | BC33: =AY33-BA33 -> 0
A34: =$A$8 -> 120001 | B34: =$B$8 -> 180000 | C34: =$C$8 -> 60000 | D34: =$D$8 -> 0.37 | F34: =IF(G33='Serviceability Calculator'!F34,0,IF(('Serviceability Calculator'!F34-G33)>C34,C34,('Serviceability Calculator'!F34-G33))) -> 0 | G34: =G33+F34 -> 0 | H34: =F34*D34 -> 0 | J34: =F34-H34 -> 0 | P34: 120001 | Q34: 180000 | R34: 60000 | S34: 0.37 | U34: =IF(V33='SMSF Serviceability Calculator'!$E$60,0,IF(('SMSF Serviceability Calculator'!$E$60-V33)>R34,R34,('SMSF Serviceability Calculator'!$E$60-V33))) -> 0 | V34: =V33+U34 -> 0 | W34: =U34*S34 -> 0 | Y34: =U34-W34 -> 0 | AA34: =SUM(AB34:AC34) -> 0 | AB34: =IF(U34<=20000,U34*0.5%,0) -> 0 | AC34: =IF(U34>20000,((U34-20000)*1%)+100,0) -> 0 | AE34: =AE21 -> 180001 | AF34: 10000000 | AG34: 9820000 | AH34: 0.45 | AJ34: =IF(AK33='Non-Res Serviceability'!I34,0,IF(('Non-Res Serviceability'!I34-AK33)>AG34,AG34,('Non-Res Serviceability'!I34-AK33))) -> 0 | AK34: =AK33+AJ34 -> 0 | AL34: =AJ34*AH34 -> 0 | AN34: =AJ34-AL34 -> 0 | AP34: =SUM(AQ34:AR34) -> 0 | AQ34: =IF(AJ34<=20000,AJ34*0.5%,0) -> 0 | AR34: =IF(AJ34>20000,((AJ34-20000)*1%)+100,0) -> 0 | AT34: =AT8 -> 120001 | AU34: 180000 | AV34: 60000 | AW34: 0.37 | AY34: =IF(AZ33='Commercial Calculator'!$F$67,0,IF(('Commercial Calculator'!$F$67-AZ33)>AV34,AV34,('Commercial Calculator'!$F$67-AZ33))) -> 0 | AZ34: =AZ33+AY34 -> 0 | BA34: =AY34*AW34 -> 0 | BC34: =AY34-BA34 -> 0
A35: =$A$9 -> 180001 | B35: =$B$9 -> 100000000 | C35: =$C$9 -> 99820000 | D35: =$D$9 -> 0.45 | F35: =IF('Serviceability Calculator'!F34-G34<=0,0,('Serviceability Calculator'!F34-G34)) -> 0 | G35: =G34+F35 -> 0 | H35: =F35*D35 -> 0 | J35: =F35-H35 -> 0 | P35: 180001 | Q35: 100000000 | R35: 99820000 | S35: 0.45 | U35: =IF(V34='SMSF Serviceability Calculator'!$E$60,0,IF(('SMSF Serviceability Calculator'!$E$60-V34)>R35,R35,('SMSF Serviceability Calculator'!$E$60-V34))) -> 0 | V35: =V34+U35 -> 0 | W35: =U35*S35 -> 0 | Y35: =U35-W35 -> 0 | AA35: =U35*1% -> 0 | AE35: =AE22 -> 10000001 | AF35: 20000000 | AG35: 10000000 | AH35: 0.45 | AJ35: =IF('Non-Res Serviceability'!I34-AK34<=0,0,('Non-Res Serviceability'!I34-AK34)) -> 0 | AK35: =AK34+AJ35 -> 0 | AL35: =AJ35*AH35 -> 0 | AN35: =AJ35-AL35 -> 0 | AP35: =AJ35*1% -> 0 | AT35: =AT9 -> 180001 | AU35: 100000000 | AV35: 99820000 | AW35: 0.45 | AY35: =IF(AZ34='Commercial Calculator'!$F$67,0,IF(('Commercial Calculator'!$F$67-AZ34)>AV35,AV35,('Commercial Calculator'!$F$67-AZ34))) -> 0 | AZ35: =AZ34+AY35 -> 0 | BA35: =AY35*AW35 -> 0 | BC35: =AY35-BA35 -> 0
D36: Totals: | F36: =SUM(F31:F35) -> 0 | H36: =SUM(H31:H35) -> 0 | J36: =SUM(J31:J35) -> 0 | S36: Totals: | U36: =SUM(U31:U35) -> 0 | W36: =SUM(W31:W35) -> 0 | Y36: =SUM(Y31:Y35) -> 0 | AA36: =SUM(AA33:AA35) -> 0 | AH36: Totals: | AJ36: =SUM(AJ31:AJ35) -> 0 | AL36: =SUM(AL31:AL35) -> 0 | AN36: =SUM(AN31:AN35) -> 0 | AP36: =SUM(AP33:AP35) -> 0 | AW36: Totals: | AY36: =SUM(AY31:AY35) -> 0 | BA36: =SUM(BA31:BA35) -> 0 | BC36: =SUM(BC31:BC35) -> 0
A37: Low & middle income tax offset (monthly) | C37: 0 | D37: Refer table | P37: Low & middle income tax offset (monthly) | R37: 0 | S37: Refer table | AE37: Budget Repair Levy (monthly) | AG37: 0 | AH37: N/A | AT37: Low & middle income tax offset (monthly) | AV37: 0 | AW37: Refer table
A38: Low income tax offset (monthly) | C38: =IF(F36<=$B$168,$D$168,IF(F36<=$B$169,$D$169,IF(F36<=$B$170,((F36-$B$169)*$C$170)+$D$170,IF(F36<=$B$171,((F36-$B$170)*$C$171)+$D$171,IF(F36<=$B$172,$D$172,0)))))/12 -> 0 | D38: Refer table | F38: =C38*12 -> 0 | P38: Low income tax offset (monthly) | R38: =IF(U36<=$B$168,$D$168,IF(U36<=$B$169,$D$169,IF(U36<=$B$170,((U36-$B$169)*$C$170)+$D$170,IF(U36<=$B$171,((U36-$B$170)*$C$171)+$D$171,IF(U36<=$B$172,$D$172,0)))))/12 -> 0 | S38: Refer table | U38: =R38*12 -> 0 | AT38: Low income tax offset (monthly) | AV38: =IF(AY36<=$B$168,$D$168,IF(AY36<=$B$169,$D$169,IF(AY36<=$B$170,((AY36-$B$169)*$C$170)+$D$170,IF(AY36<=$B$171,((AY36-$B$170)*$C$171)+$D$171,IF(AY36<=$B$172,$D$172,0)))))/12 -> 0 | AW38: Refer table | AY38: =AV38*12 -> 0
A39: Medicare Levy (monthly) | C39: =F36*(2/100)/12 -> 0 | D39: 0.02 | P39: Medicare Levy (monthly) | R39: =U36*(2/100)/12 -> 0 | S39: 0.02 | AE39: Medicare Levy (monthly) | AG39: 0 | AH39: N/A | AT39: Medicare Levy (monthly) | AV39: =AY36*(2/100)/12 -> 0 | AW39: 0.02
C40: =SUM(C37:C39) -> 0 | H40: Monthly | J40: =(J36/12)-C40 -> 0 | R40: =SUM(R37:R39) -> 0 | W40: Monthly | Y40: =(Y36/12)-R40 -> 0 | AG40: =SUM(AG37:AG39) -> 0 | AL40: Monthly | AN40: =(AN36/12)-AG40 -> 0 | AV40: =SUM(AV37:AV39) -> 0 | BA40: Monthly | BC40: =(BC36/12)-AV40 -> 0
A42: Applicant 4 | P42: Applicant 4 | AE42: Applicant 4 | AT42: Applicant 4
A43: Gross Taxable Income | D43: Tax Rate | F43: Gross | H43: Tax | J43: Net | P43: Gross Taxable Income | S43: Tax Rate | U43: Gross | W43: Tax | Y43: Net | AE43: Gross Taxable Income | AH43: Tax Rate | AJ43: Gross | AL43: Tax | AN43: Net | AT43: Gross Taxable Income | AW43: Tax Rate | AY43: Gross | BA43: Tax | BC43: Net
A44: =$A$5 -> 1 | B44: =$B$5 -> 18200 | C44: =$C$5 -> 18200 | D44: =$D$5 -> 0 | F44: =IF('Serviceability Calculator'!F35<B44,'Serviceability Calculator'!F35,C44) -> 0 | G44: =F44 -> 0 | H44: =F44*D44 -> 0 | J44: =F44-H44 -> 0 | P44: =A44 -> 1 | Q44: 18200 | R44: =C44 -> 18200 | S44: =D44 -> 0 | U44: =IF('SMSF Serviceability Calculator'!E61<Q44,'SMSF Serviceability Calculator'!E61,R44) -> 0 | V44: =U44 -> 0 | W44: =U44*S44 -> 0 | Y44: =U44-W44 -> 0 | AE44: =AE31 -> -1000000 | AF44: =AF31 -> 0 | AG44: =AG31 -> 0 | AH44: =AH31 -> 0 | AJ44: =IF('Non-Res Serviceability'!I35<AF44,'Non-Res Serviceability'!I35,AG44) -> 0 | AK44: =AJ44 -> 0 | AL44: =AJ44*AH44 -> 0 | AN44: =AJ44-AL44 -> 0 | AT44: =AT5 -> 1 | AU44: =AU5 -> 18200 | AV44: 18200 | AW44: 0 | AY44: =IF('Commercial Calculator'!$F$68<AU44,'Commercial Calculator'!$F$68,AV44) -> 0 | AZ44: =AY44 -> 0 | BA44: =AY44*AW44 -> 0 | BC44: =AY44-BA44 -> 0
A45: =$A$6 -> 18201 | B45: =$B$6 -> 45000 | C45: =$C$6 -> 26800 | D45: =$D$6 -> 0.19 | F45: =IF(G44='Serviceability Calculator'!F35,0,IF(('Serviceability Calculator'!F35-G44)>C45,C45,('Serviceability Calculator'!F35-G44))) -> 0 | G45: =G44+F45 -> 0 | H45: =F45*D45 -> 0 | J45: =F45-H45 -> 0 | P45: 18201 | Q45: 45000 | R45: 26800 | S45: 0.19 | U45: =IF(V44='SMSF Serviceability Calculator'!$E$61,0,IF(('SMSF Serviceability Calculator'!$E$61-V44)>R45,R45,('SMSF Serviceability Calculator'!$E$61-V44))) -> 0 | V45: =V44+U45 -> 0 | W45: =U45*S45 -> 0 | Y45: =U45-W45 -> 0 | AE45: =AE32 -> 1 | AF45: 120000 | AG45: 120000 | AH45: 0.325 | AJ45: =IF(AK44='Non-Res Serviceability'!I35,0,IF(('Non-Res Serviceability'!I35-AK44)>AG45,AG45,('Non-Res Serviceability'!I35-AK44))) -> 0 | AK45: =AK44+AJ45 -> 0 | AL45: =AJ45*AH45 -> 0 | AN45: =AJ45-AL45 -> 0 | AT45: =AT6 -> 18201 | AU45: 45000 | AV45: 26800 | AW45: 0.19 | AY45: =IF(AZ44='Commercial Calculator'!$F$68,0,IF(('Commercial Calculator'!$F$68-AZ44)>AV45,AV45,('Commercial Calculator'!$F$68-AZ44))) -> 0 | AZ45: =AZ44+AY45 -> 0 | BA45: =AY45*AW45 -> 0 | BC45: =AY45-BA45 -> 0
A46: =$A$7 -> 45001 | B46: =$B$7 -> 120000 | C46: =$C$7 -> 75000 | D46: =$D$7 -> 0.325 | F46: =IF(G45='Serviceability Calculator'!F35,0,IF(('Serviceability Calculator'!F35-G45)>C46,C46,('Serviceability Calculator'!F35-G45))) -> 0 | G46: =G45+F46 -> 0 | H46: =F46*D46 -> 0 | J46: =F46-H46 -> 0 | P46: 45001 | Q46: 120000 | R46: 75000 | S46: 0.325 | U46: =IF(V45='SMSF Serviceability Calculator'!$E$61,0,IF(('SMSF Serviceability Calculator'!$E$61-V45)>R46,R46,('SMSF Serviceability Calculator'!$E$61-V45))) -> 0 | V46: =V45+U46 -> 0 | W46: =U46*S46 -> 0 | Y46: =U46-W46 -> 0 | AA46: =IF(U46>13000,(U46-13000)*0.5%,0) -> 0 | AE46: =AE33 -> 120001 | AF46: 180000 | AG46: 60000 | AH46: 0.37 | AJ46: =IF(AK45='Non-Res Serviceability'!I35,0,IF(('Non-Res Serviceability'!I35-AK45)>AG46,AG46,('Non-Res Serviceability'!I35-AK45))) -> 0 | AK46: =AK45+AJ46 -> 0 | AL46: =AJ46*AH46 -> 0 | AN46: =AJ46-AL46 -> 0 | AP46: =IF(AJ46>13000,(AJ46-13000)*0.5%,0) -> 0 | AT46: =AT7 -> 45001 | AU46: 120000 | AV46: 75000 | AW46: 0.325 | AY46: =IF(AZ45='Commercial Calculator'!$F$68,0,IF(('Commercial Calculator'!$F$68-AZ45)>AV46,AV46,('Commercial Calculator'!$F$68-AZ45))) -> 0 | AZ46: =AZ45+AY46 -> 0 | BA46: =AY46*AW46 -> 0 | BC46: =AY46-BA46 -> 0
A47: =$A$8 -> 120001 | B47: =$B$8 -> 180000 | C47: =$C$8 -> 60000 | D47: =$D$8 -> 0.37 | F47: =IF(G46='Serviceability Calculator'!F35,0,IF(('Serviceability Calculator'!F35-G46)>C47,C47,('Serviceability Calculator'!F35-G46))) -> 0 | G47: =G46+F47 -> 0 | H47: =F47*D47 -> 0 | J47: =F47-H47 -> 0 | P47: 120001 | Q47: 180000 | R47: 60000 | S47: 0.37 | U47: =IF(V46='SMSF Serviceability Calculator'!$E$61,0,IF(('SMSF Serviceability Calculator'!$E$61-V46)>R47,R47,('SMSF Serviceability Calculator'!$E$61-V46))) -> 0 | V47: =V46+U47 -> 0 | W47: =U47*S47 -> 0 | Y47: =U47-W47 -> 0 | AA47: =SUM(AB47:AC47) -> 0 | AB47: =IF(U47<=20000,U47*0.5%,0) -> 0 | AC47: =IF(U47>20000,((U47-20000)*1%)+100,0) -> 0 | AE47: =AE34 -> 180001 | AF47: 10000000 | AG47: 9820000 | AH47: 0.45 | AJ47: =IF(AK46='Non-Res Serviceability'!I35,0,IF(('Non-Res Serviceability'!I35-AK46)>AG47,AG47,('Non-Res Serviceability'!I35-AK46))) -> 0 | AK47: =AK46+AJ47 -> 0 | AL47: =AJ47*AH47 -> 0 | AN47: =AJ47-AL47 -> 0 | AP47: =SUM(AQ47:AR47) -> 0 | AQ47: =IF(AJ47<=20000,AJ47*0.5%,0) -> 0 | AR47: =IF(AJ47>20000,((AJ47-20000)*1%)+100,0) -> 0 | AT47: =AT8 -> 120001 | AU47: 180000 | AV47: 60000 | AW47: 0.37 | AY47: =IF(AZ46='Commercial Calculator'!$F$68,0,IF(('Commercial Calculator'!$F$68-AZ46)>AV47,AV47,('Commercial Calculator'!$F$68-AZ46))) -> 0 | AZ47: =AZ46+AY47 -> 0 | BA47: =AY47*AW47 -> 0 | BC47: =AY47-BA47 -> 0
A48: =$A$9 -> 180001 | B48: =$B$9 -> 100000000 | C48: =$C$9 -> 99820000 | D48: =$D$9 -> 0.45 | F48: =IF('Serviceability Calculator'!F35-G47<=0,0,('Serviceability Calculator'!F35-G47)) -> 0 | G48: =G47+F48 -> 0 | H48: =F48*D48 -> 0 | J48: =F48-H48 -> 0 | P48: 180001 | Q48: 100000000 | R48: 99820000 | S48: 0.45 | U48: =IF(V47='SMSF Serviceability Calculator'!$E$61,0,IF(('SMSF Serviceability Calculator'!$E$61-V47)>R48,R48,('SMSF Serviceability Calculator'!$E$61-V47))) -> 0 | V48: =V47+U48 -> 0 | W48: =U48*S48 -> 0 | Y48: =U48-W48 -> 0 | AA48: =U48*1% -> 0 | AE48: =AE35 -> 10000001 | AF48: 20000000 | AG48: 10000000 | AH48: 0.45 | AJ48: =IF('Non-Res Serviceability'!I35-AK47<=0,0,('Non-Res Serviceability'!I35-AK47)) -> 0 | AK48: =AK47+AJ48 -> 0 | AL48: =AJ48*AH48 -> 0 | AN48: =AJ48-AL48 -> 0 | AP48: =AJ48*1% -> 0 | AT48: =AT9 -> 180001 | AU48: 100000000 | AV48: 99820000 | AW48: 0.45 | AY48: =IF(AZ47='Commercial Calculator'!$F$68,0,IF(('Commercial Calculator'!$F$68-AZ47)>AV48,AV48,('Commercial Calculator'!$F$68-AZ47))) -> 0 | AZ48: =AZ47+AY48 -> 0 | BA48: =AY48*AW48 -> 0 | BC48: =AY48-BA48 -> 0
D49: Totals: | F49: =SUM(F44:F48) -> 0 | H49: =SUM(H44:H48) -> 0 | J49: =SUM(J44:J48) -> 0 | S49: Totals: | U49: =SUM(U44:U48) -> 0 | W49: =SUM(W44:W48) -> 0 | Y49: =SUM(Y44:Y48) -> 0 | AA49: =SUM(AA46:AA48) -> 0 | AH49: Totals: | AJ49: =SUM(AJ44:AJ48) -> 0 | AL49: =SUM(AL44:AL48) -> 0 | AN49: =SUM(AN44:AN48) -> 0 | AP49: =SUM(AP46:AP48) -> 0 | AW49: Totals: | AY49: =SUM(AY44:AY48) -> 0 | BA49: =SUM(BA44:BA48) -> 0 | BC49: =SUM(BC44:BC48) -> 0
A50: Low & middle income tax offset (monthly) | C50: 0 | D50: Refer table | P50: Low & middle income tax offset (monthly) | R50: 0 | S50: Refer table | AE50: Budget Repair Levy (monthly) | AG50: 0 | AH50: N/A | AT50: Low & middle income tax offset (monthly) | AV50: 0 | AW50: Refer table
A51: Low income tax offset (monthly) | C51: =IF(F49<=$B$168,$D$168,IF(F49<=$B$169,$D$169,IF(F49<=$B$170,((F49-$B$169)*$C$170)+$D$170,IF(F49<=$B$171,((F49-$B$170)*$C$171)+$D$171,IF(F49<=$B$172,$D$172,0)))))/12 -> 0 | D51: Refer table | F51: =C51*12 -> 0 | P51: Low income tax offset (monthly) | R51: =IF(U49<=$B$168,$D$168,IF(U49<=$B$169,$D$169,IF(U49<=$B$170,((U49-$B$169)*$C$170)+$D$170,IF(U49<=$B$171,((U49-$B$170)*$C$171)+$D$171,IF(U49<=$B$172,$D$172,0)))))/12 -> 0 | S51: Refer table | U51: =R51*12 -> 0 | AT51: Low income tax offset (monthly) | AV51: =IF(AY49<=$B$168,$D$168,IF(AY49<=$B$169,$D$169,IF(AY49<=$B$170,((AY49-$B$169)*$C$170)+$D$170,IF(AY49<=$B$171,((AY49-$B$170)*$C$171)+$D$171,IF(AY49<=$B$172,$D$172,0)))))/12 -> 0 | AW51: Refer table | AY51: =AV51*12 -> 0
A52: Medicare Levy (monthly) | C52: =F49*(2/100)/12 -> 0 | D52: 0.02 | P52: Medicare Levy (monthly) | R52: =U49*(2/100)/12 -> 0 | S52: 0.02 | AE52: Medicare Levy (monthly) | AG52: 0 | AH52: N/A | AT52: Medicare Levy (monthly) | AV52: =AY49*(2/100)/12 -> 0 | AW52: 0.02
C53: =SUM(C50:C52) -> 0 | H53: Monthly | J53: =(J49/12)-C53 -> 0 | R53: =SUM(R50:R52) -> 0 | W53: Monthly | Y53: =(Y49/12)-R53 -> 0 | AG53: =SUM(AG50:AG52) -> 0 | AL53: Monthly | AN53: =(AN49/12)-AG53 -> 0 | AV53: =SUM(AV50:AV52) -> 0 | BA53: Monthly | BC53: =(BC49/12)-AV53 -> 0
A55: Applicant 5 | P55: Applicant 5 | AE55: Applicant 5 | AT55: Applicant 5
A56: Gross Taxable Income | D56: Tax Rate | F56: Gross | H56: Tax | J56: Net | P56: Gross Taxable Income | S56: Tax Rate | U56: Gross | W56: Tax | Y56: Net | AE56: Gross Taxable Income | AH56: Tax Rate | AJ56: Gross | AL56: Tax | AN56: Net | AT56: Gross Taxable Income | AW56: Tax Rate | AY56: Gross | BA56: Tax | BC56: Net
A57: =$A$5 -> 1 | B57: =$B$5 -> 18200 | C57: =$C$5 -> 18200 | D57: =$D$5 -> 0 | F57: =IF('Serviceability Calculator'!F36<B57,'Serviceability Calculator'!F36,C57) -> 0 | G57: =F57 -> 0 | H57: =F57*D57 -> 0 | J57: =F57-H57 -> 0 | P57: 1 | Q57: 6000 | R57: =Q57-P57+1 -> 6000 | S57: 0 | U57: =IF('Serviceability Calculator'!#REF!<Q57,'Serviceability Calculator'!#REF!,R57) ->  | V57: =U57 ->  | W57: =U57*S57 ->  | Y57: =U57-W57 ->  | AE57: 1 | AF57: 6000 | AG57: =AF57-AE57+1 -> 6000 | AH57: 0 | AJ57: =IF('Non-Res Serviceability'!#REF!<AF57,'Non-Res Serviceability'!#REF!,AG57) ->  | AK57: =AJ57 ->  | AL57: =AJ57*AH57 ->  | AN57: =AJ57-AL57 ->  | AT57: 1 | AU57: 6000 | AV57: =AU57-AT57+1 -> 6000 | AW57: 0 | AY57: =IF('Serviceability Calculator'!#REF!<AU57,'Serviceability Calculator'!#REF!,AV57) ->  | AZ57: =AY57 ->  | BA57: =AY57*AW57 ->  | BC57: =AY57-BA57 -> 
A58: =$A$6 -> 18201 | B58: =$B$6 -> 45000 | C58: =$C$6 -> 26800 | D58: =$D$6 -> 0.19 | F58: =IF(G57='Serviceability Calculator'!F36,0,IF(('Serviceability Calculator'!F36-G57)>C58,C58,('Serviceability Calculator'!F36-G57))) -> 0 | G58: =G57+F58 -> 0 | H58: =F58*D58 -> 0 | J58: =F58-H58 -> 0 | P58: 6001 | Q58: 35000 | R58: =Q58-P58+1 -> 29000 | S58: 0.15 | U58: =IF(V57='Serviceability Calculator'!#REF!,0,IF(('Serviceability Calculator'!#REF!-V57)>R58,R58,('Serviceability Calculator'!#REF!-V57))) ->  | V58: =V57+U58 ->  | W58: =U58*S58 ->  | Y58: =U58-W58 ->  | AE58: 6001 | AF58: 35000 | AG58: =AF58-AE58+1 -> 29000 | AH58: 0.15 | AJ58: =IF(AK57='Non-Res Serviceability'!#REF!,0,IF(('Non-Res Serviceability'!#REF!-AK57)>AG58,AG58,('Non-Res Serviceability'!#REF!-AK57))) ->  | AK58: =AK57+AJ58 ->  | AL58: =AJ58*AH58 ->  | AN58: =AJ58-AL58 ->  | AT58: 6001 | AU58: 35000 | AV58: =AU58-AT58+1 -> 29000 | AW58: 0.15 | AY58: =IF(AZ57='Serviceability Calculator'!#REF!,0,IF(('Serviceability Calculator'!#REF!-AZ57)>AV58,AV58,('Serviceability Calculator'!#REF!-AZ57))) ->  | AZ58: =AZ57+AY58 ->  | BA58: =AY58*AW58 ->  | BC58: =AY58-BA58 -> 
A59: =$A$7 -> 45001 | B59: =$B$7 -> 120000 | C59: =$C$7 -> 75000 | D59: =$D$7 -> 0.325 | F59: =IF(G58='Serviceability Calculator'!F36,0,IF(('Serviceability Calculator'!F36-G58)>C59,C59,('Serviceability Calculator'!F36-G58))) -> 0 | G59: =G58+F59 -> 0 | H59: =F59*D59 -> 0 | J59: =F59-H59 -> 0 | P59: 35001 | Q59: 80000 | R59: =Q59-P59+1 -> 45000 | S59: 0.3 | U59: =IF(V58='Serviceability Calculator'!#REF!,0,IF(('Serviceability Calculator'!#REF!-V58)>R59,R59,('Serviceability Calculator'!#REF!-V58))) ->  | V59: =V58+U59 ->  | W59: =U59*S59 ->  | Y59: =U59-W59 ->  | AE59: 35001 | AF59: 80000 | AG59: =AF59-AE59+1 -> 45000 | AH59: 0.3 | AJ59: =IF(AK58='Non-Res Serviceability'!#REF!,0,IF(('Non-Res Serviceability'!#REF!-AK58)>AG59,AG59,('Non-Res Serviceability'!#REF!-AK58))) ->  | AK59: =AK58+AJ59 ->  | AL59: =AJ59*AH59 ->  | AN59: =AJ59-AL59 ->  | AT59: 35001 | AU59: 80000 | AV59: =AU59-AT59+1 -> 45000 | AW59: 0.3 | AY59: =IF(AZ58='Serviceability Calculator'!#REF!,0,IF(('Serviceability Calculator'!#REF!-AZ58)>AV59,AV59,('Serviceability Calculator'!#REF!-AZ58))) ->  | AZ59: =AZ58+AY59 ->  | BA59: =AY59*AW59 ->  | BC59: =AY59-BA59 -> 
A60: =$A$8 -> 120001 | B60: =$B$8 -> 180000 | C60: =$C$8 -> 60000 | D60: =$D$8 -> 0.37 | F60: =IF(G59='Serviceability Calculator'!F36,0,IF(('Serviceability Calculator'!F36-G59)>C60,C60,('Serviceability Calculator'!F36-G59))) -> 0 | G60: =G59+F60 -> 0 | H60: =F60*D60 -> 0 | J60: =F60-H60 -> 0 | P60: 80001 | Q60: 180000 | R60: =Q60-P60+1 -> 100000 | S60: 0.38 | U60: =IF(V59='Serviceability Calculator'!#REF!,0,IF(('Serviceability Calculator'!#REF!-V59)>R60,R60,('Serviceability Calculator'!#REF!-V59))) ->  | V60: =V59+U60 ->  | W60: =U60*S60 ->  | Y60: =U60-W60 ->  | AE60: 80001 | AF60: 180000 | AG60: =AF60-AE60+1 -> 100000 | AH60: 0.38 | AJ60: =IF(AK59='Non-Res Serviceability'!#REF!,0,IF(('Non-Res Serviceability'!#REF!-AK59)>AG60,AG60,('Non-Res Serviceability'!#REF!-AK59))) ->  | AK60: =AK59+AJ60 ->  | AL60: =AJ60*AH60 ->  | AN60: =AJ60-AL60 ->  | AT60: 80001 | AU60: 180000 | AV60: =AU60-AT60+1 -> 100000 | AW60: 0.38 | AY60: =IF(AZ59='Serviceability Calculator'!#REF!,0,IF(('Serviceability Calculator'!#REF!-AZ59)>AV60,AV60,('Serviceability Calculator'!#REF!-AZ59))) ->  | AZ60: =AZ59+AY60 ->  | BA60: =AY60*AW60 ->  | BC60: =AY60-BA60 -> 
A61: =$A$9 -> 180001 | B61: =$B$9 -> 100000000 | C61: =$C$9 -> 99820000 | D61: =$D$9 -> 0.45 | F61: =IF('Serviceability Calculator'!F36-G60<=0,0,('Serviceability Calculator'!F36-G60)) -> 0 | G61: =G60+F61 -> 0 | H61: =F61*D61 -> 0 | J61: =F61-H61 -> 0 | P61: 180001 | Q61: 1000000 | R61: =Q61-P61+1 -> 820000 | S61: 0.45 | U61: =IF('Serviceability Calculator'!#REF!-V60<=0,0,('Serviceability Calculator'!#REF!-V60)) ->  | V61: =V60+U61 ->  | W61: =U61*S61 ->  | Y61: =U61-W61 ->  | AE61: 180001 | AF61: 1000000 | AG61: =AF61-AE61+1 -> 820000 | AH61: 0.45 | AJ61: =IF('Non-Res Serviceability'!#REF!-AK60<=0,0,('Non-Res Serviceability'!#REF!-AK60)) ->  | AK61: =AK60+AJ61 ->  | AL61: =AJ61*AH61 ->  | AN61: =AJ61-AL61 ->  | AT61: 180001 | AU61: 1000000 | AV61: =AU61-AT61+1 -> 820000 | AW61: 0.45 | AY61: =IF('Serviceability Calculator'!#REF!-AZ60<=0,0,('Serviceability Calculator'!#REF!-AZ60)) ->  | AZ61: =AZ60+AY61 ->  | BA61: =AY61*AW61 ->  | BC61: =AY61-BA61 -> 
D62: Totals: | F62: =SUM(F57:F61) -> 0 | H62: =SUM(H57:H61) -> 0 | J62: =SUM(J57:J61) -> 0 | S62: Totals: | U62: =SUM(U57:U61) ->  | W62: =SUM(W57:W61) ->  | Y62: =SUM(Y57:Y61) ->  | AH62: Totals: | AJ62: =SUM(AJ57:AJ61) ->  | AL62: =SUM(AL57:AL61) ->  | AN62: =SUM(AN57:AN61) ->  | AW62: Totals: | AY62: =SUM(AY57:AY61) ->  | BA62: =SUM(BA57:BA61) ->  | BC62: =SUM(BC57:BC61) -> 
A63: Low & middle income tax offset (monthly) | C63: 0 | D63: Refer table | P63: =U62*(1.5/100)/12 ->  | Q63: Medicare Levy (Monthly) | AE63: =AJ62*(1.5/100)/12 ->  | AF63: Medicare Levy (Monthly) | AT63: =AY62*(1.5/100)/12 ->  | AU63: Medicare Levy (Monthly)
A64: Low income tax offset (monthly) | C64: =IF(F62<=$B$168,$D$168,IF(F62<=$B$169,$D$169,IF(F62<=$B$170,((F62-$B$169)*$C$170)+$D$170,IF(F62<=$B$171,((F62-$B$170)*$C$171)+$D$171,IF(F62<=$B$172,$D$172,0)))))/12 -> 0 | D64: Refer table | F64: =C64*12 -> 0 | W64: Monthly | Y64: =(Y62/12)-P63 ->  | AL64: Monthly | AN64: =(AN62/12)-AE63 ->  | BA64: Monthly | BC64: =(BC62/12)-AT63 -> 
A65: Medicare Levy (monthly) | C65: =F62*(2/100)/12 -> 0 | D65: 0.02
C66: =SUM(C63:C65) -> 0 | H66: Monthly | J66: =(J62/12)-C66 -> 0 | P66: Applicant 6 | AE66: Applicant 6 | AT66: Applicant 6
P67: Gross Taxable Income | S67: Tax Rate | U67: Gross | W67: Tax | Y67: Net | AE67: Gross Taxable Income | AH67: Tax Rate | AJ67: Gross | AL67: Tax | AN67: Net | AT67: Gross Taxable Income | AW67: Tax Rate | AY67: Gross | BA67: Tax | BC67: Net
A68: Applicant 6 | P68: 1 | Q68: 6000 | R68: =Q68-P68+1 -> 6000 | S68: 0 | U68: =IF('Serviceability Calculator'!#REF!<Q68,'Serviceability Calculator'!#REF!,R68) ->  | V68: =U68 ->  | W68: =U68*S68 ->  | Y68: =U68-W68 ->  | AE68: 1 | AF68: 6000 | AG68: =AF68-AE68+1 -> 6000 | AH68: 0 | AJ68: =IF('Non-Res Serviceability'!#REF!<AF68,'Non-Res Serviceability'!#REF!,AG68) ->  | AK68: =AJ68 ->  | AL68: =AJ68*AH68 ->  | AN68: =AJ68-AL68 ->  | AT68: 1 | AU68: 6000 | AV68: =AU68-AT68+1 -> 6000 | AW68: 0 | AY68: =IF('Serviceability Calculator'!#REF!<AU68,'Serviceability Calculator'!#REF!,AV68) ->  | AZ68: =AY68 ->  | BA68: =AY68*AW68 ->  | BC68: =AY68-BA68 -> 
A69: Gross Taxable Income | D69: Tax Rate | F69: Gross | H69: Tax | J69: Net | P69: 6001 | Q69: 35000 | R69: =Q69-P69+1 -> 29000 | S69: 0.15 | U69: =IF(V68='Serviceability Calculator'!#REF!,0,IF(('Serviceability Calculator'!#REF!-V68)>R69,R69,('Serviceability Calculator'!#REF!-V68))) ->  | V69: =V68+U69 ->  | W69: =U69*S69 ->  | Y69: =U69-W69 ->  | AE69: 6001 | AF69: 35000 | AG69: =AF69-AE69+1 -> 29000 | AH69: 0.15 | AJ69: =IF(AK68='Non-Res Serviceability'!#REF!,0,IF(('Non-Res Serviceability'!#REF!-AK68)>AG69,AG69,('Non-Res Serviceability'!#REF!-AK68))) ->  | AK69: =AK68+AJ69 ->  | AL69: =AJ69*AH69 ->  | AN69: =AJ69-AL69 ->  | AT69: 6001 | AU69: 35000 | AV69: =AU69-AT69+1 -> 29000 | AW69: 0.15 | AY69: =IF(AZ68='Serviceability Calculator'!#REF!,0,IF(('Serviceability Calculator'!#REF!-AZ68)>AV69,AV69,('Serviceability Calculator'!#REF!-AZ68))) ->  | AZ69: =AZ68+AY69 ->  | BA69: =AY69*AW69 ->  | BC69: =AY69-BA69 -> 
A70: =$A$5 -> 1 | B70: =$B$5 -> 18200 | C70: =$C$5 -> 18200 | D70: =$D$5 -> 0 | F70: =IF('Serviceability Calculator'!F37<B70,'Serviceability Calculator'!F37,C70) -> 0 | G70: =F70 -> 0 | H70: =F70*D70 -> 0 | J70: =F70-H70 -> 0 | P70: 35001 | Q70: 80000 | R70: =Q70-P70+1 -> 45000 | S70: 0.3 | U70: =IF(V69='Serviceability Calculator'!#REF!,0,IF(('Serviceability Calculator'!#REF!-V69)>R70,R70,('Serviceability Calculator'!#REF!-V69))) ->  | V70: =V69+U70 ->  | W70: =U70*S70 ->  | Y70: =U70-W70 ->  | AE70: 35001 | AF70: 80000 | AG70: =AF70-AE70+1 -> 45000 | AH70: 0.3 | AJ70: =IF(AK69='Non-Res Serviceability'!#REF!,0,IF(('Non-Res Serviceability'!#REF!-AK69)>AG70,AG70,('Non-Res Serviceability'!#REF!-AK69))) ->  | AK70: =AK69+AJ70 ->  | AL70: =AJ70*AH70 ->  | AN70: =AJ70-AL70 ->  | AT70: 35001 | AU70: 80000 | AV70: =AU70-AT70+1 -> 45000 | AW70: 0.3 | AY70: =IF(AZ69='Serviceability Calculator'!#REF!,0,IF(('Serviceability Calculator'!#REF!-AZ69)>AV70,AV70,('Serviceability Calculator'!#REF!-AZ69))) ->  | AZ70: =AZ69+AY70 ->  | BA70: =AY70*AW70 ->  | BC70: =AY70-BA70 -> 
A71: =$A$6 -> 18201 | B71: =$B$6 -> 45000 | C71: =$C$6 -> 26800 | D71: =$D$6 -> 0.19 | F71: =IF(G70='Serviceability Calculator'!F37,0,IF(('Serviceability Calculator'!F37-G70)>C71,C71,('Serviceability Calculator'!F37-G70))) -> 0 | G71: =G70+F71 -> 0 | H71: =F71*D71 -> 0 | J71: =F71-H71 -> 0 | P71: 80001 | Q71: 180000 | R71: =Q71-P71+1 -> 100000 | S71: 0.38 | U71: =IF(V70='Serviceability Calculator'!#REF!,0,IF(('Serviceability Calculator'!#REF!-V70)>R71,R71,('Serviceability Calculator'!#REF!-V70))) ->  | V71: =V70+U71 ->  | W71: =U71*S71 ->  | Y71: =U71-W71 ->  | AE71: 80001 | AF71: 180000 | AG71: =AF71-AE71+1 -> 100000 | AH71: 0.38 | AJ71: =IF(AK70='Non-Res Serviceability'!#REF!,0,IF(('Non-Res Serviceability'!#REF!-AK70)>AG71,AG71,('Non-Res Serviceability'!#REF!-AK70))) ->  | AK71: =AK70+AJ71 ->  | AL71: =AJ71*AH71 ->  | AN71: =AJ71-AL71 ->  | AT71: 80001 | AU71: 180000 | AV71: =AU71-AT71+1 -> 100000 | AW71: 0.38 | AY71: =IF(AZ70='Serviceability Calculator'!#REF!,0,IF(('Serviceability Calculator'!#REF!-AZ70)>AV71,AV71,('Serviceability Calculator'!#REF!-AZ70))) ->  | AZ71: =AZ70+AY71 ->  | BA71: =AY71*AW71 ->  | BC71: =AY71-BA71 -> 
A72: =$A$7 -> 45001 | B72: =$B$7 -> 120000 | C72: =$C$7 -> 75000 | D72: =$D$7 -> 0.325 | F72: =IF(G71='Serviceability Calculator'!F37,0,IF(('Serviceability Calculator'!F37-G71)>C72,C72,('Serviceability Calculator'!F37-G71))) -> 0 | G72: =G71+F72 -> 0 | H72: =F72*D72 -> 0 | J72: =F72-H72 -> 0 | P72: 180001 | Q72: 1000000 | R72: =Q72-P72+1 -> 820000 | S72: 0.45 | U72: =IF('Serviceability Calculator'!#REF!-V71<=0,0,('Serviceability Calculator'!#REF!-V71)) ->  | V72: =V71+U72 ->  | W72: =U72*S72 ->  | Y72: =U72-W72 ->  | AE72: 180001 | AF72: 1000000 | AG72: =AF72-AE72+1 -> 820000 | AH72: 0.45 | AJ72: =IF('Non-Res Serviceability'!#REF!-AK71<=0,0,('Non-Res Serviceability'!#REF!-AK71)) ->  | AK72: =AK71+AJ72 ->  | AL72: =AJ72*AH72 ->  | AN72: =AJ72-AL72 ->  | AT72: 180001 | AU72: 1000000 | AV72: =AU72-AT72+1 -> 820000 | AW72: 0.45 | AY72: =IF('Serviceability Calculator'!#REF!-AZ71<=0,0,('Serviceability Calculator'!#REF!-AZ71)) ->  | AZ72: =AZ71+AY72 ->  | BA72: =AY72*AW72 ->  | BC72: =AY72-BA72 -> 
A73: =$A$8 -> 120001 | B73: =$B$8 -> 180000 | C73: =$C$8 -> 60000 | D73: =$D$8 -> 0.37 | F73: =IF(G72='Serviceability Calculator'!F37,0,IF(('Serviceability Calculator'!F37-G72)>C73,C73,('Serviceability Calculator'!F37-G72))) -> 0 | G73: =G72+F73 -> 0 | H73: =F73*D73 -> 0 | J73: =F73-H73 -> 0 | S73: Totals: | U73: =SUM(U68:U72) ->  | W73: =SUM(W68:W72) ->  | Y73: =SUM(Y68:Y72) ->  | AH73: Totals: | AJ73: =SUM(AJ68:AJ72) ->  | AL73: =SUM(AL68:AL72) ->  | AN73: =SUM(AN68:AN72) ->  | AW73: Totals: | AY73: =SUM(AY68:AY72) ->  | BA73: =SUM(BA68:BA72) ->  | BC73: =SUM(BC68:BC72) -> 
A74: =$A$9 -> 180001 | B74: =$B$9 -> 100000000 | C74: =$C$9 -> 99820000 | D74: =$D$9 -> 0.45 | F74: =IF('Serviceability Calculator'!F37-G73<=0,0,('Serviceability Calculator'!F37-G73)) -> 0 | G74: =G73+F74 -> 0 | H74: =F74*D74 -> 0 | J74: =F74-H74 -> 0 | P74: =U73*(1.5/100)/12 ->  | Q74: Medicare Levy (Monthly) | AE74: =AJ73*(1.5/100)/12 ->  | AF74: Medicare Levy (Monthly) | AT74: =AY73*(1.5/100)/12 ->  | AU74: Medicare Levy (Monthly)
D75: Totals: | F75: =SUM(F70:F74) -> 0 | H75: =SUM(H70:H74) -> 0 | J75: =SUM(J70:J74) -> 0 | W75: Monthly | Y75: =(Y73/12)-P74 ->  | AL75: Monthly | AN75: =(AN73/12)-AE74 ->  | BA75: Monthly | BC75: =(BC73/12)-AT74 -> 
A76: Low & middle income tax offset (monthly) | C76: 0 | D76: Refer table
A77: Low income tax offset (monthly) | C77: =IF(F75<=$B$168,$D$168,IF(F75<=$B$169,$D$169,IF(F75<=$B$170,((F75-$B$169)*$C$170)+$D$170,IF(F75<=$B$171,((F75-$B$170)*$C$171)+$D$171,IF(F75<=$B$172,$D$172,0)))))/12 -> 0 | D77: Refer table | F77: =C77*12 -> 0
A78: Medicare Levy (monthly) | C78: =F75*(2/100)/12 -> 0 | D78: 0.02 | P78: Company 1 | AE78: Company 1
C79: =SUM(C76:C78) -> 0 | P79: Gross Taxable Income | S79: Tax Rate | U79: Gross | W79: Tax | Y79: Net | AE79: Gross Taxable Income | AH79: Tax Rate | AJ79: Gross | AL79: Tax | AN79: Net
H80: Monthly | J80: =(J75/12)-C79 -> 0 | S80: =D112 -> 0.25 | U80: ='SMSF Serviceability Calculator'!C71 -> 0 | V80: =U80 -> 0 | W80: =U80*S80 -> 0 | Y80: =U80-W80 -> 0 | AH80: 0.25 | AJ80: ='Non-Res Serviceability'!H42 -> 0 | AK80: =AJ80 -> 0 | AL80: =AJ80*AH80 -> 0 | AN80: =AJ80-AL80 -> 0
S81: Totals: | U81: =SUM(U80:U80) -> 0 | W81: =SUM(W80:W80) -> 0 | Y81: =SUM(Y80:Y80) -> 0 | AH81: Totals: | AJ81: =SUM(AJ80:AJ80) -> 0 | AL81: =SUM(AL80:AL80) -> 0 | AN81: =SUM(AN80:AN80) -> 0
A82: Applicant 7 | P82: N/A | Q82: Medicare Levy (Monthly) | AE82: N/A | AF82: Medicare Levy (Monthly)
A83: Gross Taxable Income | D83: Tax Rate | F83: Gross | H83: Tax | J83: Net | W83: Monthly | Y83: =(Y81/12) -> 0 | AL83: Monthly | AN83: =(AN81/12) -> 0
A84: =$A$5 -> 1 | B84: =$B$5 -> 18200 | C84: =$C$5 -> 18200 | D84: =$D$5 -> 0 | F84: =IF('Serviceability Calculator'!F38<B84,'Serviceability Calculator'!F38,C84) -> 0 | G84: =F84 -> 0 | H84: =F84*D84 -> 0 | J84: =F84-H84 -> 0
A85: =$A$6 -> 18201 | B85: =$B$6 -> 45000 | C85: =$C$6 -> 26800 | D85: =$D$6 -> 0.19 | F85: =IF(G84='Serviceability Calculator'!F38,0,IF(('Serviceability Calculator'!F38-G84)>C85,C85,('Serviceability Calculator'!F38-G84))) -> 0 | G85: =G84+F85 -> 0 | H85: =F85*D85 -> 0 | J85: =F85-H85 -> 0 | P85: Company 2 | AE85: Company 2
A86: =$A$7 -> 45001 | B86: =$B$7 -> 120000 | C86: =$C$7 -> 75000 | D86: =$D$7 -> 0.325 | F86: =IF(G85='Serviceability Calculator'!F38,0,IF(('Serviceability Calculator'!F38-G85)>C86,C86,('Serviceability Calculator'!F38-G85))) -> 0 | G86: =G85+F86 -> 0 | H86: =F86*D86 -> 0 | J86: =F86-H86 -> 0 | P86: Gross Taxable Income | S86: Tax Rate | U86: Gross | W86: Tax | Y86: Net | AE86: Gross Taxable Income | AH86: Tax Rate | AJ86: Gross | AL86: Tax | AN86: Net
A87: =$A$8 -> 120001 | B87: =$B$8 -> 180000 | C87: =$C$8 -> 60000 | D87: =$D$8 -> 0.37 | F87: =IF(G86='Serviceability Calculator'!F38,0,IF(('Serviceability Calculator'!F38-G86)>C87,C87,('Serviceability Calculator'!F38-G86))) -> 0 | G87: =G86+F87 -> 0 | H87: =F87*D87 -> 0 | J87: =F87-H87 -> 0 | S87: =D119 -> 0.25 | U87: ='SMSF Serviceability Calculator'!C72 -> 0 | V87: =U87 -> 0 | W87: =U87*S87 -> 0 | Y87: =U87-W87 -> 0 | AH87: =AH80 -> 0.25 | AJ87: ='Non-Res Serviceability'!H43 -> 0 | AK87: =AJ87 -> 0 | AL87: =AJ87*AH87 -> 0 | AN87: =AJ87-AL87 -> 0
A88: =$A$9 -> 180001 | B88: =$B$9 -> 100000000 | C88: =$C$9 -> 99820000 | D88: =$D$9 -> 0.45 | F88: =IF('Serviceability Calculator'!F38-G87<=0,0,('Serviceability Calculator'!F38-G87)) -> 0 | G88: =G87+F88 -> 0 | H88: =F88*D88 -> 0 | J88: =F88-H88 -> 0 | S88: Totals: | U88: =SUM(U87:U87) -> 0 | W88: =SUM(W87:W87) -> 0 | Y88: =SUM(Y87:Y87) -> 0 | AH88: Totals: | AJ88: =SUM(AJ87:AJ87) -> 0 | AL88: =SUM(AL87:AL87) -> 0 | AN88: =SUM(AN87:AN87) -> 0
D89: Totals: | F89: =SUM(F84:F88) -> 0 | H89: =SUM(H84:H88) -> 0 | J89: =SUM(J84:J88) -> 0 | P89: N/A | Q89: Medicare Levy (Monthly) | AE89: N/A | AF89: Medicare Levy (Monthly)
A90: Low & middle income tax offset (monthly) | C90: 0 | D90: Refer table | W90: Monthly | Y90: =(Y88/12) -> 0 | AL90: Monthly | AN90: =(AN88/12) -> 0
A91: Low income tax offset (monthly) | C91: =IF(F89<=$B$168,$D$168,IF(F89<=$B$169,$D$169,IF(F89<=$B$170,((F89-$B$169)*$C$170)+$D$170,IF(F89<=$B$171,((F89-$B$170)*$C$171)+$D$171,IF(F89<=$B$172,$D$172,0)))))/12 -> 0 | D91: Refer table | F91: =C91*12 -> 0
A92: Medicare Levy (monthly) | C92: =$F$89*(2/100)/12 -> 0 | D92: 0.02 | P92: SMSF Assets
C93: =SUM(C90:C92) -> 0 | P93: Gross Taxable Income | S93: Tax Rate | U93: Assets | V93: Income | W93: Tax | Y93: Net
H94: Monthly | J94: =(J89/12)-C93 -> 0 | S94: 0.15 | U94: ='SMSF Serviceability Calculator'!D9 -> 0 | V94: =U94*3.9% -> 0 | W94: =V94*S94 -> 0 | Y94: =V94-W94 -> 0
S95: Totals: | U95: =SUM(U94:U94) -> 0 | W95: =SUM(W94:W94) -> 0 | Y95: =SUM(Y94:Y94) -> 0
A96: Applicant 8 | P96: N/A | Q96: Medicare Levy (Monthly)
A97: Gross Taxable Income | D97: Tax Rate | F97: Gross | H97: Tax | J97: Net
A98: =$A$5 -> 1 | B98: =$B$5 -> 18200 | C98: =$C$5 -> 18200 | D98: =$D$5 -> 0 | F98: =IF('Serviceability Calculator'!F39<B98,'Serviceability Calculator'!F39,C98) -> 0 | G98: =F98 -> 0 | H98: =F98*D98 -> 0 | J98: =F98-H98 -> 0 | W98: Monthly | Y98: =(Y95/12) -> 0
A99: =$A$6 -> 18201 | B99: =$B$6 -> 45000 | C99: =$C$6 -> 26800 | D99: =$D$6 -> 0.19 | F99: =IF(G98='Serviceability Calculator'!F39,0,IF(('Serviceability Calculator'!F39-G98)>C99,C99,('Serviceability Calculator'!F39-G98))) -> 0 | G99: =G98+F99 -> 0 | H99: =F99*D99 -> 0 | J99: =F99-H99 -> 0
A100: =$A$7 -> 45001 | B100: =$B$7 -> 120000 | C100: =$C$7 -> 75000 | D100: =$D$7 -> 0.325 | F100: =IF(G99='Serviceability Calculator'!F39,0,IF(('Serviceability Calculator'!F39-G99)>C100,C100,('Serviceability Calculator'!F39-G99))) -> 0 | G100: =G99+F100 -> 0 | H100: =F100*D100 -> 0 | J100: =F100-H100 -> 0 | P100: SMSF Contributions - Applicant 1
A101: =$A$8 -> 120001 | B101: =$B$8 -> 180000 | C101: =$C$8 -> 60000 | D101: =$D$8 -> 0.37 | F101: =IF(G100='Serviceability Calculator'!F39,0,IF(('Serviceability Calculator'!F39-G100)>C101,C101,('Serviceability Calculator'!F39-G100))) -> 0 | G101: =G100+F101 -> 0 | H101: =F101*D101 -> 0 | J101: =F101-H101 -> 0 | P101: Gross Taxable Income | S101: Tax Rate | U101: Gross | W101: Tax | Y101: Net
A102: =$A$9 -> 180001 | B102: =$B$9 -> 100000000 | C102: =$C$9 -> 99820000 | D102: =$D$9 -> 0.45 | F102: =IF('Serviceability Calculator'!F39-G101<=0,0,('Serviceability Calculator'!F39-G101)) -> 0 | G102: =G101+F102 -> 0 | H102: =F102*D102 -> 0 | J102: =F102-H102 -> 0 | P102: 1 | Q102: 25000 | R102: =Q102-P102+1 -> 25000 | S102: 0.15 | U102: =IF('SMSF Serviceability Calculator'!D12<Q102,'SMSF Serviceability Calculator'!D12,R102) -> 0 | V102: =U102 -> 0 | W102: =U102*S102 -> 0 | Y102: =V102-W102 -> 0
D103: Totals: | F103: =SUM(F98:F102) -> 0 | H103: =SUM(H98:H102) -> 0 | J103: =SUM(J98:J102) -> 0 | P103: 25001 | Q103: 10000000 | R103: =Q103-P103+1 -> 9975000 | S103: 0.47 | U103: =IF(V102='SMSF Serviceability Calculator'!$D$12,0,IF(('SMSF Serviceability Calculator'!$D$12-V102)>R103,R103,('SMSF Serviceability Calculator'!$D$12-V102))) -> 0 | V103: =V102+U103 -> 0 | W103: =U103*S103 -> 0 | Y103: =U103-W103 -> 0
A104: Low & middle income tax offset (monthly) | C104: 0 | D104: Refer table | S104: Totals: | U104: =SUM(U102:U103) -> 0 | W104: =SUM(W102:W103) -> 0 | Y104: =SUM(Y102:Y103) -> 0
A105: Low income tax offset (monthly) | C105: =IF(F103<=$B$168,$D$168,IF(F103<=$B$169,$D$169,IF(F103<=$B$170,((F103-$B$169)*$C$170)+$D$170,IF(F103<=$B$171,((F103-$B$170)*$C$171)+$D$171,IF(F103<=$B$172,$D$172,0)))))/12 -> 0 | D105: Refer table | F105: =C105*12 -> 0
A106: Medicare Levy (monthly) | C106: =$F$103*(2/100)/12 -> 0 | D106: 0.02 | W106: Monthly | Y106: =(Y104/12) -> 0
C107: =SUM(C104:C106) -> 0
H108: Monthly | J108: =(J103/12)-C107 -> 0 | P108: SMSF Contributions - Applicant 2
P109: Gross Taxable Income | S109: Tax Rate | U109: Gross | W109: Tax | Y109: Net
A110: Company 1 | P110: 1 | Q110: 25000 | R110: =Q110-P110+1 -> 25000 | S110: =S102 -> 0.15 | U110: =IF('SMSF Serviceability Calculator'!D13<Q110,'SMSF Serviceability Calculator'!D13,R110) -> 0 | V110: =U110 -> 0 | W110: =U110*S110 -> 0 | Y110: =V110-W110 -> 0
A111: Gross Taxable Income | D111: Tax Rate | F111: Gross | H111: Tax | J111: Net | P111: 25001 | Q111: 10000000 | R111: =Q111-P111+1 -> 9975000 | S111: =S103 -> 0.47 | U111: =IF(V110='SMSF Serviceability Calculator'!$D$13,0,IF(('SMSF Serviceability Calculator'!$D$13-V110)>R111,R111,('SMSF Serviceability Calculator'!$D$13-V110))) -> 0 | V111: =V110+U111 -> 0 | W111: =U111*S111 -> 0 | Y111: =U111-W111 -> 0
D112: 0.25 | F112: ='Serviceability Calculator'!C54 -> 0 | G112: =F112 -> 0 | H112: =F112*D112 -> 0 | J112: =F112-H112 -> 0 | S112: Totals: | U112: =SUM(U110:U111) -> 0 | W112: =SUM(W110:W111) -> 0 | Y112: =SUM(Y110:Y111) -> 0
D113: Totals: | F113: =SUM(F112:F112) -> 0 | H113: =SUM(H112:H112) -> 0 | J113: =SUM(J112:J112) -> 0
A114: N/A | B114: Medicare Levy (Monthly) | W114: Monthly | Y114: =(Y112/12) -> 0
H115: Monthly | J115: =(J113/12) -> 0
P116: SMSF Contributions - Applicant 3
A117: Company 2 | P117: Gross Taxable Income | S117: Tax Rate | U117: Gross | W117: Tax | Y117: Net
A118: Gross Taxable Income | D118: Tax Rate | F118: Gross | H118: Tax | J118: Net | P118: 1 | Q118: 25000 | R118: =Q118-P118+1 -> 25000 | S118: =S102 -> 0.15 | U118: =IF('SMSF Serviceability Calculator'!D14<Q118,'SMSF Serviceability Calculator'!D14,R118) -> 0 | V118: =U118 -> 0 | W118: =U118*S118 -> 0 | Y118: =V118-W118 -> 0
D119: =D112 -> 0.25 | F119: ='Serviceability Calculator'!C55 -> 0 | G119: =F119 -> 0 | H119: =F119*D119 -> 0 | J119: =F119-H119 -> 0 | P119: 25001 | Q119: 10000000 | R119: =Q119-P119+1 -> 9975000 | S119: =S103 -> 0.47 | U119: =IF(V118='SMSF Serviceability Calculator'!$D$14,0,IF(('SMSF Serviceability Calculator'!$D$14-V118)>R119,R119,('SMSF Serviceability Calculator'!$D$14-V118))) -> 0 | V119: =V118+U119 -> 0 | W119: =U119*S119 -> 0 | Y119: =U119-W119 -> 0
D120: Totals: | F120: =SUM(F119:F119) -> 0 | H120: =SUM(H119:H119) -> 0 | J120: =SUM(J119:J119) -> 0 | S120: Totals: | U120: =SUM(U118:U119) -> 0 | W120: =SUM(W118:W119) -> 0 | Y120: =SUM(Y118:Y119) -> 0
A121: N/A | B121: Medicare Levy (Monthly)
H122: Monthly | J122: =(J120/12) -> 0 | W122: Monthly | Y122: =(Y120/12) -> 0
A124: Company 3 | P124: SMSF Contributions - Applicant 4
A125: Gross Taxable Income | D125: Tax Rate | F125: Gross | H125: Tax | J125: Net | P125: Gross Taxable Income | S125: Tax Rate | U125: Gross | W125: Tax | Y125: Net
D126: =D112 -> 0.25 | F126: ='Serviceability Calculator'!C56 -> 0 | G126: =F126 -> 0 | H126: =F126*D126 -> 0 | J126: =F126-H126 -> 0 | P126: 1 | Q126: 25000 | R126: =Q126-P126+1 -> 25000 | S126: =S102 -> 0.15 | U126: =IF('SMSF Serviceability Calculator'!D15<Q126,'SMSF Serviceability Calculator'!D15,R126) -> 0 | V126: =U126 -> 0 | W126: =U126*S126 -> 0 | Y126: =V126-W126 -> 0
D127: Totals: | F127: =SUM(F126:F126) -> 0 | H127: =SUM(H126:H126) -> 0 | J127: =SUM(J126:J126) -> 0 | P127: 25001 | Q127: 10000000 | R127: =Q127-P127+1 -> 9975000 | S127: =S103 -> 0.47 | U127: =IF(V126='SMSF Serviceability Calculator'!$D$15,0,IF(('SMSF Serviceability Calculator'!$D$15-V126)>R127,R127,('SMSF Serviceability Calculator'!$D$15-V126))) -> 0 | V127: =V126+U127 -> 0 | W127: =U127*S127 -> 0 | Y127: =U127-W127 -> 0
A128: N/A | B128: Medicare Levy (Monthly) | S128: Totals: | U128: =SUM(U126:U127) -> 0 | W128: =SUM(W126:W127) -> 0 | Y128: =SUM(Y126:Y127) -> 0
H129: Monthly | J129: =(J127/12) -> 0
W130: Monthly | Y130: =(Y128/12) -> 0
A131: Company 4
A132: Gross Taxable Income | D132: Tax Rate | F132: Gross | H132: Tax | J132: Net
D133: =D126 -> 0.25 | F133: ='Serviceability Calculator'!C57 -> 0 | G133: =F133 -> 0 | H133: =F133*D133 -> 0 | J133: =F133-H133 -> 0
D134: Totals: | F134: =SUM(F133:F133) -> 0 | H134: =SUM(H133:H133) -> 0 | J134: =SUM(J133:J133) -> 0
A135: N/A | B135: Medicare Levy (Monthly)
H136: Monthly | J136: =(J134/12) -> 0
A154: Low & Middle Income Tax Offset table
A155: Low Band | B155: High Band | C155: % Cacl | D155: $ Calc
A156: 0 | B156: 19543 | D156: 0
A157: 19543 | B157: 37000 | D157: -255
A158: 37001 | B158: 48000 | C158: -0.075 | D158: -255
A159: 48001 | B159: 90000 | D159: -1080
A160: 90001 | B160: 126000 | C160: 0.03 | D160: -1080
A161: 126001 | B161: 10000000 | D161: 0
A165: =IF(F10<=B156,D156,IF($F$23<=$B$157,$D$157,IF($F$23<=$B$158,(($F$23-$B$157)*$C$158)+$D$158,IF($F$23<=$B$159,$D$159,IF($F$23<=$B$160,(($F$23-$B$159)*$C$160)+$D$160,IF($F$23<=$B$161,$D$161,0)))))) -> 0
A167: Low Income Tax Offset
A168: 0 | B168: =18200+(700/0.19) -> 21884.21053 | D168: 0
A169: 20596 | B169: 37500 | D169: -700
A170: 37501 | B170: 45000 | C170: 0.05 | D170: -700
A171: 45001 | B171: 66667 | C171: 0.015 | D171: -325
A172: 66667 | B172: 10000000 | D172: 0
A175: =IF($F$10<=$B$168,$D$168,IF($F$10<=$B$169,$D$169,IF($F$10<=$B$170,(($F$10-$B$169)*$C$170)+$D$170,IF($F$10<=$B$172,$D$172,0)))) -> 0

Sheet Definitions (hidden)
A4: Definitions
A6: Household Number | B6: The household group that an individual applicant is attached to.
A8: Status | B8: Individual applicants household status (single or couple)
A10: Dependents | B10: Number of children or other dependents of an individual applicant. Dependents includes adult children over 18 if they rely on parents to cover living costs. Dependents also includes dependent children or other parties over 18 such as children with disabilities.
A12: Gross Taxable Income | B12: Yearly cash component of salary before tax. (Taxable income). To be entered by you.
A14: Non-Taxable Income | B14: Non taxable income of the applicant. This is generally pension or government benefit income that is not taxable.
A16: Annual Rental Income | B16: Annual Rental Income received from investment properties (include income from property being purchased if a tenancy agreement is held and can be provided). The calculator will use 80% of the amount entered adjusted for the relevant tax rate.
A18: Monthly Interest Expense (for gearing purposes only) | B18: The interest expense for investment property where a tax deduction is able to be claimed. This amount is to be allocated to the relevant applicant. The interest expense must not include any principal amount that forms part of the loan payment.
A20: Net Monthly Income | B20: Monthly cash component of salary after tax. Automatically calculated.
A22: Company Net Profit Before Tax | B22: Yearly cash component of salary after expenses before tax. (Taxable income).
A24: Company addbacks | B24: Non-taxable addbacks for the company such as depreciation and interest payments on loans included in servicing assessment.
A26: Living Allowance | B26: Refer to application form for details of each category. Full details must be entered for each household group.
A28: Credit Card (Limit not Debt) | B28: We need to take the full credit card limit into account when calculating serviceability. We will use 3.8% of the total limit, regardless of the debt outstanding.
A30: Existing Commitments | B30: Existing debt commitments of the applicant. Full available loan limits must be entered as well as payments based on the full limit.
A32: Sensitivity | B32: An annual percentage rate applied to the total balances of outstanding loans as a precaution against any future interest rate increases.
A34: Loan Term | B34: Loan term of loan application in years.
A36: Interest Only Term | B36: Interest only term applicable to the applied loan
A38: New Loan Amount | B38: Loan amount as per the application
A40: Interest rate | B40: Applicable interest rate for the product
A42: New Monthly Loan Repayments | B42: This is the monthly loan repayment of the proposed loan. It is a principal and interest repayment. For interest only repayment calculations please refer to a La Trobe underwriter.
A44: Result - Net Surplus | B44: This is the remaining amount of the borrowers available monthly income after living expenses, existing commitments and the proposed commitment are deducted. This amount must be positive to successfully pass the Serviceability Calculator. Please refer your scenario to a La Trobe underwriter if the loan does not pass the Serviceability Calculator.
A46: SMSF Contributions | B46: Annual superannuation contributions for the applicant.
A48: Annual Management Fee | B48: Annual management fee applicable for the SMSF. This includes accountants fees, auditor fees, compliance expenses etc. Costs incurred in the generation of income are excluded from this amount as this is incorporated into the return on SMSF Assets.
A50: SMSF Assets | B50: This is the amount of the Self Managed Super Fund's Assets excluding the security for the loan. This is only applicable to SMSF loans. (We assume an investment return of 3.9% per annum taxed at the current Tax Rate for Superannuation income).

Sheet Admin (hidden)
I17: Enter Folder paths for files to output to:
K19: CSV | M19: \\latrobe1\import_data_serviceability\import
K20: PDF | M20: \\latrobe\dfs\Melbourne PDF\ECF\Serviceability
K35: Correct fields for Production
K37: CSV | M37: \\latrobe1\import_data_serviceability\import
K38: PDF | M38: \\latrobe\dfs\Melbourne PDF\ECF\Serviceability
K42: For Testing
K43: CSV | M43: \\latrobe3\import_data_serviceability\import
K44: PDF | M44: \\meldfs2p\dfs\tempfiles\ECF_UAT\Prospector

Sheet RepayCalculator (hidden)
A1: Dropdown box data
A2: Principal & Interest
A3: Interest Only
A6: Serviceability Sensitivity | B6: 0.025
A7: Serviceability Sensitivity - SMSF | B7: 0.02
A9: Interest Rate Floor | B9: 0.053
A11: Interest Only Period | B11: Loan Term | C11: LoanType | D11: Stressed | E11: Status | F11: Household | G11: Dependents | H11: Households Short List
A12: 0 | B12: 30
A13: 1 | B13: 29 | C13: Buy Now Pay Later (BNPL) | D13: Mortgage Loan - Investment | E13: Single | F13: Household 1 | G13: 0 | H13: Household 1
A14: 2 | B14: 28 | C14: HELP / HECS | D14: Mortgage Loan - Owner Occupied | E14: Couple | F14: Household 2 | G14: 1 | H14: Household 2
A15: 3 | B15: 27 | C15: Lease / Hire Purchase | D15: Overdraft | F15: Household 3 | G15: 2 | H15: Household 3
A16: 4 | B16: 26 | C16: Line of Credit | D16: Personal Loan - Variable | F16: Household 4 | G16: 3 | H16: Household 4
A17: 5 | B17: 25 | C17: Mortgage Loan - Investment | D17: Line of Credit | F17: Household 5 | G17: 4
B18: 24 | C18: Mortgage Loan - Owner Occupied | F18: Household 6 | G18: 5
B19: 23 | C19: Overdraft | G19: 6
B20: 22 | C20: Personal Loan - Fixed | G20: 7
B21: 21 | C21: Personal Loan - Variable | G21: 8
B22: 20 | C22: Private Loan | G22: 9
B23: 19 | C23: Other | G23: 10
B24: 18
B25: 17
B26: 16
B27: 15
B28: 14
B29: 13
B30: 12
B31: 11
B32: 10
B33: 9
B34: 8
B35: 7
B36: 6
B37: 5
B38: 4
B39: 3
B40: 2
B41: 1
B42: 0
A44: Rental Income - Standard | B44: 0.8
A45: Rental Income - SMSF | B45: 0.8
A46: Rental Income - ICR | B46: 0.8
A48: Serviceability Sensitivity - ICR | B48: 0.02
D51: =IF(#REF!="No",IF(B43+RepayCalculator!B6<RepayCalculator!B9,RepayCalculator!#REF!,RepayCalculator!#REF!)) -> 
